Organisation Code,Organisation Label,Effective Date,Organisational Unit,Service Division Label,Category Internal Name,Purpose,Detailed Expenditure Code,Payment Date,Transaction Number,Irrecoverable VAT Amount,Amount,Capital Or Revenue,Beneficiary Name,Procurement Card
Http://opendatacommunities.org/id/metropolitan-district-council/leeds,Leeds City Council,31/03/2023,Resources,Leeds Building Services,Supplies and Services,Operational Materials,205,21/03/2023,2303-00001,0.00,150.83,R,A & A ELECTRICAL DISTRIBUTORS LTD,No
Http://opendatacommunities.org/id/metropolitan-district-council/leeds,Leeds City Council,31/03/2023,Adults and Health,Services For Older People Under 65 P/Dis,Agency Payments,Sheltered Accommodation,569,01/03/2023,2303-00002,0.00,5400.00,R,A & V TRANSITIONAL HOMES,No
Http://opendatacommunities.org/id/metropolitan-district-council/leeds,Leeds City Council,31/03/2023,Adults and Health,Services For Older People Under 65 P/Dis,Agency Payments,Sheltered Accommodation,569,29/03/2023,2303-00003,0.00,5400.00,R,A & V TRANSITIONAL HOMES,No
Http://opendatacommunities.org/id/metropolitan-district-council/leeds,Leeds City Council,31/03/2023,Communities Housing and Environment,Benefits Wlefare and Poverty,Supplies and Services,Grant Related Expenditure,290,24/03/2023,2303-00004,0.00,650.00,R,REDACTED PERSONAL DATA,No
Http://opendatacommunities.org/id/metropolitan-district-council/leeds,Leeds City Council,31/03/2023,City Development,Libraries Arts & Heritage,Supplies and Services,Operational Furniture And Equipment,203,22/03/2023,2303-00005,0.00,307.66,R,A C Entertainment Technologies Ltd,No
Http://opendatacommunities.org/id/metropolitan-district-council/leeds,Leeds City Council,31/03/2023,Children and Families,Social Care,Agency Payments,Placement Support,550,27/03/2023,2303-00006,0.00,250.00,R,REDACTED PERSONAL DATA,No
Http://opendatacommunities.org/id/metropolitan-district-council/leeds,Leeds City Council,31/03/2023,Resources,Leeds Building Services,Supplies and Services,Other Hired And Contracted Services,265,10/03/2023,2303-00007,0.00,6851.36,R,A Coole Electrical Ltd,No
Http://opendatacommunities.org/id/metropolitan-district-council/leeds,Leeds City Council,31/03/2023,Resources,Leeds Building Services,Supplies and Services,Other Hired And Contracted Services,265,22/03/2023,2303-00008,0.00,17365.67,R,A Coole Electrical Ltd,No
Http://opendatacommunities.org/id/metropolitan-district-council/leeds,Leeds City Council,31/03/2023,Resources,Leeds Building Services,Supplies and Services,Other Hired And Contracted Services,265,24/03/2023,2303-00009,0.00,7820.31,R,A Coole Electrical Ltd,No
Http://opendatacommunities.org/id/metropolitan-district-council/leeds,Leeds City Council,31/03/2023,Resources,Leeds Building Services,Supplies and Services,Other Hired And Contracted Services,265,24/03/2023,2303-00010,0.00,98.46,R,A Coole Electrical Ltd,No
Http://opendatacommunities.org/id/metropolitan-district-council/leeds,Leeds City Council,31/03/2023,Resources,Leeds Building Services,Supplies and Services,Other Hired And Contracted Services,265,31/03/2023,2303-00011,0.00,2647.48,R,A Coole Electrical Ltd,No
Http://opendatacommunities.org/id/metropolitan-district-council/leeds,Leeds City Council,31/03/2023,Communities Housing and Environment,Benefits Wlefare and Poverty,Supplies and Services,Grant Related Expenditure,290,20/03/2023,2303-00012,0.00,650.00,R,REDACTED PERSONAL DATA,No
Http://opendatacommunities.org/id/metropolitan-district-council/leeds,Leeds City Council,31/03/2023,Communities Housing and Environment,Customer Access,Supplies and Services,Bought In Professional Services,277,01/03/2023,2303-00013,0.00,21.00,R,REDACTED COMMERCIAL CONFIDENTIALITY,No
Http://opendatacommunities.org/id/metropolitan-district-council/leeds,Leeds City Council,31/03/2023,Communities Housing and Environment,Customer Access,Supplies and Services,Bought In Professional Services,277,01/03/2023,2303-00014,0.00,81.00,R,REDACTED COMMERCIAL CONFIDENTIALITY,No
Http://opendatacommunities.org/id/metropolitan-district-council/leeds,Leeds City Council,31/03/2023,Communities Housing and Environment,Customer Access,Supplies and Services,Bought In Professional Services,277,01/03/2023,2303-00015,0.00,27.00,R,REDACTED COMMERCIAL CONFIDENTIALITY,No
Http://opendatacommunities.org/id/metropolitan-district-council/leeds,Leeds City Council,31/03/2023,Communities Housing and Environment,Customer Access,Supplies and Services,Bought In Professional Services,277,08/03/2023,2303-00016,0.00,18.00,R,REDACTED COMMERCIAL CONFIDENTIALITY,No
Http://opendatacommunities.org/id/metropolitan-district-council/leeds,Leeds City Council,31/03/2023,Communities Housing and Environment,Customer Access,Supplies and Services,Bought In Professional Services,277,08/03/2023,2303-00017,0.00,9.00,R,REDACTED COMMERCIAL CONFIDENTIALITY,No
Http://opendatacommunities.org/id/metropolitan-district-council/leeds,Leeds City Council,31/03/2023,Communities Housing and Environment,Customer Access,Supplies and Services,Bought In Professional Services,277,08/03/2023,2303-00018,0.00,9.00,R,REDACTED COMMERCIAL CONFIDENTIALITY,No
Http://opendatacommunities.org/id/metropolitan-district-council/leeds,Leeds City Council,31/03/2023,Communities Housing and Environment,Customer Access,Supplies and Services,Bought In Professional Services,277,22/03/2023,2303-00019,0.00,18.00,R,REDACTED COMMERCIAL CONFIDENTIALITY,No
Http://opendatacommunities.org/id/metropolitan-district-council/leeds,Leeds City Council,31/03/2023,Communities Housing and Environment,Customer Access,Supplies and Services,Bought In Professional Services,277,29/03/2023,2303-00020,0.00,18.00,R,REDACTED COMMERCIAL CONFIDENTIALITY,No
Http://opendatacommunities.org/id/metropolitan-district-council/leeds,Leeds City Council,31/03/2023,Communities Housing and Environment,Benefits Wlefare and Poverty,Supplies and Services,Grant Related Expenditure,290,17/03/2023,2303-00021,0.00,650.00,R,REDACTED PERSONAL DATA,No
Http://opendatacommunities.org/id/metropolitan-district-council/leeds,Leeds City Council,31/03/2023,Strategic Landlord,HRA Housing Leeds,Capital,OTHER COSTS,7,10/03/2023,2303-00022,0.00,100.00,C,REDACTED PERSONAL DATA,No
Http://opendatacommunities.org/id/metropolitan-district-council/leeds,Leeds City Council,31/03/2023,Children and Families,Social Care,Agency Payments,Services Rendered By Voluntary Sector,505,01/03/2023,2303-00023,0.00,2673.60,R,REDACTED PERSONAL DATA,No
Http://opendatacommunities.org/id/metropolitan-district-council/leeds,Leeds City Council,31/03/2023,Children and Families,Social Care,Agency Payments,Services Rendered By Voluntary Sector,505,03/03/2023,2303-00024,0.00,8833.44,R,REDACTED PERSONAL DATA,No
Http://opendatacommunities.org/id/metropolitan-district-council/leeds,Leeds City Council,31/03/2023,Children and Families,Social Care,Agency Payments,Services Rendered By Voluntary Sector,505,03/03/2023,2303-00025,0.00,302.40,R,REDACTED PERSONAL DATA,No
Http://opendatacommunities.org/id/metropolitan-district-council/leeds,Leeds City Council,31/03/2023,Children and Families,Social Care,Agency Payments,Contact,548,24/03/2023,2303-00026,0.00,10.20,R,REDACTED PERSONAL DATA,No
Http://opendatacommunities.org/id/metropolitan-district-council/leeds,Leeds City Council,31/03/2023,Communities Housing and Environment,Benefits Wlefare and Poverty,Supplies and Services,Grant Related Expenditure,290,27/03/2023,2303-00027,0.00,650.00,R,REDACTED PERSONAL DATA,No
Http://opendatacommunities.org/id/metropolitan-district-council/leeds,Leeds City Council,31/03/2023,Children and Families,Social Care,Agency Payments,Services Rendered By Other Organisations,511,03/03/2023,2303-00028,0.00,430.20,R,REDACTED PERSONAL DATA,No
Http://opendatacommunities.org/id/metropolitan-district-council/leeds,Leeds City Council,31/03/2023,Adults and Health,Other Generic Services,Agency Payments,Fees To Carers,563,03/03/2023,2303-00029,0.00,125.31,R,REDACTED PERSONAL DATA,No
Http://opendatacommunities.org/id/metropolitan-district-council/leeds,Leeds City Council,31/03/2023,Adults and Health,Other Generic Services,Agency Payments,Fees To Carers,563,03/03/2023,2303-00030,0.00,41.77,R,REDACTED PERSONAL DATA,No
Http://opendatacommunities.org/id/metropolitan-district-council/leeds,Leeds City Council,31/03/2023,Adults and Health,Other Generic Services,Agency Payments,Fees To Carers,563,16/03/2023,2303-00031,0.00,460.80,R,REDACTED PERSONAL DATA,No
Http://opendatacommunities.org/id/metropolitan-district-council/leeds,Leeds City Council,31/03/2023,Adults and Health,Other Generic Services,Agency Payments,Fees To Carers,563,16/03/2023,2303-00032,0.00,50.40,R,REDACTED PERSONAL DATA,No
Http://opendatacommunities.org/id/metropolitan-district-council/leeds,Leeds City Council,31/03/2023,Adults and Health,Other Generic Services,Agency Payments,Fees To Carers,563,24/03/2023,2303-00033,0.00,41.77,R,REDACTED PERSONAL DATA,No
Http://opendatacommunities.org/id/metropolitan-district-council/leeds,Leeds City Council,31/03/2023,Adults and Health,Other Generic Services,Agency Payments,Fees To Carers,563,31/03/2023,2303-00034,0.00,125.31,R,REDACTED PERSONAL DATA,No
Http://opendatacommunities.org/id/metropolitan-district-council/leeds,Leeds City Council,31/03/2023,Resources,Corporate Property Management,Premises,Maintenance Of Buildings,101,02/03/2023,2303-00035,0.00,5334.00,R,A J H  Pump Supply & Repair Ltd,No
Http://opendatacommunities.org/id/metropolitan-district-council/leeds,Leeds City Council,31/03/2023,Resources,Leeds Building Services,Supplies and Services,Operational Materials,205,02/03/2023,2303-00036,0.00,1315.00,R,A J H  Pump Supply & Repair Ltd,No
Http://opendatacommunities.org/id/metropolitan-district-council/leeds,Leeds City Council,31/03/2023,Resources,Leeds Building Services,Supplies and Services,Operational Materials,205,10/03/2023,2303-00037,0.00,110.00,R,A J H  Pump Supply & Repair Ltd,No
Http://opendatacommunities.org/id/metropolitan-district-council/leeds,Leeds City Council,31/03/2023,Resources,Leeds Building Services,Supplies and Services,Operational Materials,205,17/03/2023,2303-00038,0.00,200.00,R,A J H  Pump Supply & Repair Ltd,No
Http://opendatacommunities.org/id/metropolitan-district-council/leeds,Leeds City Council,31/03/2023,Resources,Leeds Building Services,Supplies and Services,Operational Materials,205,22/03/2023,2303-00039,0.00,3050.00,R,A J H  Pump Supply & Repair Ltd,No
Http://opendatacommunities.org/id/metropolitan-district-council/leeds,Leeds City Council,31/03/2023,Resources,Leeds Building Services,Supplies and Services,Operational Materials,205,22/03/2023,2303-00040,0.00,655.00,R,A J H  Pump Supply & Repair Ltd,No
Http://opendatacommunities.org/id/metropolitan-district-council/leeds,Leeds City Council,31/03/2023,Resources,Leeds Building Services,Supplies and Services,Operational Materials,205,22/03/2023,2303-00041,0.00,190.00,R,A J H  Pump Supply & Repair Ltd,No
Http://opendatacommunities.org/id/metropolitan-district-council/leeds,Leeds City Council,31/03/2023,Resources,Leeds Building Services,Supplies and Services,Operational Materials,205,24/03/2023,2303-00042,0.00,895.00,R,A J H  Pump Supply & Repair Ltd,No
Http://opendatacommunities.org/id/metropolitan-district-council/leeds,Leeds City Council,31/03/2023,Communities Housing and Environment,Parks and Countryside,Supplies and Services,Resaleable Materials,204,03/03/2023,2303-00043,0.00,1450.40,R,A J PROMOTIONS,No
Http://opendatacommunities.org/id/metropolitan-district-council/leeds,Leeds City Council,31/03/2023,Communities Housing and Environment,Parks and Countryside,Supplies and Services,Resaleable Materials,204,10/03/2023,2303-00044,0.00,187.20,R,A J PROMOTIONS,No
Http://opendatacommunities.org/id/metropolitan-district-council/leeds,Leeds City Council,31/03/2023,City Development,Libraries Arts & Heritage,Supplies and Services,Resaleable Materials,204,10/03/2023,2303-00045,0.00,919.00,R,A J PROMOTIONS,No
Http://opendatacommunities.org/id/metropolitan-district-council/leeds,Leeds City Council,31/03/2023,Communities Housing and Environment,Parks and Countryside,Supplies and Services,Resaleable Materials,204,24/03/2023,2303-00046,0.00,890.00,R,A J PROMOTIONS,No
Http://opendatacommunities.org/id/metropolitan-district-council/leeds,Leeds City Council,31/03/2023,Children and Families,Social Care,Agency Payments,Services Rendered By Other Organisations,511,03/03/2023,2303-00047,0.00,1147.20,R,REDACTED PERSONAL DATA,No
Http://opendatacommunities.org/id/metropolitan-district-council/leeds,Leeds City Council,31/03/2023,Strategic Landlord,HRA Housing Leeds,Capital,OTHER COSTS,7,10/03/2023,2303-00048,0.00,94.17,C,REDACTED PERSONAL DATA,No
Http://opendatacommunities.org/id/metropolitan-district-council/leeds,Leeds City Council,31/03/2023,Children and Families,Social Care,Employees,Agency Staff,8,23/03/2023,2303-00049,0.00,333.00,R,A Little Something Extra Ltd,No
Http://opendatacommunities.org/id/metropolitan-district-council/leeds,Leeds City Council,31/03/2023,City Development,Recreation,External Income,Sporting & Other Recreational Fees,928,14/03/2023,2303-00050,0.00,90.00,R,REDACTED PERSONAL DATA,No
Http://opendatacommunities.org/id/metropolitan-district-council/leeds,Leeds City Council,31/03/2023,Communities Housing and Environment,Communities,Transport,Public Transport Expenses,310,13/03/2023,2303-00051,0.00,13.00,R,A MOHAMMED,No
Http://opendatacommunities.org/id/metropolitan-district-council/leeds,Leeds City Council,31/03/2023,Children and Families,Social Care,Agency Payments,Services Rendered By Other Organisations,511,01/03/2023,2303-00052,0.00,1503.90,R,REDACTED PERSONAL DATA,No
Http://opendatacommunities.org/id/metropolitan-district-council/leeds,Leeds City Council,31/03/2023,Children and Families,Social Care,Agency Payments,Services Rendered By Other Organisations,511,03/03/2023,2303-00053,0.00,573.60,R,REDACTED PERSONAL DATA,No
Http://opendatacommunities.org/id/metropolitan-district-council/leeds,Leeds City Council,31/03/2023,Children and Families,Social Care,Agency Payments,Services Rendered By Other Organisations,511,03/03/2023,2303-00054,0.00,586.80,R,REDACTED PERSONAL DATA,No
Http://opendatacommunities.org/id/metropolitan-district-council/leeds,Leeds City Council,31/03/2023,Children and Families,Social Care,Agency Payments,Services Rendered By Other Organisations,511,03/03/2023,2303-00055,0.00,216.00,R,REDACTED PERSONAL DATA,No
Http://opendatacommunities.org/id/metropolitan-district-council/leeds,Leeds City Council,31/03/2023,Communities Housing and Environment,Customer Access,Supplies and Services,Bought In Professional Services,277,01/03/2023,2303-00056,0.00,108.00,R,A NAMAKI,No
Http://opendatacommunities.org/id/metropolitan-district-council/leeds,Leeds City Council,31/03/2023,Communities Housing and Environment,Customer Access,Supplies and Services,Bought In Professional Services,277,01/03/2023,2303-00057,0.00,18.00,R,A NAMAKI,No
Http://opendatacommunities.org/id/metropolitan-district-council/leeds,Leeds City Council,31/03/2023,Communities Housing and Environment,Customer Access,Supplies and Services,Bought In Professional Services,277,01/03/2023,2303-00058,0.00,18.00,R,A NAMAKI,No
Http://opendatacommunities.org/id/metropolitan-district-council/leeds,Leeds City Council,31/03/2023,Communities Housing and Environment,Customer Access,Supplies and Services,Bought In Professional Services,277,01/03/2023,2303-00059,0.00,72.00,R,A NAMAKI,No
Http://opendatacommunities.org/id/metropolitan-district-council/leeds,Leeds City Council,31/03/2023,Communities Housing and Environment,Customer Access,Supplies and Services,Bought In Professional Services,277,01/03/2023,2303-00060,0.00,108.00,R,A NAMAKI,No
Http://opendatacommunities.org/id/metropolitan-district-council/leeds,Leeds City Council,31/03/2023,Communities Housing and Environment,Customer Access,Supplies and Services,Bought In Professional Services,277,08/03/2023,2303-00061,0.00,108.00,R,A NAMAKI,No
Http://opendatacommunities.org/id/metropolitan-district-council/leeds,Leeds City Council,31/03/2023,Communities Housing and Environment,Customer Access,Supplies and Services,Bought In Professional Services,277,08/03/2023,2303-00062,0.00,18.00,R,A NAMAKI,No
Http://opendatacommunities.org/id/metropolitan-district-council/leeds,Leeds City Council,31/03/2023,Communities Housing and Environment,Customer Access,Supplies and Services,Bought In Professional Services,277,08/03/2023,2303-00063,0.00,27.00,R,A NAMAKI,No
Http://opendatacommunities.org/id/metropolitan-district-council/leeds,Leeds City Council,31/03/2023,Communities Housing and Environment,Customer Access,Supplies and Services,Bought In Professional Services,277,08/03/2023,2303-00064,0.00,18.00,R,A NAMAKI,No
Http://opendatacommunities.org/id/metropolitan-district-council/leeds,Leeds City Council,31/03/2023,Communities Housing and Environment,Customer Access,Supplies and Services,Bought In Professional Services,277,08/03/2023,2303-00065,0.00,108.00,R,A NAMAKI,No
Http://opendatacommunities.org/id/metropolitan-district-council/leeds,Leeds City Council,31/03/2023,Communities Housing and Environment,Customer Access,Supplies and Services,Bought In Professional Services,277,08/03/2023,2303-00066,0.00,54.00,R,A NAMAKI,No
Http://opendatacommunities.org/id/metropolitan-district-council/leeds,Leeds City Council,31/03/2023,Communities Housing and Environment,Customer Access,Supplies and Services,Bought In Professional Services,277,08/03/2023,2303-00067,0.00,22.50,R,A NAMAKI,No
Http://opendatacommunities.org/id/metropolitan-district-council/leeds,Leeds City Council,31/03/2023,Communities Housing and Environment,Customer Access,Supplies and Services,Bought In Professional Services,277,15/03/2023,2303-00068,0.00,13.50,R,A NAMAKI,No
Http://opendatacommunities.org/id/metropolitan-district-council/leeds,Leeds City Council,31/03/2023,Communities Housing and Environment,Customer Access,Supplies and Services,Bought In Professional Services,277,15/03/2023,2303-00069,0.00,18.00,R,A NAMAKI,No
Http://opendatacommunities.org/id/metropolitan-district-council/leeds,Leeds City Council,31/03/2023,Communities Housing and Environment,Customer Access,Supplies and Services,Bought In Professional Services,277,15/03/2023,2303-00070,0.00,18.00,R,A NAMAKI,No
Http://opendatacommunities.org/id/metropolitan-district-council/leeds,Leeds City Council,31/03/2023,Communities Housing and Environment,Customer Access,Supplies and Services,Bought In Professional Services,277,15/03/2023,2303-00071,0.00,18.00,R,A NAMAKI,No
Http://opendatacommunities.org/id/metropolitan-district-council/leeds,Leeds City Council,31/03/2023,Communities Housing and Environment,Customer Access,Supplies and Services,Bought In Professional Services,277,15/03/2023,2303-00072,0.00,22.50,R,A NAMAKI,No
Http://opendatacommunities.org/id/metropolitan-district-council/leeds,Leeds City Council,31/03/2023,Communities Housing and Environment,Customer Access,Supplies and Services,Bought In Professional Services,277,15/03/2023,2303-00073,0.00,54.00,R,A NAMAKI,No
Http://opendatacommunities.org/id/metropolitan-district-council/leeds,Leeds City Council,31/03/2023,Communities Housing and Environment,Customer Access,Supplies and Services,Bought In Professional Services,277,22/03/2023,2303-00074,0.00,36.00,R,A NAMAKI,No
Http://opendatacommunities.org/id/metropolitan-district-council/leeds,Leeds City Council,31/03/2023,Communities Housing and Environment,Customer Access,Supplies and Services,Bought In Professional Services,277,22/03/2023,2303-00075,0.00,108.00,R,A NAMAKI,No
Http://opendatacommunities.org/id/metropolitan-district-council/leeds,Leeds City Council,31/03/2023,Communities Housing and Environment,Customer Access,Supplies and Services,Bought In Professional Services,277,22/03/2023,2303-00076,0.00,18.00,R,A NAMAKI,No
Http://opendatacommunities.org/id/metropolitan-district-council/leeds,Leeds City Council,31/03/2023,Communities Housing and Environment,Customer Access,Supplies and Services,Bought In Professional Services,277,22/03/2023,2303-00077,0.00,36.00,R,A NAMAKI,No
Http://opendatacommunities.org/id/metropolitan-district-council/leeds,Leeds City Council,31/03/2023,Communities Housing and Environment,Customer Access,Supplies and Services,Bought In Professional Services,277,22/03/2023,2303-00078,0.00,18.00,R,A NAMAKI,No
Http://opendatacommunities.org/id/metropolitan-district-council/leeds,Leeds City Council,31/03/2023,Communities Housing and Environment,Customer Access,Supplies and Services,Bought In Professional Services,277,29/03/2023,2303-00079,0.00,18.00,R,A NAMAKI,No
Http://opendatacommunities.org/id/metropolitan-district-council/leeds,Leeds City Council,31/03/2023,Communities Housing and Environment,Customer Access,Supplies and Services,Bought In Professional Services,277,29/03/2023,2303-00080,0.00,13.50,R,A NAMAKI,No
Http://opendatacommunities.org/id/metropolitan-district-council/leeds,Leeds City Council,31/03/2023,Communities Housing and Environment,Customer Access,Supplies and Services,Bought In Professional Services,277,29/03/2023,2303-00081,0.00,18.00,R,A NAMAKI,No
Http://opendatacommunities.org/id/metropolitan-district-council/leeds,Leeds City Council,31/03/2023,Communities Housing and Environment,Customer Access,Supplies and Services,Bought In Professional Services,277,29/03/2023,2303-00082,0.00,18.00,R,A NAMAKI,No
Http://opendatacommunities.org/id/metropolitan-district-council/leeds,Leeds City Council,31/03/2023,Children and Families,Social Care,Agency Payments,Services Rendered By Other Organisations,511,03/03/2023,2303-00083,0.00,286.80,R,REDACTED PERSONAL DATA,No
Http://opendatacommunities.org/id/metropolitan-district-council/leeds,Leeds City Council,31/03/2023,Communities Housing and Environment,Benefits Wlefare and Poverty,Supplies and Services,Grant Related Expenditure,290,20/03/2023,2303-00084,0.00,650.00,R,REDACTED PERSONAL DATA,No
Http://opendatacommunities.org/id/metropolitan-district-council/leeds,Leeds City Council,31/03/2023,Communities Housing and Environment,Benefits Wlefare and Poverty,Supplies and Services,Grant Related Expenditure,290,27/03/2023,2303-00085,0.00,650.00,R,REDACTED PERSONAL DATA,No
Http://opendatacommunities.org/id/metropolitan-district-council/leeds,Leeds City Council,31/03/2023,Communities Housing and Environment,Benefits Wlefare and Poverty,Supplies and Services,Grant Related Expenditure,290,16/03/2023,2303-00086,0.00,650.00,R,REDACTED PERSONAL DATA,No
Http://opendatacommunities.org/id/metropolitan-district-council/leeds,Leeds City Council,31/03/2023,Communities Housing and Environment,Benefits Wlefare and Poverty,Supplies and Services,Grant Related Expenditure,290,17/03/2023,2303-00087,0.00,650.00,R,REDACTED PERSONAL DATA,No
Http://opendatacommunities.org/id/metropolitan-district-council/leeds,Leeds City Council,31/03/2023,Children and Families,Social Care,Agency Payments,Services Rendered By Other Organisations,511,01/03/2023,2303-00088,0.00,1002.60,R,REDACTED PERSONAL DATA,No
Http://opendatacommunities.org/id/metropolitan-district-council/leeds,Leeds City Council,31/03/2023,Resources,Shared Services,Supplies and Services,Other Hired And Contracted Services,265,09/03/2023,2303-00089,0.00,50.00,R,A Star Couriers Ltd,No
Http://opendatacommunities.org/id/metropolitan-district-council/leeds,Leeds City Council,31/03/2023,Resources,Shared Services,Supplies and Services,Other Hired And Contracted Services,265,31/03/2023,2303-00090,0.00,130.00,R,A Star Couriers Ltd,No
Http://opendatacommunities.org/id/metropolitan-district-council/leeds,Leeds City Council,31/03/2023,Communities Housing and Environment,Waste Management,Employees,Training & Development,70,16/03/2023,2303-00091,0.00,241.60,R,A T Nerac Ltd,No
Http://opendatacommunities.org/id/metropolitan-district-council/leeds,Leeds City Council,31/03/2023,Communities Housing and Environment,Waste Management,Employees,Training & Development,70,17/03/2023,2303-00092,0.00,150.00,R,A T Nerac Ltd,No
Http://opendatacommunities.org/id/metropolitan-district-council/leeds,Leeds City Council,31/03/2023,Communities Housing and Environment,Waste Management,Employees,Training & Development,70,17/03/2023,2303-00093,0.00,323.80,R,A T Nerac Ltd,No
Http://opendatacommunities.org/id/metropolitan-district-council/leeds,Leeds City Council,31/03/2023,Children and Families,Social Care,Agency Payments,Services Rendered By Other Organisations,511,01/03/2023,2303-00094,0.00,501.30,R,REDACTED PERSONAL DATA,No
Http://opendatacommunities.org/id/metropolitan-district-council/leeds,Leeds City Council,31/03/2023,Children and Families,Social Care,Agency Payments,Services Rendered By Other Organisations,511,03/03/2023,2303-00095,0.00,573.60,R,REDACTED PERSONAL DATA,No
Http://opendatacommunities.org/id/metropolitan-district-council/leeds,Leeds City Council,31/03/2023,Children and Families,Social Care,Agency Payments,Services Rendered By Other Organisations,511,03/03/2023,2303-00096,0.00,100.80,R,REDACTED PERSONAL DATA,No
Http://opendatacommunities.org/id/metropolitan-district-council/leeds,Leeds City Council,31/03/2023,Strategic Landlord,HRA Housing Leeds,Capital,OTHER COSTS,7,10/03/2023,2303-00097,0.00,100.00,C,REDACTED PERSONAL DATA,No
Http://opendatacommunities.org/id/metropolitan-district-council/leeds,Leeds City Council,31/03/2023,Strategic Landlord,HRA Housing Leeds,Capital,CONSTRUCTION,3,02/03/2023,2303-00098,0.00,100.00,C,REDACTED PERSONAL DATA,No
Http://opendatacommunities.org/id/metropolitan-district-council/leeds,Leeds City Council,31/03/2023,Communities Housing and Environment,Strategic Housing Partnership & Support ,Premises,Furniture And Fittings,195,11/01/2023,2303-00099,0.00,341.99,R,A&h Bros Ltd,Yes
Http://opendatacommunities.org/id/metropolitan-district-council/leeds,Leeds City Council,31/03/2023,Resources,Leeds Building Services,Supplies and Services,Operational Materials,205,23/03/2023,2303-00100,0.00,120.00,R,A1 STAIR LIFT SERVICES,No
Http://opendatacommunities.org/id/metropolitan-district-council/leeds,Leeds City Council,31/03/2023,Resources,Leeds Building Services,Supplies and Services,Operational Materials,205,31/03/2023,2303-00101,0.00,255.90,R,A1 STAIR LIFT SERVICES,No
Http://opendatacommunities.org/id/metropolitan-district-council/leeds,Leeds City Council,31/03/2023,Resources,Leeds Building Services,Supplies and Services,Operational Materials,205,31/03/2023,2303-00102,0.00,285.50,R,A1 STAIR LIFT SERVICES,No
Http://opendatacommunities.org/id/metropolitan-district-council/leeds,Leeds City Council,31/03/2023,Communities Housing and Environment,Parks and Countryside ,Supplies and Services,Operational Furniture And Equipment,203,04/01/2023,2303-00103,0.00,308.00,R,A1mobile.Co.Uk,Yes
Http://opendatacommunities.org/id/metropolitan-district-council/leeds,Leeds City Council,31/03/2023,Communities Housing and Environment,Parks and Countryside ,Supplies and Services,Resaleable Materials,204,30/01/2023,2303-00104,0.00,218.31,R,Aagrah Foods,Yes
Http://opendatacommunities.org/id/metropolitan-district-council/leeds,Leeds City Council,31/03/2023,Adults and Health,Social Services Support Services,Internal Recharges,Legal Disbursements,411,03/03/2023,2303-00105,0.00,615.00,R,Aaqib Javed,No
Http://opendatacommunities.org/id/metropolitan-district-council/leeds,Leeds City Council,31/03/2023,Children and Families,Social Care,Internal Recharges,Legal Disbursements,411,31/03/2023,2303-00106,0.00,655.00,R,Aaqib Javed,No
Http://opendatacommunities.org/id/metropolitan-district-council/leeds,Leeds City Council,31/03/2023,Adults and Health,Services For Older People - 65 And Over,Agency Payments,Residential Care Dementia,571,01/03/2023,2303-00107,0.00,2177.12,R,Aaron Court Care Home,No
Http://opendatacommunities.org/id/metropolitan-district-council/leeds,Leeds City Council,31/03/2023,Adults and Health,Services For Older People - 65 And Over,Agency Payments,Residential Care Dementia,571,29/03/2023,2303-00108,0.00,2165.70,R,Aaron Court Care Home,No
Http://opendatacommunities.org/id/metropolitan-district-council/leeds,Leeds City Council as Accountable Body,31/03/2023,Social Services Pooled Budgets,Leeds Community Equip Store Pooled Budgt,Supplies and Services,Other Equipment,203,24/03/2023,2303-00109,0.00,659.00,R,AAT (GB) LTD,No
Http://opendatacommunities.org/id/metropolitan-district-council/leeds,Leeds City Council,31/03/2023,Children and Families,Social Care,Agency Payments,Independent Fostering Agencies,509,03/03/2023,2303-00110,0.00,3764.29,R,Abacus Fostering,No
Http://opendatacommunities.org/id/metropolitan-district-council/leeds,Leeds City Council,31/03/2023,Children and Families,Social Care,Agency Payments,Independent Fostering Agencies,509,03/03/2023,2303-00111,0.00,3764.29,R,Abacus Fostering,No
Http://opendatacommunities.org/id/metropolitan-district-council/leeds,Leeds City Council,31/03/2023,Children and Families,Social Care,Agency Payments,Independent Fostering Agencies,509,03/03/2023,2303-00112,0.00,3642.86,R,Abacus Fostering,No
Http://opendatacommunities.org/id/metropolitan-district-council/leeds,Leeds City Council,31/03/2023,Children and Families,Social Care,Agency Payments,Independent Fostering Agencies,509,31/03/2023,2303-00113,0.00,3400.00,R,Abacus Fostering,No
Http://opendatacommunities.org/id/metropolitan-district-council/leeds,Leeds City Council as Accountable Body,31/03/2023,Social Services Pooled Budgets,Jcs For People With Learning Disabilitie,Agency Payments,Residential,580,01/03/2023,2303-00114,0.00,11720.20,R,Abbey Care And Education,No
Http://opendatacommunities.org/id/metropolitan-district-council/leeds,Leeds City Council as Accountable Body,31/03/2023,Social Services Pooled Budgets,Jcs For People With Learning Disabilitie,Agency Payments,Residential,580,29/03/2023,2303-00115,0.00,11720.20,R,Abbey Care And Education,No
Http://opendatacommunities.org/id/metropolitan-district-council/leeds,Leeds City Council,31/03/2023,City Development,Libraries Arts & Heritage ,Supplies and Services,Hospitality,255,04/01/2023,2303-00116,0.00,13.50,R,Abbey House Museum,Yes
Http://opendatacommunities.org/id/metropolitan-district-council/leeds,Leeds City Council,31/03/2023,Resources,Commercial Services,Transport,Private Hire,360,01/03/2023,2303-00117,0.00,416.80,R,Abbey Multi Academy Trust,No
Http://opendatacommunities.org/id/metropolitan-district-council/leeds,Leeds City Council,31/03/2023,Children and Families,Social Care,Agency Payments,Services Rendered By Other Organisations,511,03/03/2023,2303-00118,0.00,35606.22,R,Abbey Multi Academy Trust,No
Http://opendatacommunities.org/id/metropolitan-district-council/leeds,Leeds City Council,31/03/2023,Children and Families,Social Care,Agency Payments,Services Rendered By Other Organisations,511,03/03/2023,2303-00119,0.00,705.00,R,Abbey Multi Academy Trust,No
Http://opendatacommunities.org/id/metropolitan-district-council/leeds,Leeds City Council,31/03/2023,Children and Families,Social Care,Agency Payments,Services Rendered By Other Organisations,511,03/03/2023,2303-00120,0.00,315.00,R,Abbey Multi Academy Trust,No
Http://opendatacommunities.org/id/metropolitan-district-council/leeds,Leeds City Council,31/03/2023,Children and Families,Learning,Supplies and Services,Other Hired And Contracted Services,265,17/03/2023,2303-00121,0.00,500.00,R,Abbey Multi Academy Trust,No
Http://opendatacommunities.org/id/metropolitan-district-council/leeds,Leeds City Council,31/03/2023,Children and Families,Learning,Supplies and Services,Other Hired And Contracted Services,265,28/03/2023,2303-00122,0.00,1050.00,R,Abbey Multi Academy Trust,No
Http://opendatacommunities.org/id/metropolitan-district-council/leeds,Leeds City Council,31/03/2023,Adults and Health,Services For Adults Under 65 Mental/Dis,Agency Payments,Home Care,568,30/03/2023,2303-00123,0.00,451.50,R,Abbeyfield The Dales Limited,No
Http://opendatacommunities.org/id/metropolitan-district-council/leeds,Leeds City Council,31/03/2023,Adults and Health,Services For Adults Under 65 Mental/Dis,Agency Payments,Home Care,568,31/03/2023,2303-00124,0.00,564.38,R,Abbeyfield The Dales Limited,No
Http://opendatacommunities.org/id/metropolitan-district-council/leeds,Leeds City Council,31/03/2023,Children and Families,Social Care,Agency Payments,Allowances,546,21/03/2023,2303-00125,0.00,627.93,R,ABBIE O MAHONY,No
Http://opendatacommunities.org/id/metropolitan-district-council/leeds,Leeds City Council,31/03/2023,Children and Families,Social Care,Agency Payments,Services Rendered By Other Organisations,511,03/03/2023,2303-00126,0.00,2581.20,R,REDACTED PERSONAL DATA,No
Http://opendatacommunities.org/id/metropolitan-district-council/leeds,Leeds City Council,31/03/2023,Children and Families,Social Care,Agency Payments,Services Rendered By Other Organisations,511,03/03/2023,2303-00127,0.00,529.20,R,REDACTED PERSONAL DATA,No
Http://opendatacommunities.org/id/metropolitan-district-council/leeds,Leeds City Council,31/03/2023,Children and Families,Social Care,Internal Recharges,Legal Disbursements,411,03/03/2023,2303-00128,0.00,137.40,R,Abbott Toxicology Ltd.,No
Http://opendatacommunities.org/id/metropolitan-district-council/leeds,Leeds City Council,31/03/2023,Communities Housing and Environment,Parks and Countryside ,Supplies and Services,Other Hired And Contracted Services,265,12/01/2023,2303-00129,0.00,5000.00,R,Abbotts Memorial Compa,Yes
Http://opendatacommunities.org/id/metropolitan-district-council/leeds,Leeds City Council,31/03/2023,Communities Housing and Environment,Parks and Countryside ,Supplies and Services,Other Hired And Contracted Services,265,20/01/2023,2303-00130,0.00,600.00,R,Abbotts Memorial Compa,Yes
Http://opendatacommunities.org/id/metropolitan-district-council/leeds,Leeds City Council,31/03/2023,Children and Families,Social Care,Agency Payments,General External Residential Placements,507,10/03/2023,2303-00131,0.00,14256.12,R,Abc Care And Education Ltd,No
Http://opendatacommunities.org/id/metropolitan-district-council/leeds,Leeds City Council,31/03/2023,Children and Families,Social Care,Agency Payments,Services Rendered By Other Organisations,511,01/03/2023,2303-00132,0.00,6516.90,R,ABC NURSERY AT LUFC,No
Http://opendatacommunities.org/id/metropolitan-district-council/leeds,Leeds City Council,31/03/2023,Children and Families,Social Care,Agency Payments,Services Rendered By Other Organisations,511,03/03/2023,2303-00133,0.00,10146.00,R,ABC NURSERY AT LUFC,No
Http://opendatacommunities.org/id/metropolitan-district-council/leeds,Leeds City Council,31/03/2023,Children and Families,Social Care,Agency Payments,Services Rendered By Other Organisations,511,03/03/2023,2303-00134,0.00,1956.60,R,ABC NURSERY AT LUFC,No
Http://opendatacommunities.org/id/metropolitan-district-council/leeds,Leeds City Council,31/03/2023,Children and Families,Social Care,Agency Payments,Services Rendered By Other Organisations,511,03/03/2023,2303-00135,0.00,648.00,R,ABC NURSERY AT LUFC,No
Http://opendatacommunities.org/id/metropolitan-district-council/leeds,Leeds City Council,31/03/2023,Children and Families,Social Care,Agency Payments,Services Rendered By Other Organisations,511,01/03/2023,2303-00136,0.00,2339.40,R,Abc@D'S Childcare,No
Http://opendatacommunities.org/id/metropolitan-district-council/leeds,Leeds City Council,31/03/2023,Children and Families,Social Care,Agency Payments,Services Rendered By Other Organisations,511,03/03/2023,2303-00137,0.00,8030.40,R,Abc@D'S Childcare,No
Http://opendatacommunities.org/id/metropolitan-district-council/leeds,Leeds City Council,31/03/2023,Children and Families,Social Care,Agency Payments,Services Rendered By Other Organisations,511,03/03/2023,2303-00138,0.00,691.20,R,Abc@D'S Childcare,No
Http://opendatacommunities.org/id/metropolitan-district-council/leeds,Leeds City Council,31/03/2023,Communities Housing and Environment,Elections Licensing and Registration,External Income,Admissions Booking Fees & Ticket Sales,933,20/03/2023,2303-00139,0.00,215.00,R,REDACTED PERSONAL DATA,No
Http://opendatacommunities.org/id/metropolitan-district-council/leeds,Leeds City Council,31/03/2023,Communities Housing and Environment,Customer Access,Supplies and Services,Bought In Professional Services,277,15/03/2023,2303-00140,0.00,18.00,R,Abdul Kalam,No
Http://opendatacommunities.org/id/metropolitan-district-council/leeds,Leeds City Council,31/03/2023,Communities Housing and Environment,Customer Access,Supplies and Services,Bought In Professional Services,277,22/03/2023,2303-00141,0.00,27.00,R,Abdul Kalam,No
Http://opendatacommunities.org/id/metropolitan-district-council/leeds,Leeds City Council,31/03/2023,Communities Housing and Environment,Customer Access,Supplies and Services,Bought In Professional Services,277,29/03/2023,2303-00142,0.00,18.00,R,Abdul Kalam,No
Http://opendatacommunities.org/id/metropolitan-district-council/leeds,Leeds City Council,31/03/2023,Communities Housing and Environment,Customer Access,Supplies and Services,Bought In Professional Services,277,08/03/2023,2303-00143,0.00,18.00,R,Abdulahad Denha,No
Http://opendatacommunities.org/id/metropolitan-district-council/leeds,Leeds City Council,31/03/2023,Communities Housing and Environment,Customer Access,Supplies and Services,Bought In Professional Services,277,08/03/2023,2303-00144,0.00,27.00,R,Abdulahad Denha,No
Http://opendatacommunities.org/id/metropolitan-district-council/leeds,Leeds City Council,31/03/2023,Communities Housing and Environment,Customer Access,Supplies and Services,Bought In Professional Services,277,08/03/2023,2303-00145,0.00,27.00,R,Abdulahad Denha,No
Http://opendatacommunities.org/id/metropolitan-district-council/leeds,Leeds City Council,31/03/2023,Communities Housing and Environment,Customer Access,Supplies and Services,Bought In Professional Services,277,08/03/2023,2303-00146,0.00,22.50,R,Abdulahad Denha,No
Http://opendatacommunities.org/id/metropolitan-district-council/leeds,Leeds City Council,31/03/2023,Communities Housing and Environment,Customer Access,Supplies and Services,Bought In Professional Services,277,15/03/2023,2303-00147,0.00,27.00,R,Abdulahad Denha,No
Http://opendatacommunities.org/id/metropolitan-district-council/leeds,Leeds City Council,31/03/2023,Communities Housing and Environment,Customer Access,Supplies and Services,Bought In Professional Services,277,22/03/2023,2303-00148,0.00,18.00,R,Abdulahad Denha,No
Http://opendatacommunities.org/id/metropolitan-district-council/leeds,Leeds City Council,31/03/2023,Communities Housing and Environment,Customer Access,Supplies and Services,Bought In Professional Services,277,22/03/2023,2303-00149,0.00,18.00,R,Abdulahad Denha,No
Http://opendatacommunities.org/id/metropolitan-district-council/leeds,Leeds City Council,31/03/2023,Communities Housing and Environment,Customer Access,Supplies and Services,Bought In Professional Services,277,22/03/2023,2303-00150,0.00,9.00,R,Abdulahad Denha,No
Http://opendatacommunities.org/id/metropolitan-district-council/leeds,Leeds City Council,31/03/2023,Communities Housing and Environment,Customer Access,Supplies and Services,Bought In Professional Services,277,29/03/2023,2303-00151,0.00,18.00,R,Abdulahad Denha,No
Http://opendatacommunities.org/id/metropolitan-district-council/leeds,Leeds City Council,31/03/2023,Communities Housing and Environment,Customer Access,Supplies and Services,Bought In Professional Services,277,29/03/2023,2303-00152,0.00,27.00,R,Abdulahad Denha,No
Http://opendatacommunities.org/id/metropolitan-district-council/leeds,Leeds City Council,31/03/2023,Communities Housing and Environment,Customer Access,Supplies and Services,Bought In Professional Services,277,29/03/2023,2303-00153,0.00,18.00,R,Abdulahad Denha,No
Http://opendatacommunities.org/id/metropolitan-district-council/leeds,Leeds City Council,31/03/2023,Communities Housing and Environment,Customer Access,Supplies and Services,Bought In Professional Services,277,29/03/2023,2303-00154,0.00,18.00,R,Abdulahad Denha,No
Http://opendatacommunities.org/id/metropolitan-district-council/leeds,Leeds City Council,31/03/2023,Communities Housing and Environment,Benefits Wlefare and Poverty,Supplies and Services,Grant Related Expenditure,290,24/03/2023,2303-00155,0.00,70.00,R,REDACTED PERSONAL DATA,No
Http://opendatacommunities.org/id/metropolitan-district-council/leeds,Leeds City Council,31/03/2023,Communities Housing and Environment,Customer Access,Supplies and Services,Bought In Professional Services,277,01/03/2023,2303-00156,0.00,18.00,R,Abdulrahim Dastyar,No
Http://opendatacommunities.org/id/metropolitan-district-council/leeds,Leeds City Council,31/03/2023,Communities Housing and Environment,Customer Access,Supplies and Services,Bought In Professional Services,277,01/03/2023,2303-00157,0.00,18.00,R,Abdulrahim Dastyar,No
Http://opendatacommunities.org/id/metropolitan-district-council/leeds,Leeds City Council,31/03/2023,Communities Housing and Environment,Customer Access,Supplies and Services,Bought In Professional Services,277,01/03/2023,2303-00158,0.00,9.00,R,Abdulrahim Dastyar,No
Http://opendatacommunities.org/id/metropolitan-district-council/leeds,Leeds City Council,31/03/2023,Communities Housing and Environment,Customer Access,Supplies and Services,Bought In Professional Services,277,01/03/2023,2303-00159,0.00,18.00,R,Abdulrahim Dastyar,No
Http://opendatacommunities.org/id/metropolitan-district-council/leeds,Leeds City Council,31/03/2023,Communities Housing and Environment,Customer Access,Supplies and Services,Bought In Professional Services,277,08/03/2023,2303-00160,0.00,18.00,R,Abdulrahim Dastyar,No
Http://opendatacommunities.org/id/metropolitan-district-council/leeds,Leeds City Council,31/03/2023,Communities Housing and Environment,Customer Access,Supplies and Services,Bought In Professional Services,277,08/03/2023,2303-00161,0.00,18.00,R,Abdulrahim Dastyar,No
Http://opendatacommunities.org/id/metropolitan-district-council/leeds,Leeds City Council,31/03/2023,Communities Housing and Environment,Customer Access,Supplies and Services,Bought In Professional Services,277,15/03/2023,2303-00162,0.00,18.00,R,Abdulrahim Dastyar,No
Http://opendatacommunities.org/id/metropolitan-district-council/leeds,Leeds City Council,31/03/2023,Communities Housing and Environment,Customer Access,Supplies and Services,Bought In Professional Services,277,22/03/2023,2303-00163,0.00,18.00,R,Abdulrahim Dastyar,No
Http://opendatacommunities.org/id/metropolitan-district-council/leeds,Leeds City Council,31/03/2023,Communities Housing and Environment,Customer Access,Supplies and Services,Bought In Professional Services,277,29/03/2023,2303-00164,0.00,18.00,R,Abdulrahim Dastyar,No
Http://opendatacommunities.org/id/metropolitan-district-council/leeds,Leeds City Council,31/03/2023,Communities Housing and Environment,Customer Access,Supplies and Services,Bought In Professional Services,277,29/03/2023,2303-00165,0.00,27.00,R,Abdulrahim Dastyar,No
Http://opendatacommunities.org/id/metropolitan-district-council/leeds,Leeds City Council,31/03/2023,Communities Housing and Environment,Customer Access,Supplies and Services,Bought In Professional Services,277,29/03/2023,2303-00166,0.00,18.00,R,Abdulrahim Dastyar,No
Http://opendatacommunities.org/id/metropolitan-district-council/leeds,Leeds City Council,31/03/2023,Children and Families,Social Care,Agency Payments,Placement Support,550,10/03/2023,2303-00167,0.00,182.00,R,Aberford Childcare Services,No
Http://opendatacommunities.org/id/metropolitan-district-council/leeds,Leeds City Council,31/03/2023,Children and Families,Social Care,Agency Payments,Placement Support,550,10/03/2023,2303-00168,0.00,182.00,R,Aberford Childcare Services,No
Http://opendatacommunities.org/id/metropolitan-district-council/leeds,Leeds City Council,31/03/2023,Children and Families,Social Care,Agency Payments,Placement Support,550,10/03/2023,2303-00169,0.00,338.00,R,Aberford Childcare Services,No
Http://opendatacommunities.org/id/metropolitan-district-council/leeds,Leeds City Council,31/03/2023,Children and Families,Social Care,Agency Payments,Placement Support,550,10/03/2023,2303-00170,0.00,338.00,R,Aberford Childcare Services,No
Http://opendatacommunities.org/id/metropolitan-district-council/leeds,Leeds City Council,31/03/2023,Children and Families,Social Care,Agency Payments,Placement Support,550,10/03/2023,2303-00171,0.00,464.00,R,Aberford Childcare Services,No
Http://opendatacommunities.org/id/metropolitan-district-council/leeds,Leeds City Council,31/03/2023,Adults and Health,Services For Older People - 65 And Over,Agency Payments,Nursing Home,570,01/03/2023,2303-00172,0.00,32351.34,R,Aberford Hall,No
Http://opendatacommunities.org/id/metropolitan-district-council/leeds,Leeds City Council,31/03/2023,Adults and Health,Services For Older People - 65 And Over,Agency Payments,Nursing Care Dementia,574,01/03/2023,2303-00173,0.00,2186.00,R,Aberford Hall,No
Http://opendatacommunities.org/id/metropolitan-district-council/leeds,Leeds City Council,31/03/2023,Adults and Health,Services For Older People - 65 And Over,Agency Payments,Residential,580,01/03/2023,2303-00174,0.00,888.10,R,Aberford Hall,No
Http://opendatacommunities.org/id/metropolitan-district-council/leeds,Leeds City Council,31/03/2023,Adults and Health,Services For Older People Under 65 P/Dis,Agency Payments,Nursing Home,570,01/03/2023,2303-00175,0.00,2768.00,R,Aberford Hall,No
Http://opendatacommunities.org/id/metropolitan-district-council/leeds,Leeds City Council,31/03/2023,Adults and Health,Services For Older People - 65 And Over,Agency Payments,Nursing Home,570,29/03/2023,2303-00176,0.00,30386.08,R,Aberford Hall,No
Http://opendatacommunities.org/id/metropolitan-district-council/leeds,Leeds City Council,31/03/2023,Adults and Health,Services For Older People - 65 And Over,Agency Payments,Nursing Care Dementia,574,29/03/2023,2303-00177,0.00,-30367.71,R,Aberford Hall,No
Http://opendatacommunities.org/id/metropolitan-district-council/leeds,Leeds City Council,31/03/2023,Adults and Health,Services For Older People Under 65 P/Dis,Agency Payments,Nursing Home,570,29/03/2023,2303-00178,0.00,2768.00,R,Aberford Hall,No
Http://opendatacommunities.org/id/metropolitan-district-council/leeds,Leeds City Council,31/03/2023,Children and Families,Learning,Agency Payments,SEN Placements,566,10/03/2023,2303-00179,0.00,1120.00,R,Aberford Village Hall,No
Http://opendatacommunities.org/id/metropolitan-district-council/leeds,Leeds City Council,31/03/2023,Children and Families,Learning,Agency Payments,SEN Placements,566,10/03/2023,2303-00180,0.00,1120.00,R,Aberford Village Hall,No
Http://opendatacommunities.org/id/metropolitan-district-council/leeds,Leeds City Council,31/03/2023,Children and Families,Learning,Agency Payments,SEN Placements,566,10/03/2023,2303-00181,0.00,1120.00,R,Aberford Village Hall,No
Http://opendatacommunities.org/id/metropolitan-district-council/leeds,Leeds City Council,31/03/2023,Children and Families,Learning,Agency Payments,SEN Placements,566,29/03/2023,2303-00182,0.00,960.00,R,Aberford Village Hall,No
Http://opendatacommunities.org/id/metropolitan-district-council/leeds,Leeds City Council,31/03/2023,Resources,Leeds Building Services,Supplies and Services,Operational Materials,205,01/03/2023,2303-00183,0.00,49.75,R,ABI GARAGE DOORS LTD,No
Http://opendatacommunities.org/id/metropolitan-district-council/leeds,Leeds City Council,31/03/2023,Resources,Leeds Building Services,Supplies and Services,Operational Materials,205,01/03/2023,2303-00184,0.00,13.10,R,ABI GARAGE DOORS LTD,No
Http://opendatacommunities.org/id/metropolitan-district-council/leeds,Leeds City Council,31/03/2023,Resources,Leeds Building Services,Supplies and Services,Operational Materials,205,07/03/2023,2303-00185,0.00,437.20,R,ABI GARAGE DOORS LTD,No
Http://opendatacommunities.org/id/metropolitan-district-council/leeds,Leeds City Council,31/03/2023,Resources,Leeds Building Services,Supplies and Services,Operational Materials,205,07/03/2023,2303-00186,0.00,437.20,R,ABI GARAGE DOORS LTD,No
Http://opendatacommunities.org/id/metropolitan-district-council/leeds,Leeds City Council,31/03/2023,Resources,Leeds Building Services,Supplies and Services,Operational Materials,205,07/03/2023,2303-00187,0.00,390.88,R,ABI GARAGE DOORS LTD,No
Http://opendatacommunities.org/id/metropolitan-district-council/leeds,Leeds City Council,31/03/2023,Resources,Leeds Building Services,Supplies and Services,Operational Materials,205,07/03/2023,2303-00188,0.00,390.88,R,ABI GARAGE DOORS LTD,No
Http://opendatacommunities.org/id/metropolitan-district-council/leeds,Leeds City Council,31/03/2023,Resources,Leeds Building Services,Supplies and Services,Operational Materials,205,07/03/2023,2303-00189,0.00,390.88,R,ABI GARAGE DOORS LTD,No
Http://opendatacommunities.org/id/metropolitan-district-council/leeds,Leeds City Council,31/03/2023,Resources,Leeds Building Services,Supplies and Services,Operational Materials,205,07/03/2023,2303-00190,0.00,390.88,R,ABI GARAGE DOORS LTD,No
Http://opendatacommunities.org/id/metropolitan-district-council/leeds,Leeds City Council,31/03/2023,Resources,Leeds Building Services,Supplies and Services,Operational Materials,205,07/03/2023,2303-00191,0.00,390.88,R,ABI GARAGE DOORS LTD,No
Http://opendatacommunities.org/id/metropolitan-district-council/leeds,Leeds City Council,31/03/2023,Resources,Leeds Building Services,Supplies and Services,Operational Materials,205,07/03/2023,2303-00192,0.00,390.88,R,ABI GARAGE DOORS LTD,No
Http://opendatacommunities.org/id/metropolitan-district-council/leeds,Leeds City Council,31/03/2023,Resources,Leeds Building Services,Supplies and Services,Operational Materials,205,07/03/2023,2303-00193,0.00,390.88,R,ABI GARAGE DOORS LTD,No
Http://opendatacommunities.org/id/metropolitan-district-council/leeds,Leeds City Council,31/03/2023,Resources,Leeds Building Services,Supplies and Services,Operational Materials,205,07/03/2023,2303-00194,0.00,390.88,R,ABI GARAGE DOORS LTD,No
Http://opendatacommunities.org/id/metropolitan-district-council/leeds,Leeds City Council,31/03/2023,Resources,Leeds Building Services,Supplies and Services,Operational Materials,205,07/03/2023,2303-00195,0.00,390.88,R,ABI GARAGE DOORS LTD,No
Http://opendatacommunities.org/id/metropolitan-district-council/leeds,Leeds City Council,31/03/2023,Resources,Leeds Building Services,Supplies and Services,Operational Materials,205,07/03/2023,2303-00196,0.00,390.88,R,ABI GARAGE DOORS LTD,No
Http://opendatacommunities.org/id/metropolitan-district-council/leeds,Leeds City Council,31/03/2023,Resources,Leeds Building Services,Supplies and Services,Operational Materials,205,07/03/2023,2303-00197,0.00,390.88,R,ABI GARAGE DOORS LTD,No
Http://opendatacommunities.org/id/metropolitan-district-council/leeds,Leeds City Council,31/03/2023,Resources,Leeds Building Services,Supplies and Services,Operational Materials,205,07/03/2023,2303-00198,0.00,390.88,R,ABI GARAGE DOORS LTD,No
Http://opendatacommunities.org/id/metropolitan-district-council/leeds,Leeds City Council,31/03/2023,Resources,Leeds Building Services,Supplies and Services,Operational Materials,205,09/03/2023,2303-00199,0.00,29.77,R,ABI GARAGE DOORS LTD,No
Http://opendatacommunities.org/id/metropolitan-district-council/leeds,Leeds City Council,31/03/2023,Resources,Leeds Building Services,Supplies and Services,Operational Materials,205,10/03/2023,2303-00200,0.00,390.88,R,ABI GARAGE DOORS LTD,No
Http://opendatacommunities.org/id/metropolitan-district-council/leeds,Leeds City Council,31/03/2023,Resources,Leeds Building Services,Supplies and Services,Operational Materials,205,27/03/2023,2303-00201,0.00,390.88,R,ABI GARAGE DOORS LTD,No
Http://opendatacommunities.org/id/metropolitan-district-council/leeds,Leeds City Council,31/03/2023,Children and Families,Social Care,Agency Payments,Allowances,546,09/03/2023,2303-00202,0.00,18.00,R,REDACTED PERSONAL DATA,No
Http://opendatacommunities.org/id/metropolitan-district-council/leeds,Leeds City Council,31/03/2023,Children and Families,Social Care,Appropriations,Leaving Care Allowances,634,14/03/2023,2303-00203,0.00,9.58,R,REDACTED PERSONAL DATA,No
Http://opendatacommunities.org/id/metropolitan-district-council/leeds,Leeds City Council,31/03/2023,Children and Families,Social Care ,Agency Payments,Section 17,551,26/01/2023,2303-00204,0.00,108.95,R,Abl Retail Ltd,Yes
Http://opendatacommunities.org/id/metropolitan-district-council/leeds,Leeds City Council,31/03/2023,Children and Families,Social Care,Agency Payments,General External Residential Placements,507,01/03/2023,2303-00205,0.00,17692.01,R,Absolute Children's Services Ltd,No
Http://opendatacommunities.org/id/metropolitan-district-council/leeds,Leeds City Council,31/03/2023,Children and Families,Social Care,Agency Payments,General External Residential Placements,507,30/03/2023,2303-00206,0.00,15979.88,R,Absolute Children's Services Ltd,No
Http://opendatacommunities.org/id/metropolitan-district-council/leeds,Leeds City Council,31/03/2023,Children and Families,Social Care,Agency Payments,Services Rendered By Other Organisations,511,01/03/2023,2303-00207,0.00,8856.30,R,Academies Enterprise Trust (AET),No
Http://opendatacommunities.org/id/metropolitan-district-council/leeds,Leeds City Council,31/03/2023,Children and Families,Social Care,Agency Payments,Services Rendered By Other Organisations,511,03/03/2023,2303-00208,0.00,35921.70,R,Academies Enterprise Trust (AET),No
Http://opendatacommunities.org/id/metropolitan-district-council/leeds,Leeds City Council,31/03/2023,Children and Families,Social Care,Agency Payments,Services Rendered By Other Organisations,511,03/03/2023,2303-00209,0.00,2790.00,R,Academies Enterprise Trust (AET),No
Http://opendatacommunities.org/id/metropolitan-district-council/leeds,Leeds City Council,31/03/2023,Children and Families,Social Care,Agency Payments,Services Rendered By Other Organisations,511,03/03/2023,2303-00210,0.00,108.00,R,Academies Enterprise Trust (AET),No
Http://opendatacommunities.org/id/metropolitan-district-council/leeds,Leeds City Council,31/03/2023,Adults and Health,Social Services Support Services,Employees,Training & Development,70,01/03/2023,2303-00211,0.00,860.00,R,ACAS,No
Http://opendatacommunities.org/id/metropolitan-district-council/leeds,Leeds City Council,31/03/2023,Communities Housing and Environment,Elections Licensing and Registration,External Income,Admissions Booking Fees & Ticket Sales,933,30/03/2023,2303-00212,0.00,150.00,R,Access Committee For Leeds (Acl),No
Http://opendatacommunities.org/id/metropolitan-district-council/leeds,Leeds City Council,31/03/2023,Strategic Landlord,HRA Housing Leeds,Capital,OTHER COSTS,7,09/03/2023,2303-00213,0.00,2103.94,C,ACCESS LOCKSMITHS (LEEDS) LIMITED,No
Http://opendatacommunities.org/id/metropolitan-district-council/leeds,Leeds City Council,31/03/2023,Strategic Landlord,HRA Housing Leeds,Capital,OTHER COSTS,7,16/03/2023,2303-00214,0.00,432.02,C,ACCESS LOCKSMITHS (LEEDS) LIMITED,No
Http://opendatacommunities.org/id/metropolitan-district-council/leeds,Leeds City Council,31/03/2023,City Development,Libraries Arts & Heritage,Supplies and Services,Bought In Professional Services,277,21/03/2023,2303-00215,0.00,500.00,R,ACCESS MOVING IMAGE LTD,No
Http://opendatacommunities.org/id/metropolitan-district-council/leeds,Leeds City Council,31/03/2023,Children and Families,Resources & Strategy,Employees,Training & Development,70,01/03/2023,2303-00216,0.00,950.00,R,Access Uk Ltd,No
Http://opendatacommunities.org/id/metropolitan-district-council/leeds,Leeds City Council,31/03/2023,Resources,Technology,Supplies and Services,Computer Software & Equipment,214,30/03/2023,2303-00217,0.00,24758.00,R,Access Uk Ltd,No
Http://opendatacommunities.org/id/metropolitan-district-council/leeds,Leeds City Council,31/03/2023,Communities Housing and Environment,Environmental Action (City Centre),Supplies and Services,Other Hired And Contracted Services,265,09/03/2023,2303-00218,0.00,468.00,R,AccessCCTV,No
Http://opendatacommunities.org/id/metropolitan-district-council/leeds,Leeds City Council,31/03/2023,Insurance,Insurance,Supplies and Services,Insurance Claims,248,16/03/2023,2303-00219,0.00,2550.00,R,Accountant General Of The Senior Courts,No
Http://opendatacommunities.org/id/metropolitan-district-council/leeds,Leeds City Council,31/03/2023,Insurance,Insurance,Supplies and Services,Insurance Claims,248,16/03/2023,2303-00220,0.00,4015.00,R,Accountant General Of The Senior Courts,No
Http://opendatacommunities.org/id/metropolitan-district-council/leeds,Leeds City Council,31/03/2023,City Development,Recreation ,Supplies and Services,Operational Furniture And Equipment,203,04/01/2023,2303-00221,0.00,21.94,R,Accu.Co.Uk,Yes
Http://opendatacommunities.org/id/metropolitan-district-council/leeds,Leeds City Council,31/03/2023,City Development,Recreation,Transport,External Hire -Occasional,304,03/03/2023,2303-00222,0.00,116.20,R,ACE CONTAINER SERVICES LIMITED,No
Http://opendatacommunities.org/id/metropolitan-district-council/leeds,Leeds City Council,31/03/2023,City Development,Recreation,Transport,External Hire -Occasional,304,31/03/2023,2303-00223,0.00,128.65,R,ACE CONTAINER SERVICES LIMITED,No
Http://opendatacommunities.org/id/metropolitan-district-council/leeds,Leeds City Council,31/03/2023,Children and Families,Resources & Strategy,Employees,Training Costs,71,10/03/2023,2303-00224,0.00,390.00,R,ACE Education Training LLP,No
Http://opendatacommunities.org/id/metropolitan-district-council/leeds,Leeds City Council,31/03/2023,Resources,Leeds Building Services,Supplies and Services,Other Hired And Contracted Services,265,10/03/2023,2303-00225,0.00,128.47,R,Ace Elevators Limited,No
Http://opendatacommunities.org/id/metropolitan-district-council/leeds,Leeds City Council,31/03/2023,Resources,Leeds Building Services,Supplies and Services,Other Hired And Contracted Services,265,10/03/2023,2303-00226,0.00,1000.00,R,Ace Elevators Limited,No
Http://opendatacommunities.org/id/metropolitan-district-council/leeds,Leeds City Council,31/03/2023,Resources,Leeds Building Services,Supplies and Services,Other Hired And Contracted Services,265,22/03/2023,2303-00227,0.00,1840.00,R,Ace Elevators Limited,No
Http://opendatacommunities.org/id/metropolitan-district-council/leeds,Leeds City Council,31/03/2023,Resources,Leeds Building Services,Supplies and Services,Other Hired And Contracted Services,265,29/03/2023,2303-00228,0.00,1797.70,R,Ace Elevators Limited,No
Http://opendatacommunities.org/id/metropolitan-district-council/leeds,Leeds City Council,31/03/2023,Children and Families,Learning,Agency Payments,SEN Placements,566,02/03/2023,2303-00229,0.00,20455.00,R,ACKWORTH SCHOOL,No
Http://opendatacommunities.org/id/metropolitan-district-council/leeds,Leeds City Council,31/03/2023,Children and Families,Learning,Agency Payments,SEN Placements,566,02/03/2023,2303-00230,0.00,20455.00,R,ACKWORTH SCHOOL,No
Http://opendatacommunities.org/id/metropolitan-district-council/leeds,Leeds City Council,31/03/2023,Children and Families,Learning,Agency Payments,SEN Placements,566,02/03/2023,2303-00231,0.00,20455.00,R,ACKWORTH SCHOOL,No
Http://opendatacommunities.org/id/metropolitan-district-council/leeds,Leeds City Council,31/03/2023,Children and Families,Learning,Agency Payments,SEN Placements,566,02/03/2023,2303-00232,0.00,20455.00,R,ACKWORTH SCHOOL,No
Http://opendatacommunities.org/id/metropolitan-district-council/leeds,Leeds City Council,31/03/2023,Children and Families,Learning,Agency Payments,SEN Placements,566,23/03/2023,2303-00233,0.00,20455.00,R,ACKWORTH SCHOOL,No
Http://opendatacommunities.org/id/metropolitan-district-council/leeds,Leeds City Council,31/03/2023,Children and Families,Learning,Agency Payments,SEN Placements,566,23/03/2023,2303-00234,0.00,20455.00,R,ACKWORTH SCHOOL,No
Http://opendatacommunities.org/id/metropolitan-district-council/leeds,Leeds City Council,31/03/2023,Communities Housing and Environment,Parks and Countryside ,Supplies and Services,Other Hired And Contracted Services,265,17/01/2023,2303-00235,0.00,127.25,R,Acme Facilities Group,Yes
Http://opendatacommunities.org/id/metropolitan-district-council/leeds,Leeds City Council,31/03/2023,Communities Housing and Environment,Parks and Countryside ,Premises,Maintenance Of Buildings,101,20/01/2023,2303-00236,0.00,342.75,R,Acme Facilities Group,Yes
Http://opendatacommunities.org/id/metropolitan-district-council/leeds,Leeds City Council,31/03/2023,Communities Housing and Environment,Parks and Countryside ,Supplies and Services,Other Hired And Contracted Services,265,27/01/2023,2303-00237,0.00,151.01,R,Acme Facilities Group,Yes
Http://opendatacommunities.org/id/metropolitan-district-council/leeds,Leeds City Council,31/03/2023,City Development,Recreation,Supplies and Services,Other Hired And Contracted Services,265,24/03/2023,2303-00238,0.00,241.50,R,Acoo Review Ltd,No
Http://opendatacommunities.org/id/metropolitan-district-council/leeds,Leeds City Council,31/03/2023,Resources,Leeds Building Services,Supplies and Services,Other Hired And Contracted Services,265,01/03/2023,2303-00239,0.00,812.50,R,Acorn Analytical Services Limited,No
Http://opendatacommunities.org/id/metropolitan-district-council/leeds,Leeds City Council,31/03/2023,Resources,Leeds Building Services,Supplies and Services,Other Hired And Contracted Services,265,10/03/2023,2303-00240,0.00,169.00,R,Acorn Analytical Services Limited,No
Http://opendatacommunities.org/id/metropolitan-district-council/leeds,Leeds City Council,31/03/2023,Resources,Leeds Building Services,Supplies and Services,Other Hired And Contracted Services,265,29/03/2023,2303-00241,0.00,1267.50,R,Acorn Analytical Services Limited,No
Http://opendatacommunities.org/id/metropolitan-district-council/leeds,Leeds City Council as Accountable Body,31/03/2023,Social Services Pooled Budgets,Jcs For People With Learning Disabilitie,Agency Payments,Residential,580,01/03/2023,2303-00242,0.00,55436.00,R,Acorn Care & Education Limited,No
Http://opendatacommunities.org/id/metropolitan-district-council/leeds,Leeds City Council as Accountable Body,31/03/2023,Social Services Pooled Budgets,Jcs For People With Learning Disabilitie,Agency Payments,Residential,580,01/03/2023,2303-00243,0.00,103957.36,R,Acorn Care & Education Limited,No
Http://opendatacommunities.org/id/metropolitan-district-council/leeds,Leeds City Council as Accountable Body,31/03/2023,Social Services Pooled Budgets,Jcs For People With Learning Disabilitie,Agency Payments,Residential,580,29/03/2023,2303-00244,0.00,55436.00,R,Acorn Care & Education Limited,No
Http://opendatacommunities.org/id/metropolitan-district-council/leeds,Leeds City Council as Accountable Body,31/03/2023,Social Services Pooled Budgets,Jcs For People With Learning Disabilitie,Agency Payments,Residential,580,29/03/2023,2303-00245,0.00,103935.16,R,Acorn Care & Education Limited,No
Http://opendatacommunities.org/id/metropolitan-district-council/leeds,Leeds City Council,31/03/2023,Children and Families,Social Care,Agency Payments,General External Residential Placements,507,01/03/2023,2303-00246,0.00,17249.29,R,Acorn Care & Education Ltd (Sales),No
Http://opendatacommunities.org/id/metropolitan-district-council/leeds,Leeds City Council,31/03/2023,Children and Families,Social Care,Agency Payments,General External Residential Placements,507,02/03/2023,2303-00247,0.00,12955.71,R,Acorn Care & Education Ltd (Sales),No
Http://opendatacommunities.org/id/metropolitan-district-council/leeds,Leeds City Council,31/03/2023,Children and Families,Social Care,Agency Payments,General External Residential Placements,507,02/03/2023,2303-00248,0.00,13387.57,R,Acorn Care & Education Ltd (Sales),No
Http://opendatacommunities.org/id/metropolitan-district-council/leeds,Leeds City Council,31/03/2023,Children and Families,Social Care,Agency Payments,General External Residential Placements,507,02/03/2023,2303-00249,0.00,13387.57,R,Acorn Care & Education Ltd (Sales),No
Http://opendatacommunities.org/id/metropolitan-district-council/leeds,Leeds City Council,31/03/2023,Children and Families,Social Care,Agency Payments,General External Residential Placements,507,02/03/2023,2303-00250,0.00,9210.00,R,Acorn Care & Education Ltd (Sales),No
Http://opendatacommunities.org/id/metropolitan-district-council/leeds,Leeds City Council,31/03/2023,Children and Families,Social Care,Agency Payments,General External Residential Placements,507,02/03/2023,2303-00251,0.00,9517.00,R,Acorn Care & Education Ltd (Sales),No
Http://opendatacommunities.org/id/metropolitan-district-council/leeds,Leeds City Council,31/03/2023,Children and Families,Social Care,Agency Payments,General External Residential Placements,507,02/03/2023,2303-00252,0.00,9517.00,R,Acorn Care & Education Ltd (Sales),No
Http://opendatacommunities.org/id/metropolitan-district-council/leeds,Leeds City Council,31/03/2023,Children and Families,Social Care,Agency Payments,General External Residential Placements,507,02/03/2023,2303-00253,0.00,19048.75,R,Acorn Care & Education Ltd (Sales),No
Http://opendatacommunities.org/id/metropolitan-district-council/leeds,Leeds City Council,31/03/2023,Children and Families,Social Care,Agency Payments,General External Residential Placements,507,02/03/2023,2303-00254,0.00,19048.75,R,Acorn Care & Education Ltd (Sales),No
Http://opendatacommunities.org/id/metropolitan-district-council/leeds,Leeds City Council,31/03/2023,Children and Families,Social Care,Agency Payments,General External Residential Placements,507,02/03/2023,2303-00255,0.00,18635.34,R,Acorn Care & Education Ltd (Sales),No
Http://opendatacommunities.org/id/metropolitan-district-council/leeds,Leeds City Council,31/03/2023,Children and Families,Social Care,Agency Payments,General External Residential Placements,507,02/03/2023,2303-00256,0.00,18635.34,R,Acorn Care & Education Ltd (Sales),No
Http://opendatacommunities.org/id/metropolitan-district-council/leeds,Leeds City Council,31/03/2023,Children and Families,Learning,Agency Payments,SEN Placements,566,08/03/2023,2303-00257,0.00,21864.61,R,Acorn Care & Education Ltd (Sales),No
Http://opendatacommunities.org/id/metropolitan-district-council/leeds,Leeds City Council,31/03/2023,Children and Families,Learning,Agency Payments,SEN Placements,566,08/03/2023,2303-00258,0.00,21864.62,R,Acorn Care & Education Ltd (Sales),No
Http://opendatacommunities.org/id/metropolitan-district-council/leeds,Leeds City Council,31/03/2023,Children and Families,Social Care,Agency Payments,General External Residential Placements,507,30/03/2023,2303-00259,0.00,17205.32,R,Acorn Care & Education Ltd (Sales),No
Http://opendatacommunities.org/id/metropolitan-district-council/leeds,Leeds City Council,31/03/2023,Children and Families,Social Care,Agency Payments,General External Residential Placements,507,30/03/2023,2303-00260,0.00,12092.00,R,Acorn Care & Education Ltd (Sales),No
Http://opendatacommunities.org/id/metropolitan-district-council/leeds,Leeds City Council,31/03/2023,Children and Families,Social Care,Agency Payments,General External Residential Placements,507,30/03/2023,2303-00261,0.00,8596.00,R,Acorn Care & Education Ltd (Sales),No
Http://opendatacommunities.org/id/metropolitan-district-council/leeds,Leeds City Council,31/03/2023,Children and Families,Social Care,Agency Payments,General External Residential Placements,507,30/03/2023,2303-00262,0.00,16831.92,R,Acorn Care & Education Ltd (Sales),No
Http://opendatacommunities.org/id/metropolitan-district-council/leeds,Leeds City Council,31/03/2023,Children and Families,Social Care,Agency Payments,General External Residential Placements,507,30/03/2023,2303-00263,0.00,15580.00,R,Acorn Care & Education Ltd (Sales),No
Http://opendatacommunities.org/id/metropolitan-district-council/leeds,Leeds City Council,31/03/2023,Adults and Health,Services For Older People Under 65 P/Dis,Agency Payments,Nursing Home,570,01/03/2023,2303-00264,0.00,3500.00,R,Acorn Care Home,No
Http://opendatacommunities.org/id/metropolitan-district-council/leeds,Leeds City Council,31/03/2023,Adults and Health,Services For Older People Under 65 P/Dis,Agency Payments,Nursing Home,570,29/03/2023,2303-00265,0.00,3500.00,R,Acorn Care Home,No
Http://opendatacommunities.org/id/metropolitan-district-council/leeds,Leeds City Council,31/03/2023,Children and Families,Social Care,Agency Payments,Services Rendered By Other Organisations,511,01/03/2023,2303-00266,0.00,668.40,R,ACORNS NURSERY,No
Http://opendatacommunities.org/id/metropolitan-district-council/leeds,Leeds City Council,31/03/2023,Children and Families,Social Care,Agency Payments,Services Rendered By Other Organisations,511,03/03/2023,2303-00267,0.00,8890.80,R,ACORNS NURSERY,No
Http://opendatacommunities.org/id/metropolitan-district-council/leeds,Leeds City Council,31/03/2023,Children and Families,Social Care,Agency Payments,Services Rendered By Other Organisations,511,03/03/2023,2303-00268,0.00,100.80,R,ACORNS NURSERY,No
Http://opendatacommunities.org/id/metropolitan-district-council/leeds,Leeds City Council,31/03/2023,Children and Families,Social Care,Agency Payments,Services Rendered By Other Organisations,511,03/03/2023,2303-00269,0.00,108.00,R,ACORNS NURSERY,No
Http://opendatacommunities.org/id/metropolitan-district-council/leeds,Leeds City Council,31/03/2023,Adults and Health,Assessment And Care Management,Agency Payments,Nursing Home,570,01/03/2023,2303-00270,0.00,1827.32,R,Acre Green,No
Http://opendatacommunities.org/id/metropolitan-district-council/leeds,Leeds City Council,31/03/2023,Adults and Health,Services For Older People - 65 And Over,Agency Payments,Nursing Home,570,01/03/2023,2303-00271,0.00,16260.77,R,Acre Green,No
Http://opendatacommunities.org/id/metropolitan-district-council/leeds,Leeds City Council,31/03/2023,Adults and Health,Services For Older People - 65 And Over,Agency Payments,Residential,580,01/03/2023,2303-00272,0.00,4180.20,R,Acre Green,No
Http://opendatacommunities.org/id/metropolitan-district-council/leeds,Leeds City Council,31/03/2023,Adults and Health,Services For Older People Under 65 P/Dis,Agency Payments,Residential,580,01/03/2023,2303-00273,0.00,1892.20,R,Acre Green,No
Http://opendatacommunities.org/id/metropolitan-district-council/leeds,Leeds City Council,31/03/2023,Adults and Health,Services For Older People - 65 And Over,Agency Payments,Nursing Home,570,29/03/2023,2303-00274,0.00,32140.40,R,Acre Green,No
Http://opendatacommunities.org/id/metropolitan-district-council/leeds,Leeds City Council,31/03/2023,Adults and Health,Services For Older People - 65 And Over,Agency Payments,Residential,580,29/03/2023,2303-00275,0.00,4148.50,R,Acre Green,No
Http://opendatacommunities.org/id/metropolitan-district-council/leeds,Leeds City Council,31/03/2023,Adults and Health,Services For Older People Under 65 P/Dis,Agency Payments,Residential,580,29/03/2023,2303-00276,0.00,1873.60,R,Acre Green,No
Http://opendatacommunities.org/id/metropolitan-district-council/leeds,Leeds City Council,31/03/2023,Children and Families,Social Care,Agency Payments,Services Rendered By Other Organisations,511,01/03/2023,2303-00277,0.00,668.40,R,Acre Wood Day Nursery,No
Http://opendatacommunities.org/id/metropolitan-district-council/leeds,Leeds City Council,31/03/2023,Children and Families,Social Care,Agency Payments,Services Rendered By Other Organisations,511,03/03/2023,2303-00278,0.00,10324.80,R,Acre Wood Day Nursery,No
Http://opendatacommunities.org/id/metropolitan-district-council/leeds,Leeds City Council,31/03/2023,Children and Families,Social Care,Agency Payments,Services Rendered By Other Organisations,511,03/03/2023,2303-00279,0.00,1263.60,R,Acre Wood Day Nursery,No
Http://opendatacommunities.org/id/metropolitan-district-council/leeds,Leeds City Council,31/03/2023,Children and Families,Social Care,Agency Payments,Services Rendered By Other Organisations,511,03/03/2023,2303-00280,0.00,108.00,R,Acre Wood Day Nursery,No
Http://opendatacommunities.org/id/metropolitan-district-council/leeds,Leeds City Council,31/03/2023,Adults and Health,Services For Adults Under 65 Mental/Dis,Agency Payments,Fees - Level 4,520,24/03/2023,2303-00281,0.00,1330.00,R,Action First Assessments Ltd,No
Http://opendatacommunities.org/id/metropolitan-district-council/leeds,Leeds City Council as Accountable Body,31/03/2023,Social Services Pooled Budgets,Jcs For People With Learning Disabilitie,Agency Payments,Residential,580,01/03/2023,2303-00282,0.00,10702.60,R,Action For Care Contracts Limited,No
Http://opendatacommunities.org/id/metropolitan-district-council/leeds,Leeds City Council as Accountable Body,31/03/2023,Social Services Pooled Budgets,Jcs For People With Learning Disabilitie,Agency Payments,Residential,580,29/03/2023,2303-00283,0.00,10702.60,R,Action For Care Contracts Limited,No
Http://opendatacommunities.org/id/metropolitan-district-council/leeds,Leeds City Council,31/03/2023,City Development,Recreation,Employees,Training & Development,70,17/03/2023,2303-00284,0.00,150.00,R,Activ First LTD,No
Http://opendatacommunities.org/id/metropolitan-district-council/leeds,Leeds City Council,31/03/2023,Children and Families,Social Care,Agency Payments,Services Rendered By Other Organisations,511,01/03/2023,2303-00285,0.00,1804.68,R,ACTIVE KIDS YEADON LLP,No
Http://opendatacommunities.org/id/metropolitan-district-council/leeds,Leeds City Council,31/03/2023,Children and Families,Social Care,Agency Payments,Services Rendered By Other Organisations,511,03/03/2023,2303-00286,0.00,9674.72,R,ACTIVE KIDS YEADON LLP,No
Http://opendatacommunities.org/id/metropolitan-district-council/leeds,Leeds City Council,31/03/2023,Children and Families,Social Care,Agency Payments,Services Rendered By Other Organisations,511,03/03/2023,2303-00287,0.00,408.96,R,ACTIVE KIDS YEADON LLP,No
Http://opendatacommunities.org/id/metropolitan-district-council/leeds,Leeds City Council,31/03/2023,Adults and Health,Services For Adults Under 65 Mental/Dis,Agency Payments,Sheltered Accommodation,569,01/03/2023,2303-00288,0.00,17848.64,R,Active Pathways,No
Http://opendatacommunities.org/id/metropolitan-district-council/leeds,Leeds City Council,31/03/2023,Adults and Health,Services For Older People - 65 And Over,Agency Payments,Sheltered Accommodation,569,01/03/2023,2303-00289,0.00,4154.84,R,Active Pathways,No
Http://opendatacommunities.org/id/metropolitan-district-council/leeds,Leeds City Council as Accountable Body,31/03/2023,Social Services Pooled Budgets,Jcs For People With Learning Disabilitie,Agency Payments,Sheltered Accommodation,569,01/03/2023,2303-00290,0.00,12452.52,R,Active Pathways,No
Http://opendatacommunities.org/id/metropolitan-district-council/leeds,Leeds City Council,31/03/2023,Adults and Health,Services For Adults Under 65 Mental/Dis,Agency Payments,Sheltered Accommodation,569,29/03/2023,2303-00291,0.00,17848.64,R,Active Pathways,No
Http://opendatacommunities.org/id/metropolitan-district-council/leeds,Leeds City Council,31/03/2023,Adults and Health,Services For Older People - 65 And Over,Agency Payments,Sheltered Accommodation,569,29/03/2023,2303-00292,0.00,4154.84,R,Active Pathways,No
Http://opendatacommunities.org/id/metropolitan-district-council/leeds,Leeds City Council as Accountable Body,31/03/2023,Social Services Pooled Budgets,Jcs For People With Learning Disabilitie,Agency Payments,Sheltered Accommodation,569,29/03/2023,2303-00293,0.00,7263.97,R,Active Pathways,No
Http://opendatacommunities.org/id/metropolitan-district-council/leeds,Leeds City Council,31/03/2023,Adults and Health,Services For Adults Under 65 Mental/Dis,Agency Payments,Residential,580,01/03/2023,2303-00294,0.00,4324.60,R,Active Pathways Limited,No
Http://opendatacommunities.org/id/metropolitan-district-council/leeds,Leeds City Council,31/03/2023,Adults and Health,Services For Adults Under 65 Mental/Dis,Agency Payments,Residential,580,29/03/2023,2303-00295,0.00,37685.80,R,Active Pathways Limited,No
Http://opendatacommunities.org/id/metropolitan-district-council/leeds,Leeds City Council,31/03/2023,Children and Families,Social Care ,Supplies and Services,Clothing & Uniforms,241,12/01/2023,2303-00296,0.00,96.50,R,Activewearb,Yes
Http://opendatacommunities.org/id/metropolitan-district-council/leeds,Leeds City Council,31/03/2023,Children and Families,Social Care ,Supplies and Services,Clothing & Uniforms,241,23/01/2023,2303-00297,0.00,148.20,R,Activewearb,Yes
Http://opendatacommunities.org/id/metropolitan-district-council/leeds,Leeds City Council,31/03/2023,Communities Housing and Environment,Waste Management ,Supplies and Services,Waste Disposal Charges,236,23/01/2023,2303-00298,0.00,905.00,R,Acumen Waste Services,Yes
Http://opendatacommunities.org/id/metropolitan-district-council/leeds,Leeds City Council,31/03/2023,Communities Housing and Environment,Waste Management,Supplies and Services,Recycling & Reuse Charges,234,01/03/2023,2303-00299,0.00,5810.40,R,Acumen Waste Services Ltd,No
Http://opendatacommunities.org/id/metropolitan-district-council/leeds,Leeds City Council,31/03/2023,Communities Housing and Environment,Waste Management,Supplies and Services,Waste Disposal Charges,236,02/03/2023,2303-00300,0.00,1467.15,R,Acumen Waste Services Ltd,No
Http://opendatacommunities.org/id/metropolitan-district-council/leeds,Leeds City Council,31/03/2023,Communities Housing and Environment,Waste Management,Supplies and Services,Waste Disposal Charges,236,02/03/2023,2303-00301,0.00,275.00,R,Acumen Waste Services Ltd,No
Http://opendatacommunities.org/id/metropolitan-district-council/leeds,Leeds City Council,31/03/2023,Communities Housing and Environment,Waste Management,Supplies and Services,Waste Disposal Charges,236,02/03/2023,2303-00302,0.00,398.00,R,Acumen Waste Services Ltd,No
Http://opendatacommunities.org/id/metropolitan-district-council/leeds,Leeds City Council,31/03/2023,Communities Housing and Environment,Waste Management,Supplies and Services,Waste Disposal Charges,236,02/03/2023,2303-00303,0.00,330.00,R,Acumen Waste Services Ltd,No
Http://opendatacommunities.org/id/metropolitan-district-council/leeds,Leeds City Council,31/03/2023,Communities Housing and Environment,Waste Management,Supplies and Services,Waste Disposal Charges,236,02/03/2023,2303-00304,0.00,996.50,R,Acumen Waste Services Ltd,No
Http://opendatacommunities.org/id/metropolitan-district-council/leeds,Leeds City Council,31/03/2023,Communities Housing and Environment,Waste Management,Supplies and Services,Recycling & Reuse Charges,234,02/03/2023,2303-00305,0.00,1991.52,R,Acumen Waste Services Ltd,No
Http://opendatacommunities.org/id/metropolitan-district-council/leeds,Leeds City Council,31/03/2023,Communities Housing and Environment,Waste Management,Supplies and Services,Recycling & Reuse Charges,234,15/03/2023,2303-00306,0.00,12713.04,R,Acumen Waste Services Ltd,No
Http://opendatacommunities.org/id/metropolitan-district-council/leeds,Leeds City Council,31/03/2023,Communities Housing and Environment,Waste Management,Supplies and Services,Recycling & Reuse Charges,234,22/03/2023,2303-00307,0.00,5932.80,R,Acumen Waste Services Ltd,No
Http://opendatacommunities.org/id/metropolitan-district-council/leeds,Leeds City Council,31/03/2023,Communities Housing and Environment,Waste Management,Supplies and Services,Waste Disposal Charges,236,24/03/2023,2303-00308,0.00,275.00,R,Acumen Waste Services Ltd,No
Http://opendatacommunities.org/id/metropolitan-district-council/leeds,Leeds City Council,31/03/2023,Communities Housing and Environment,Waste Management,Supplies and Services,Waste Disposal Charges,236,24/03/2023,2303-00309,0.00,787.05,R,Acumen Waste Services Ltd,No
Http://opendatacommunities.org/id/metropolitan-district-council/leeds,Leeds City Council,31/03/2023,Communities Housing and Environment,Waste Management,Supplies and Services,Waste Disposal Charges,236,24/03/2023,2303-00310,0.00,275.00,R,Acumen Waste Services Ltd,No
Http://opendatacommunities.org/id/metropolitan-district-council/leeds,Leeds City Council,31/03/2023,Communities Housing and Environment,Waste Management,Supplies and Services,Waste Disposal Charges,236,24/03/2023,2303-00311,0.00,900.60,R,Acumen Waste Services Ltd,No
Http://opendatacommunities.org/id/metropolitan-district-council/leeds,Leeds City Council,31/03/2023,Communities Housing and Environment,Waste Management,Supplies and Services,Waste Disposal Charges,236,24/03/2023,2303-00312,0.00,275.00,R,Acumen Waste Services Ltd,No
Http://opendatacommunities.org/id/metropolitan-district-council/leeds,Leeds City Council,31/03/2023,Communities Housing and Environment,Waste Management,Supplies and Services,Waste Disposal Charges,236,24/03/2023,2303-00313,0.00,1170.45,R,Acumen Waste Services Ltd,No
Http://opendatacommunities.org/id/metropolitan-district-council/leeds,Leeds City Council,31/03/2023,Communities Housing and Environment,Waste Management,Supplies and Services,Waste Disposal Charges,236,24/03/2023,2303-00314,0.00,839.53,R,Acumen Waste Services Ltd,No
Http://opendatacommunities.org/id/metropolitan-district-council/leeds,Leeds City Council,31/03/2023,Communities Housing and Environment,Waste Management,Supplies and Services,Waste Disposal Charges,236,24/03/2023,2303-00315,0.00,1120.80,R,Acumen Waste Services Ltd,No
Http://opendatacommunities.org/id/metropolitan-district-council/leeds,Leeds City Council,31/03/2023,Communities Housing and Environment,Waste Management,Supplies and Services,Waste Disposal Charges,236,24/03/2023,2303-00316,0.00,963.00,R,Acumen Waste Services Ltd,No
Http://opendatacommunities.org/id/metropolitan-district-council/leeds,Leeds City Council,31/03/2023,Communities Housing and Environment,Waste Management,Supplies and Services,Recycling & Reuse Charges,234,24/03/2023,2303-00317,0.00,6762.96,R,Acumen Waste Services Ltd,No
Http://opendatacommunities.org/id/metropolitan-district-council/leeds,Leeds City Council,31/03/2023,Communities Housing and Environment,Waste Management,Supplies and Services,Recycling & Reuse Charges,234,31/03/2023,2303-00318,0.00,2878.56,R,Acumen Waste Services Ltd,No
Http://opendatacommunities.org/id/metropolitan-district-council/leeds,Leeds City Council,31/03/2023,Communities Housing and Environment,Waste Management,Supplies and Services,Waste Disposal Charges,236,31/03/2023,2303-00319,0.00,959.35,R,Acumen Waste Services Ltd,No
Http://opendatacommunities.org/id/metropolitan-district-council/leeds,Leeds City Council,31/03/2023,Communities Housing and Environment,Waste Management,Supplies and Services,Waste Disposal Charges,236,31/03/2023,2303-00320,0.00,1030.05,R,Acumen Waste Services Ltd,No
Http://opendatacommunities.org/id/metropolitan-district-council/leeds,Leeds City Council,31/03/2023,Resources,Shared Services,Supplies and Services,Operational Materials,205,17/03/2023,2303-00321,0.00,283.50,R,AD3 Envelope Printers Limited,No
Http://opendatacommunities.org/id/metropolitan-district-council/leeds,Leeds City Council,31/03/2023,Resources,Shared Services,Supplies and Services,Operational Materials,205,31/03/2023,2303-00322,0.00,1497.00,R,AD3 Envelope Printers Limited,No
Http://opendatacommunities.org/id/metropolitan-district-council/leeds,Leeds City Council,31/03/2023,Communities Housing and Environment,Strategic Housing Partnership & Support,Supplies and Services,Other Hired And Contracted Services,265,14/03/2023,2303-00323,0.00,604.10,R,Adair Paxton LLP,No
Http://opendatacommunities.org/id/metropolitan-district-council/leeds,Leeds City Council,31/03/2023,City Development,Libraries Arts & Heritage,Supplies and Services,Operational Materials,205,23/03/2023,2303-00324,0.00,145.80,R,REDACTED PERSONAL DATA,No
Http://opendatacommunities.org/id/metropolitan-district-council/leeds,Leeds City Council,31/03/2023,Children and Families,Social Care,Appropriations,Leaving Care Allowances,634,17/03/2023,2303-00325,0.00,52.33,R,REDACTED PERSONAL DATA,No
Http://opendatacommunities.org/id/metropolitan-district-council/leeds,Leeds City Council,31/03/2023,Children and Families,Social Care,Agency Payments,Contact,548,03/03/2023,2303-00326,0.00,9.00,R,REDACTED PERSONAL DATA,No
Http://opendatacommunities.org/id/metropolitan-district-council/leeds,Leeds City Council,31/03/2023,Children and Families,Social Care,Agency Payments,Contact,548,03/03/2023,2303-00327,0.00,49.00,R,REDACTED PERSONAL DATA,No
Http://opendatacommunities.org/id/metropolitan-district-council/leeds,Leeds City Council,31/03/2023,Children and Families,Social Care,Agency Payments,Placement Support,550,22/03/2023,2303-00328,0.00,30.97,R,REDACTED PERSONAL DATA,No
Http://opendatacommunities.org/id/metropolitan-district-council/leeds,Leeds City Council,31/03/2023,City Development,Libraries Arts & Heritage,Supplies and Services,Other Hired And Contracted Services,265,29/03/2023,2303-00329,0.00,1469.78,R,Adam Robinson,No
Http://opendatacommunities.org/id/metropolitan-district-council/leeds,Leeds City Council,31/03/2023,Children and Families,Social Care,Agency Payments,Placement Support,550,03/03/2023,2303-00330,0.00,21.80,R,REDACTED PERSONAL DATA,No
Http://opendatacommunities.org/id/metropolitan-district-council/leeds,Leeds City Council,31/03/2023,Children and Families,Social Care,Agency Payments,Placement Support,550,10/03/2023,2303-00331,0.00,21.80,R,REDACTED PERSONAL DATA,No
Http://opendatacommunities.org/id/metropolitan-district-council/leeds,Leeds City Council,31/03/2023,Children and Families,Social Care,Agency Payments,Placement Support,550,17/03/2023,2303-00332,0.00,21.80,R,REDACTED PERSONAL DATA,No
Http://opendatacommunities.org/id/metropolitan-district-council/leeds,Leeds City Council,31/03/2023,Children and Families,Social Care,Agency Payments,Placement Support,550,24/03/2023,2303-00333,0.00,21.80,R,REDACTED PERSONAL DATA,No
Http://opendatacommunities.org/id/metropolitan-district-council/leeds,Leeds City Council,31/03/2023,Children and Families,Social Care,Agency Payments,Placement Support,550,31/03/2023,2303-00334,0.00,21.80,R,REDACTED PERSONAL DATA,No
Http://opendatacommunities.org/id/metropolitan-district-council/leeds,Leeds City Council,31/03/2023,City Development,Libraries Arts & Heritage,Supplies and Services,Operational Materials,205,23/03/2023,2303-00335,0.00,69.52,R,REDACTED PERSONAL DATA,No
Http://opendatacommunities.org/id/metropolitan-district-council/leeds,Leeds City Council,31/03/2023,City Development,Libraries Arts & Heritage,Supplies and Services,Food & Drink,231,23/03/2023,2303-00336,0.00,12.45,R,REDACTED PERSONAL DATA,No
Http://opendatacommunities.org/id/metropolitan-district-council/leeds,Leeds City Council,31/03/2023,Resources,Leeds Building Services,Supplies and Services,Other Hired And Contracted Services,265,31/03/2023,2303-00337,0.00,495.00,R,Adaston Limited,No
Http://opendatacommunities.org/id/metropolitan-district-council/leeds,Leeds City Council,31/03/2023,Resources,Sustainable Energy & Air Quality,Internal Recharges,Professional Legal Services Charges,410,08/03/2023,2303-00338,0.00,21492.50,R,Addleshaw Goddard LLP,No
Http://opendatacommunities.org/id/metropolitan-district-council/leeds,Leeds City Council,31/03/2023,Resources,PPPU and Procurement,Supplies and Services,Bought In Professional Services,277,31/03/2023,2303-00339,0.00,10586.00,R,Addleshaw Goddard LLP,No
Http://opendatacommunities.org/id/metropolitan-district-council/leeds,Leeds City Council,31/03/2023,Children and Families,Social Care,Agency Payments,Services Rendered By Voluntary Sector,505,01/03/2023,2303-00340,0.00,6015.60,R,ADEL PRE SCHOOL,No
Http://opendatacommunities.org/id/metropolitan-district-council/leeds,Leeds City Council,31/03/2023,Children and Families,Social Care,Agency Payments,Services Rendered By Voluntary Sector,505,03/03/2023,2303-00341,0.00,7342.08,R,ADEL PRE SCHOOL,No
Http://opendatacommunities.org/id/metropolitan-district-council/leeds,Leeds City Council,31/03/2023,Children and Families,Social Care,Agency Payments,Services Rendered By Voluntary Sector,505,03/03/2023,2303-00342,0.00,338.40,R,ADEL PRE SCHOOL,No
Http://opendatacommunities.org/id/metropolitan-district-council/leeds,Leeds City Council,31/03/2023,Children and Families,Social Care,Agency Payments,Services Rendered By Voluntary Sector,505,03/03/2023,2303-00343,0.00,648.00,R,ADEL PRE SCHOOL,No
Http://opendatacommunities.org/id/metropolitan-district-council/leeds,Leeds City Council,31/03/2023,Strategic Accounts,Miscellaneous,Supplies and Services,Non-Recurring Grants,227,28/03/2023,2303-00344,0.00,665.00,R,Adel Primary School Parent Association,No
Http://opendatacommunities.org/id/metropolitan-district-council/leeds,Leeds City Council,31/03/2023,City Development,Recreation,Supplies and Services,Bought In Professional Services,277,01/03/2023,2303-00345,0.00,160.00,R,Adele Battersby,No
Http://opendatacommunities.org/id/metropolitan-district-council/leeds,Leeds City Council,31/03/2023,City Development,Recreation,Supplies and Services,Bought In Professional Services,277,01/03/2023,2303-00346,0.00,160.00,R,Adele Battersby,No
Http://opendatacommunities.org/id/metropolitan-district-council/leeds,Leeds City Council,31/03/2023,City Development,Recreation,Supplies and Services,Bought In Professional Services,277,01/03/2023,2303-00347,0.00,20.00,R,Adele Battersby,No
Http://opendatacommunities.org/id/metropolitan-district-council/leeds,Leeds City Council,31/03/2023,City Development,Recreation,Supplies and Services,Bought In Professional Services,277,30/03/2023,2303-00348,0.00,120.00,R,Adele Battersby,No
Http://opendatacommunities.org/id/metropolitan-district-council/leeds,Leeds City Council,31/03/2023,City Development,Recreation,Supplies and Services,Bought In Professional Services,277,30/03/2023,2303-00349,0.00,120.00,R,Adele Battersby,No
Http://opendatacommunities.org/id/metropolitan-district-council/leeds,Leeds City Council,31/03/2023,City Development,Recreation,Supplies and Services,Bought In Professional Services,277,30/03/2023,2303-00350,0.00,20.00,R,Adele Battersby,No
Http://opendatacommunities.org/id/metropolitan-district-council/leeds,Leeds City Council,31/03/2023,Children and Families,Social Care,Agency Payments,Services Rendered By Other Organisations,511,03/03/2023,2303-00351,0.00,1434.00,R,REDACTED PERSONAL DATA,No
Http://opendatacommunities.org/id/metropolitan-district-council/leeds,Leeds City Council,31/03/2023,Children and Families,Social Care,Agency Payments,Services Rendered By Other Organisations,511,03/03/2023,2303-00352,0.00,43.20,R,REDACTED PERSONAL DATA,No
Http://opendatacommunities.org/id/metropolitan-district-council/leeds,Leeds City Council,31/03/2023,Resources,Commercial Services,Supplies and Services,Other Hired And Contracted Services,265,08/03/2023,2303-00353,0.00,86.78,R,REDACTED PERSONAL DATA,No
Http://opendatacommunities.org/id/metropolitan-district-council/leeds,Leeds City Council,31/03/2023,Resources,Commercial Services,Supplies and Services,Other Hired And Contracted Services,265,22/03/2023,2303-00354,0.00,84.66,R,REDACTED PERSONAL DATA,No
Http://opendatacommunities.org/id/metropolitan-district-council/leeds,Leeds City Council,31/03/2023,Resources,Commercial Services,Supplies and Services,Other Hired And Contracted Services,265,29/03/2023,2303-00355,0.00,32.33,R,REDACTED PERSONAL DATA,No
Http://opendatacommunities.org/id/metropolitan-district-council/leeds,Leeds City Council,31/03/2023,Communities Housing and Environment,Benefits Wlefare and Poverty,Supplies and Services,Grant Related Expenditure,290,24/03/2023,2303-00356,0.00,650.00,R,REDACTED PERSONAL DATA,No
Http://opendatacommunities.org/id/metropolitan-district-council/leeds,Leeds City Council,31/03/2023,City Development,Libraries Arts & Heritage,Supplies and Services,Other Hired And Contracted Services,265,14/03/2023,2303-00357,0.00,49355.76,R,ADI UK LTD,No
Http://opendatacommunities.org/id/metropolitan-district-council/leeds,Leeds City Council,31/03/2023,Communities Housing and Environment,Community Safety ,Supplies and Services,Other Hired And Contracted Services,265,13/01/2023,2303-00358,0.00,81.08,R,Adi-Gardiner Ltd,Yes
Http://opendatacommunities.org/id/metropolitan-district-council/leeds,Leeds City Council,31/03/2023,Resources,Leeds Building Services,Supplies and Services,Operational Materials,205,07/03/2023,2303-00359,0.00,-7388.34,R,ADI-Gardiner Ltd,No
Http://opendatacommunities.org/id/metropolitan-district-council/leeds,Leeds City Council,31/03/2023,Resources,Leeds Building Services,Supplies and Services,Operational Materials,205,07/03/2023,2303-00360,0.00,-694.26,R,ADI-Gardiner Ltd,No
Http://opendatacommunities.org/id/metropolitan-district-council/leeds,Leeds City Council,31/03/2023,Resources,Leeds Building Services,Supplies and Services,Operational Materials,205,07/03/2023,2303-00361,0.00,156.28,R,ADI-Gardiner Ltd,No
Http://opendatacommunities.org/id/metropolitan-district-council/leeds,Leeds City Council,31/03/2023,Resources,Leeds Building Services,Supplies and Services,Operational Materials,205,07/03/2023,2303-00362,0.00,68.05,R,ADI-Gardiner Ltd,No
Http://opendatacommunities.org/id/metropolitan-district-council/leeds,Leeds City Council,31/03/2023,Resources,Leeds Building Services,Supplies and Services,Operational Materials,205,07/03/2023,2303-00363,0.00,9.57,R,ADI-Gardiner Ltd,No
Http://opendatacommunities.org/id/metropolitan-district-council/leeds,Leeds City Council,31/03/2023,Resources,Leeds Building Services,Supplies and Services,Operational Materials,205,07/03/2023,2303-00364,0.00,14.02,R,ADI-Gardiner Ltd,No
Http://opendatacommunities.org/id/metropolitan-district-council/leeds,Leeds City Council,31/03/2023,Resources,Leeds Building Services,Supplies and Services,Operational Materials,205,07/03/2023,2303-00365,0.00,2459.59,R,ADI-Gardiner Ltd,No
Http://opendatacommunities.org/id/metropolitan-district-council/leeds,Leeds City Council,31/03/2023,Resources,Leeds Building Services,Supplies and Services,Operational Materials,205,07/03/2023,2303-00366,0.00,12.56,R,ADI-Gardiner Ltd,No
Http://opendatacommunities.org/id/metropolitan-district-council/leeds,Leeds City Council,31/03/2023,Resources,Leeds Building Services,Supplies and Services,Operational Materials,205,07/03/2023,2303-00367,0.00,12.56,R,ADI-Gardiner Ltd,No
Http://opendatacommunities.org/id/metropolitan-district-council/leeds,Leeds City Council,31/03/2023,Resources,Leeds Building Services,Supplies and Services,Operational Materials,205,07/03/2023,2303-00368,0.00,44.64,R,ADI-Gardiner Ltd,No
Http://opendatacommunities.org/id/metropolitan-district-council/leeds,Leeds City Council,31/03/2023,Resources,Leeds Building Services,Supplies and Services,Operational Materials,205,07/03/2023,2303-00369,0.00,424.35,R,ADI-Gardiner Ltd,No
Http://opendatacommunities.org/id/metropolitan-district-council/leeds,Leeds City Council,31/03/2023,Resources,Leeds Building Services,Supplies and Services,Operational Materials,205,07/03/2023,2303-00370,0.00,105.55,R,ADI-Gardiner Ltd,No
Http://opendatacommunities.org/id/metropolitan-district-council/leeds,Leeds City Council,31/03/2023,Resources,Leeds Building Services,Supplies and Services,Operational Materials,205,07/03/2023,2303-00371,0.00,9.54,R,ADI-Gardiner Ltd,No
Http://opendatacommunities.org/id/metropolitan-district-council/leeds,Leeds City Council,31/03/2023,Resources,Leeds Building Services,Supplies and Services,Operational Materials,205,07/03/2023,2303-00372,0.00,2002.04,R,ADI-Gardiner Ltd,No
Http://opendatacommunities.org/id/metropolitan-district-council/leeds,Leeds City Council,31/03/2023,Resources,Leeds Building Services,Supplies and Services,Operational Materials,205,07/03/2023,2303-00373,0.00,1444.24,R,ADI-Gardiner Ltd,No
Http://opendatacommunities.org/id/metropolitan-district-council/leeds,Leeds City Council,31/03/2023,Resources,Leeds Building Services,Supplies and Services,Operational Materials,205,07/03/2023,2303-00374,0.00,89.28,R,ADI-Gardiner Ltd,No
Http://opendatacommunities.org/id/metropolitan-district-council/leeds,Leeds City Council,31/03/2023,Resources,Leeds Building Services,Supplies and Services,Operational Materials,205,07/03/2023,2303-00375,0.00,519.96,R,ADI-Gardiner Ltd,No
Http://opendatacommunities.org/id/metropolitan-district-council/leeds,Leeds City Council,31/03/2023,Resources,Leeds Building Services,Supplies and Services,Operational Materials,205,07/03/2023,2303-00376,0.00,1382.40,R,ADI-Gardiner Ltd,No
Http://opendatacommunities.org/id/metropolitan-district-council/leeds,Leeds City Council,31/03/2023,Resources,Leeds Building Services,Supplies and Services,Operational Materials,205,07/03/2023,2303-00377,0.00,37.13,R,ADI-Gardiner Ltd,No
Http://opendatacommunities.org/id/metropolitan-district-council/leeds,Leeds City Council,31/03/2023,Resources,Leeds Building Services,Supplies and Services,Operational Materials,205,07/03/2023,2303-00378,0.00,107.80,R,ADI-Gardiner Ltd,No
Http://opendatacommunities.org/id/metropolitan-district-council/leeds,Leeds City Council,31/03/2023,Resources,Leeds Building Services,Supplies and Services,Operational Materials,205,10/03/2023,2303-00379,0.00,26.27,R,ADI-Gardiner Ltd,No
Http://opendatacommunities.org/id/metropolitan-district-council/leeds,Leeds City Council,31/03/2023,Resources,Leeds Building Services,Supplies and Services,Operational Materials,205,10/03/2023,2303-00380,0.00,687.54,R,ADI-Gardiner Ltd,No
Http://opendatacommunities.org/id/metropolitan-district-council/leeds,Leeds City Council,31/03/2023,Resources,Leeds Building Services,Supplies and Services,Operational Materials,205,10/03/2023,2303-00381,0.00,85.00,R,ADI-Gardiner Ltd,No
Http://opendatacommunities.org/id/metropolitan-district-council/leeds,Leeds City Council,31/03/2023,Resources,Leeds Building Services,Supplies and Services,Operational Materials,205,10/03/2023,2303-00382,0.00,1657.00,R,ADI-Gardiner Ltd,No
Http://opendatacommunities.org/id/metropolitan-district-council/leeds,Leeds City Council,31/03/2023,Resources,Leeds Building Services,Supplies and Services,Operational Materials,205,13/03/2023,2303-00383,0.00,989.75,R,ADI-Gardiner Ltd,No
Http://opendatacommunities.org/id/metropolitan-district-council/leeds,Leeds City Council,31/03/2023,Resources,Leeds Building Services,Supplies and Services,Operational Materials,205,15/03/2023,2303-00384,0.00,258.00,R,ADI-Gardiner Ltd,No
Http://opendatacommunities.org/id/metropolitan-district-council/leeds,Leeds City Council,31/03/2023,Resources,Leeds Building Services,Supplies and Services,Operational Materials,205,21/03/2023,2303-00385,0.00,352.34,R,ADI-Gardiner Ltd,No
Http://opendatacommunities.org/id/metropolitan-district-council/leeds,Leeds City Council,31/03/2023,Resources,Leeds Building Services,Supplies and Services,Operational Materials,205,21/03/2023,2303-00386,0.00,61.82,R,ADI-Gardiner Ltd,No
Http://opendatacommunities.org/id/metropolitan-district-council/leeds,Leeds City Council,31/03/2023,Resources,Leeds Building Services,Supplies and Services,Operational Materials,205,21/03/2023,2303-00387,0.00,107.80,R,ADI-Gardiner Ltd,No
Http://opendatacommunities.org/id/metropolitan-district-council/leeds,Leeds City Council,31/03/2023,Resources,Leeds Building Services,Supplies and Services,Operational Materials,205,21/03/2023,2303-00388,0.00,215.60,R,ADI-Gardiner Ltd,No
Http://opendatacommunities.org/id/metropolitan-district-council/leeds,Leeds City Council,31/03/2023,Resources,Leeds Building Services,Supplies and Services,Operational Materials,205,21/03/2023,2303-00389,0.00,16.00,R,ADI-Gardiner Ltd,No
Http://opendatacommunities.org/id/metropolitan-district-council/leeds,Leeds City Council,31/03/2023,Resources,Leeds Building Services,Supplies and Services,Operational Materials,205,23/03/2023,2303-00390,0.00,12.99,R,ADI-Gardiner Ltd,No
Http://opendatacommunities.org/id/metropolitan-district-council/leeds,Leeds City Council,31/03/2023,Resources,Leeds Building Services,Supplies and Services,Operational Materials,205,23/03/2023,2303-00391,0.00,76.48,R,ADI-Gardiner Ltd,No
Http://opendatacommunities.org/id/metropolitan-district-council/leeds,Leeds City Council,31/03/2023,Resources,Leeds Building Services,Supplies and Services,Operational Materials,205,23/03/2023,2303-00392,0.00,1306.18,R,ADI-Gardiner Ltd,No
Http://opendatacommunities.org/id/metropolitan-district-council/leeds,Leeds City Council,31/03/2023,Resources,Leeds Building Services,Supplies and Services,Operational Materials,205,24/03/2023,2303-00393,0.00,283.00,R,ADI-Gardiner Ltd,No
Http://opendatacommunities.org/id/metropolitan-district-council/leeds,Leeds City Council,31/03/2023,Resources,Leeds Building Services,Supplies and Services,Operational Materials,205,24/03/2023,2303-00394,0.00,1042.56,R,ADI-Gardiner Ltd,No
Http://opendatacommunities.org/id/metropolitan-district-council/leeds,Leeds City Council,31/03/2023,Resources,Leeds Building Services,Supplies and Services,Operational Materials,205,24/03/2023,2303-00395,0.00,1403.02,R,ADI-Gardiner Ltd,No
Http://opendatacommunities.org/id/metropolitan-district-council/leeds,Leeds City Council,31/03/2023,City Development,Libraries Arts & Heritage ,Supplies and Services,Publication And Promotion,267,07/01/2023,2303-00396,0.00,43.32,R,Adobe Creative Cloud,Yes
Http://opendatacommunities.org/id/metropolitan-district-council/leeds,Leeds City Council,31/03/2023,City Development,Libraries Arts & Heritage ,Supplies and Services,Computer Software & Equipment,214,17/01/2023,2303-00397,0.00,104.18,R,Adobe Send-For-Sign,Yes
Http://opendatacommunities.org/id/metropolitan-district-council/leeds,Leeds City Council,31/03/2023,Children and Families,Social Care,Agency Payments,Independent Fostering Agencies,509,03/03/2023,2303-00398,0.00,726.00,R,Adolescent And Childrens Trust,No
Http://opendatacommunities.org/id/metropolitan-district-council/leeds,Leeds City Council,31/03/2023,Children and Families,Social Care,Agency Payments,Independent Fostering Agencies,509,03/03/2023,2303-00399,0.00,3565.00,R,Adolescent And Childrens Trust,No
Http://opendatacommunities.org/id/metropolitan-district-council/leeds,Leeds City Council,31/03/2023,Children and Families,Social Care,Agency Payments,Independent Fostering Agencies,509,03/03/2023,2303-00400,0.00,3565.00,R,Adolescent And Childrens Trust,No
Http://opendatacommunities.org/id/metropolitan-district-council/leeds,Leeds City Council,31/03/2023,Children and Families,Social Care,Agency Payments,Independent Fostering Agencies,509,03/03/2023,2303-00401,0.00,3751.00,R,Adolescent And Childrens Trust,No
Http://opendatacommunities.org/id/metropolitan-district-council/leeds,Leeds City Council,31/03/2023,Children and Families,Social Care,Agency Payments,Independent Fostering Agencies,509,03/03/2023,2303-00402,0.00,3751.00,R,Adolescent And Childrens Trust,No
Http://opendatacommunities.org/id/metropolitan-district-council/leeds,Leeds City Council,31/03/2023,Children and Families,Social Care,Agency Payments,Independent Fostering Agencies,509,03/03/2023,2303-00403,0.00,3551.67,R,Adolescent And Childrens Trust,No
Http://opendatacommunities.org/id/metropolitan-district-council/leeds,Leeds City Council,31/03/2023,Children and Families,Social Care,Agency Payments,Independent Fostering Agencies,509,03/03/2023,2303-00404,0.00,3658.00,R,Adolescent And Childrens Trust,No
Http://opendatacommunities.org/id/metropolitan-district-council/leeds,Leeds City Council,31/03/2023,Children and Families,Social Care,Agency Payments,Independent Fostering Agencies,509,03/03/2023,2303-00405,0.00,3658.00,R,Adolescent And Childrens Trust,No
Http://opendatacommunities.org/id/metropolitan-district-council/leeds,Leeds City Council,31/03/2023,Children and Families,Social Care,Agency Payments,Independent Fostering Agencies,509,03/03/2023,2303-00406,0.00,3534.00,R,Adolescent And Childrens Trust,No
Http://opendatacommunities.org/id/metropolitan-district-council/leeds,Leeds City Council,31/03/2023,Children and Families,Social Care,Agency Payments,Independent Fostering Agencies,509,03/03/2023,2303-00407,0.00,3830.67,R,Adolescent And Childrens Trust,No
Http://opendatacommunities.org/id/metropolitan-district-council/leeds,Leeds City Council,31/03/2023,Children and Families,Social Care,Agency Payments,Independent Fostering Agencies,509,03/03/2023,2303-00408,0.00,3830.67,R,Adolescent And Childrens Trust,No
Http://opendatacommunities.org/id/metropolitan-district-council/leeds,Leeds City Council,31/03/2023,Children and Families,Social Care,Agency Payments,Independent Fostering Agencies,509,03/03/2023,2303-00409,0.00,3658.00,R,Adolescent And Childrens Trust,No
Http://opendatacommunities.org/id/metropolitan-district-council/leeds,Leeds City Council,31/03/2023,Children and Families,Social Care,Agency Payments,Independent Fostering Agencies,509,03/03/2023,2303-00410,0.00,3534.00,R,Adolescent And Childrens Trust,No
Http://opendatacommunities.org/id/metropolitan-district-council/leeds,Leeds City Council,31/03/2023,Children and Families,Social Care,Agency Payments,Independent Fostering Agencies,509,15/03/2023,2303-00411,0.00,570.00,R,Adolescent And Childrens Trust,No
Http://opendatacommunities.org/id/metropolitan-district-council/leeds,Leeds City Council,31/03/2023,Children and Families,Social Care,Agency Payments,Independent Fostering Agencies,509,31/03/2023,2303-00412,0.00,3220.00,R,Adolescent And Childrens Trust,No
Http://opendatacommunities.org/id/metropolitan-district-council/leeds,Leeds City Council,31/03/2023,Children and Families,Social Care,Agency Payments,Independent Fostering Agencies,509,31/03/2023,2303-00413,0.00,3220.00,R,Adolescent And Childrens Trust,No
Http://opendatacommunities.org/id/metropolitan-district-council/leeds,Leeds City Council,31/03/2023,Children and Families,Social Care,Agency Payments,Independent Fostering Agencies,509,31/03/2023,2303-00414,0.00,3388.00,R,Adolescent And Childrens Trust,No
Http://opendatacommunities.org/id/metropolitan-district-council/leeds,Leeds City Council,31/03/2023,Children and Families,Social Care,Agency Payments,Independent Fostering Agencies,509,31/03/2023,2303-00415,0.00,3388.00,R,Adolescent And Childrens Trust,No
Http://opendatacommunities.org/id/metropolitan-district-council/leeds,Leeds City Council,31/03/2023,Children and Families,Social Care,Agency Payments,Independent Fostering Agencies,509,31/03/2023,2303-00416,0.00,3207.96,R,Adolescent And Childrens Trust,No
Http://opendatacommunities.org/id/metropolitan-district-council/leeds,Leeds City Council,31/03/2023,Children and Families,Social Care,Agency Payments,Independent Fostering Agencies,509,31/03/2023,2303-00417,0.00,3304.00,R,Adolescent And Childrens Trust,No
Http://opendatacommunities.org/id/metropolitan-district-council/leeds,Leeds City Council,31/03/2023,Children and Families,Social Care,Agency Payments,Independent Fostering Agencies,509,31/03/2023,2303-00418,0.00,3304.00,R,Adolescent And Childrens Trust,No
Http://opendatacommunities.org/id/metropolitan-district-council/leeds,Leeds City Council,31/03/2023,Children and Families,Social Care,Agency Payments,Independent Fostering Agencies,509,31/03/2023,2303-00419,0.00,3192.00,R,Adolescent And Childrens Trust,No
Http://opendatacommunities.org/id/metropolitan-district-council/leeds,Leeds City Council,31/03/2023,Children and Families,Social Care,Agency Payments,Independent Fostering Agencies,509,31/03/2023,2303-00420,0.00,3459.96,R,Adolescent And Childrens Trust,No
Http://opendatacommunities.org/id/metropolitan-district-council/leeds,Leeds City Council,31/03/2023,Children and Families,Social Care,Agency Payments,Independent Fostering Agencies,509,31/03/2023,2303-00421,0.00,3459.96,R,Adolescent And Childrens Trust,No
Http://opendatacommunities.org/id/metropolitan-district-council/leeds,Leeds City Council,31/03/2023,Children and Families,Social Care,Agency Payments,Independent Fostering Agencies,509,31/03/2023,2303-00422,0.00,3304.00,R,Adolescent And Childrens Trust,No
Http://opendatacommunities.org/id/metropolitan-district-council/leeds,Leeds City Council,31/03/2023,Children and Families,Social Care,Agency Payments,Independent Fostering Agencies,509,31/03/2023,2303-00423,0.00,3192.00,R,Adolescent And Childrens Trust,No
Http://opendatacommunities.org/id/metropolitan-district-council/leeds,Leeds City Council,31/03/2023,Adults and Health,Services For Adults Under 65 Mental/Dis,Agency Payments,Home Care,568,01/03/2023,2303-00424,0.00,536.00,R,Adopt Healthcare Ltd,No
Http://opendatacommunities.org/id/metropolitan-district-council/leeds,Leeds City Council,31/03/2023,Adults and Health,Services For Adults Under 65 Mental/Dis,Agency Payments,Home Care,568,01/03/2023,2303-00425,0.00,115.50,R,Adopt Healthcare Ltd,No
Http://opendatacommunities.org/id/metropolitan-district-council/leeds,Leeds City Council,31/03/2023,Adults and Health,Services For Adults Under 65 Mental/Dis,Agency Payments,Home Care,568,02/03/2023,2303-00426,0.00,536.00,R,Adopt Healthcare Ltd,No
Http://opendatacommunities.org/id/metropolitan-district-council/leeds,Leeds City Council,31/03/2023,Adults and Health,Services For Adults Under 65 Mental/Dis,Agency Payments,Home Care,568,08/03/2023,2303-00427,0.00,536.00,R,Adopt Healthcare Ltd,No
Http://opendatacommunities.org/id/metropolitan-district-council/leeds,Leeds City Council,31/03/2023,Adults and Health,Services For Adults Under 65 Mental/Dis,Agency Payments,Home Care,568,08/03/2023,2303-00428,0.00,148.50,R,Adopt Healthcare Ltd,No
Http://opendatacommunities.org/id/metropolitan-district-council/leeds,Leeds City Council,31/03/2023,Adults and Health,Services For Adults Under 65 Mental/Dis,Agency Payments,Home Care,568,15/03/2023,2303-00429,0.00,536.00,R,Adopt Healthcare Ltd,No
Http://opendatacommunities.org/id/metropolitan-district-council/leeds,Leeds City Council,31/03/2023,Adults and Health,Services For Adults Under 65 Mental/Dis,Agency Payments,Home Care,568,15/03/2023,2303-00430,0.00,148.50,R,Adopt Healthcare Ltd,No
Http://opendatacommunities.org/id/metropolitan-district-council/leeds,Leeds City Council,31/03/2023,Adults and Health,Services For Adults Under 65 Mental/Dis,Agency Payments,Home Care,568,22/03/2023,2303-00431,0.00,536.00,R,Adopt Healthcare Ltd,No
Http://opendatacommunities.org/id/metropolitan-district-council/leeds,Leeds City Council,31/03/2023,Adults and Health,Services For Adults Under 65 Mental/Dis,Agency Payments,Home Care,568,22/03/2023,2303-00432,0.00,148.50,R,Adopt Healthcare Ltd,No
Http://opendatacommunities.org/id/metropolitan-district-council/leeds,Leeds City Council,31/03/2023,Adults and Health,Services For Adults Under 65 Mental/Dis,Agency Payments,Home Care,568,29/03/2023,2303-00433,0.00,536.00,R,Adopt Healthcare Ltd,No
Http://opendatacommunities.org/id/metropolitan-district-council/leeds,Leeds City Council,31/03/2023,Adults and Health,Services For Adults Under 65 Mental/Dis,Agency Payments,Home Care,568,29/03/2023,2303-00434,0.00,148.50,R,Adopt Healthcare Ltd,No
Http://opendatacommunities.org/id/metropolitan-district-council/leeds,Leeds City Council as Accountable Body,31/03/2023,Social Services Pooled Budgets,Jcs For People With Learning Disabilitie,Agency Payments,Residential,580,01/03/2023,2303-00435,0.00,2609.36,R,ADRIAN HOUSE,No
Http://opendatacommunities.org/id/metropolitan-district-council/leeds,Leeds City Council as Accountable Body,31/03/2023,Social Services Pooled Budgets,Jcs For People With Learning Disabilitie,Agency Payments,Residential,580,29/03/2023,2303-00436,0.00,2609.36,R,ADRIAN HOUSE,No
Http://opendatacommunities.org/id/metropolitan-district-council/leeds,Leeds City Council,31/03/2023,Children and Families,Social Care,Agency Payments,Placement Support,550,03/03/2023,2303-00437,0.00,159.62,R,REDACTED PERSONAL DATA,No
Http://opendatacommunities.org/id/metropolitan-district-council/leeds,Leeds City Council,31/03/2023,Children and Families,Social Care,Agency Payments,Placement Support,550,10/03/2023,2303-00438,0.00,159.62,R,REDACTED PERSONAL DATA,No
Http://opendatacommunities.org/id/metropolitan-district-council/leeds,Leeds City Council,31/03/2023,Children and Families,Social Care,Agency Payments,Placement Support,550,17/03/2023,2303-00439,0.00,159.62,R,REDACTED PERSONAL DATA,No
Http://opendatacommunities.org/id/metropolitan-district-council/leeds,Leeds City Council,31/03/2023,Children and Families,Social Care,Agency Payments,Placement Support,550,24/03/2023,2303-00440,0.00,159.62,R,REDACTED PERSONAL DATA,No
Http://opendatacommunities.org/id/metropolitan-district-council/leeds,Leeds City Council,31/03/2023,Resources,Facilities Management ,Premises,Premises Security Services,162,04/01/2023,2303-00441,0.00,308.26,R,Adt Fire And Security,Yes
Http://opendatacommunities.org/id/metropolitan-district-council/leeds,Leeds City Council,31/03/2023,Adults and Health,Services For Older People - 65 And Over,Agency Payments,Home Care,568,08/03/2023,2303-00442,0.00,16258.80,R,Advanced Medcare Ltd,No
Http://opendatacommunities.org/id/metropolitan-district-council/leeds,Leeds City Council,31/03/2023,Adults and Health,Services For Older People - 65 And Over,Agency Payments,HCAIT Community Support,575,08/03/2023,2303-00443,0.00,112.70,R,Advanced Medcare Ltd,No
Http://opendatacommunities.org/id/metropolitan-district-council/leeds,Leeds City Council,31/03/2023,Adults and Health,Services For Older People Under 65 P/Dis,Agency Payments,Home Care,568,08/03/2023,2303-00444,0.00,7765.72,R,Advanced Medcare Ltd,No
Http://opendatacommunities.org/id/metropolitan-district-council/leeds,Leeds City Council,31/03/2023,Adults and Health,Assessment And Care Management,Agency Payments,Home Care,568,08/03/2023,2303-00445,0.00,573.72,R,Advanced Medcare Ltd,No
Http://opendatacommunities.org/id/metropolitan-district-council/leeds,Leeds City Council,31/03/2023,Adults and Health,Services For Adults Under 65 Learn/Dis,Agency Payments,Home Care,568,08/03/2023,2303-00446,0.00,573.72,R,Advanced Medcare Ltd,No
Http://opendatacommunities.org/id/metropolitan-district-council/leeds,Leeds City Council,31/03/2023,Adults and Health,Services For Older People - 65 And Over,Agency Payments,Home Care,568,08/03/2023,2303-00447,0.00,15265.13,R,Advanced Medcare Ltd,No
Http://opendatacommunities.org/id/metropolitan-district-council/leeds,Leeds City Council,31/03/2023,Adults and Health,Services For Older People - 65 And Over,Agency Payments,HCAIT Community Support,575,08/03/2023,2303-00448,0.00,655.68,R,Advanced Medcare Ltd,No
Http://opendatacommunities.org/id/metropolitan-district-council/leeds,Leeds City Council,31/03/2023,Adults and Health,Services For Older People Under 65 P/Dis,Agency Payments,Home Care,568,08/03/2023,2303-00449,0.00,5552.80,R,Advanced Medcare Ltd,No
Http://opendatacommunities.org/id/metropolitan-district-council/leeds,Leeds City Council,31/03/2023,Adults and Health,Services For Older People - 65 And Over,Agency Payments,Home Care,568,15/03/2023,2303-00450,0.00,461.03,R,Advanced Medcare Ltd,No
Http://opendatacommunities.org/id/metropolitan-district-council/leeds,Leeds City Council,31/03/2023,Adults and Health,Services For Older People - 65 And Over,Agency Payments,Home Care,568,15/03/2023,2303-00451,0.00,4302.90,R,Advanced Medcare Ltd,No
Http://opendatacommunities.org/id/metropolitan-district-council/leeds,Leeds City Council,31/03/2023,Adults and Health,Assessment And Care Management,Agency Payments,Home Care,568,22/03/2023,2303-00452,0.00,573.72,R,Advanced Medcare Ltd,No
Http://opendatacommunities.org/id/metropolitan-district-council/leeds,Leeds City Council,31/03/2023,Adults and Health,Services For Adults Under 65 Learn/Dis,Agency Payments,Home Care,568,22/03/2023,2303-00453,0.00,512.25,R,Advanced Medcare Ltd,No
Http://opendatacommunities.org/id/metropolitan-district-council/leeds,Leeds City Council,31/03/2023,Adults and Health,Services For Older People - 65 And Over,Agency Payments,Home Care,568,22/03/2023,2303-00454,0.00,12673.02,R,Advanced Medcare Ltd,No
Http://opendatacommunities.org/id/metropolitan-district-council/leeds,Leeds City Council,31/03/2023,Adults and Health,Services For Older People - 65 And Over,Agency Payments,HCAIT Community Support,575,22/03/2023,2303-00455,0.00,655.68,R,Advanced Medcare Ltd,No
Http://opendatacommunities.org/id/metropolitan-district-council/leeds,Leeds City Council,31/03/2023,Adults and Health,Services For Older People Under 65 P/Dis,Agency Payments,Home Care,568,22/03/2023,2303-00456,0.00,5993.37,R,Advanced Medcare Ltd,No
Http://opendatacommunities.org/id/metropolitan-district-council/leeds,Leeds City Council,31/03/2023,Adults and Health,Services For Older People - 65 And Over,Agency Payments,Home Care,568,22/03/2023,2303-00457,0.00,26350.11,R,Advanced Medcare Ltd,No
Http://opendatacommunities.org/id/metropolitan-district-council/leeds,Leeds City Council,31/03/2023,Adults and Health,Services For Older People - 65 And Over,Agency Payments,HCAIT Community Support,575,22/03/2023,2303-00458,0.00,450.80,R,Advanced Medcare Ltd,No
Http://opendatacommunities.org/id/metropolitan-district-council/leeds,Leeds City Council,31/03/2023,Adults and Health,Services For Older People Under 65 P/Dis,Agency Payments,Home Care,568,22/03/2023,2303-00459,0.00,7765.72,R,Advanced Medcare Ltd,No
Http://opendatacommunities.org/id/metropolitan-district-council/leeds,Leeds City Council as Accountable Body,31/03/2023,Social Services Pooled Budgets,Jcs For People With Learning Disabilitie,Agency Payments,Home Care,568,30/03/2023,2303-00460,0.00,7218.90,R,Advantage Healthcare Ltd,No
Http://opendatacommunities.org/id/metropolitan-district-council/leeds,Leeds City Council as Accountable Body,31/03/2023,Social Services Pooled Budgets,Jcs For People With Learning Disabilitie,Supplies and Services,Other Hired And Contracted Services,265,08/03/2023,2303-00461,0.00,249.90,R,Advonet,No
Http://opendatacommunities.org/id/metropolitan-district-council/leeds,Leeds City Council as Accountable Body,31/03/2023,Social Services Pooled Budgets,Jcs For People With Learning Disabilitie,Supplies and Services,Other Hired And Contracted Services,265,08/03/2023,2303-00462,0.00,185.10,R,Advonet,No
Http://opendatacommunities.org/id/metropolitan-district-council/leeds,Leeds City Council as Accountable Body,31/03/2023,Social Services Pooled Budgets,Jcs For People With Learning Disabilitie,Supplies and Services,Other Hired And Contracted Services,265,08/03/2023,2303-00463,0.00,14.40,R,Advonet,No
Http://opendatacommunities.org/id/metropolitan-district-council/leeds,Leeds City Council as Accountable Body,31/03/2023,Social Services Pooled Budgets,Jcs For People With Learning Disabilitie,Supplies and Services,Other Hired And Contracted Services,265,08/03/2023,2303-00464,0.00,69.15,R,Advonet,No
Http://opendatacommunities.org/id/metropolitan-district-council/leeds,Leeds City Council,31/03/2023,Adults and Health,Services For Adults Under 65 Learn/Dis,Agency Payments,Payments To Voluntary Organisations,561,10/03/2023,2303-00465,0.00,16150.46,R,Advonet,No
Http://opendatacommunities.org/id/metropolitan-district-council/leeds,Leeds City Council as Accountable Body,31/03/2023,Social Services Pooled Budgets,Jcs For People With Learning Disabilitie,Supplies and Services,Other Hired And Contracted Services,265,23/03/2023,2303-00466,0.00,129.60,R,Advonet,No
Http://opendatacommunities.org/id/metropolitan-district-council/leeds,Leeds City Council,31/03/2023,Adults and Health,Services For Older People - 65 And Over,Agency Payments,Payments To Voluntary Organisations,561,31/03/2023,2303-00467,0.00,101941.67,R,Advonet,No
Http://opendatacommunities.org/id/metropolitan-district-council/leeds,Leeds City Council,31/03/2023,City Development,Asset Management,Capital,OTHER COSTS,7,06/03/2023,2303-00468,0.00,7688.10,C,Aecom Limited,No
Http://opendatacommunities.org/id/metropolitan-district-council/leeds,Leeds City Council,31/03/2023,Resources,Sustainable Energy & Climate Change,Capital,OTHER COSTS,7,10/03/2023,2303-00469,0.00,32656.80,C,Aecom Limited,No
Http://opendatacommunities.org/id/metropolitan-district-council/leeds,Leeds City Council,31/03/2023,City Development,Highways,Capital,OTHER COSTS,7,14/03/2023,2303-00470,0.00,136647.85,C,Aecom Limited,No
Http://opendatacommunities.org/id/metropolitan-district-council/leeds,Leeds City Council,31/03/2023,City Development,Highways,Capital,OTHER COSTS,7,23/03/2023,2303-00471,0.00,73661.64,C,Aecom Limited,No
Http://opendatacommunities.org/id/metropolitan-district-council/leeds,Leeds City Council,31/03/2023,Adults and Health,Services For Older People - 65 And Over,Agency Payments,Home Care,568,01/03/2023,2303-00472,0.00,41133.68,R,Aegis Care Solutions Ltd,No
Http://opendatacommunities.org/id/metropolitan-district-council/leeds,Leeds City Council,31/03/2023,Adults and Health,Services For Older People - 65 And Over,Agency Payments,HCAIT Community Support,575,01/03/2023,2303-00473,0.00,327.84,R,Aegis Care Solutions Ltd,No
Http://opendatacommunities.org/id/metropolitan-district-council/leeds,Leeds City Council,31/03/2023,Adults and Health,Services For Older People - 65 And Over,Agency Payments,HCAIT Other,577,01/03/2023,2303-00474,0.00,4161.27,R,Aegis Care Solutions Ltd,No
Http://opendatacommunities.org/id/metropolitan-district-council/leeds,Leeds City Council,31/03/2023,Adults and Health,Services For Older People Under 65 P/Dis,Agency Payments,Home Care,568,01/03/2023,2303-00475,0.00,11317.62,R,Aegis Care Solutions Ltd,No
Http://opendatacommunities.org/id/metropolitan-district-council/leeds,Leeds City Council as Accountable Body,31/03/2023,Social Services Pooled Budgets,Jcs For People With Learning Disabilitie,Agency Payments,Home Care,568,01/03/2023,2303-00476,0.00,3596.00,R,Aegis Care Solutions Ltd,No
Http://opendatacommunities.org/id/metropolitan-district-council/leeds,Leeds City Council,31/03/2023,Adults and Health,Services For Adults Under 65 Mental/Dis,Agency Payments,Home Care,568,03/03/2023,2303-00477,0.00,475.20,R,Aegis Care Solutions Ltd,No
Http://opendatacommunities.org/id/metropolitan-district-council/leeds,Leeds City Council,31/03/2023,Adults and Health,Services For Adults Under 65 Mental/Dis,Agency Payments,Home Care,568,03/03/2023,2303-00478,0.00,1219.90,R,Aegis Care Solutions Ltd,No
Http://opendatacommunities.org/id/metropolitan-district-council/leeds,Leeds City Council,31/03/2023,Adults and Health,Services For Adults Under 65 Mental/Dis,Agency Payments,Home Care,568,03/03/2023,2303-00479,0.00,4558.40,R,Aegis Care Solutions Ltd,No
Http://opendatacommunities.org/id/metropolitan-district-council/leeds,Leeds City Council,31/03/2023,Adults and Health,Services For Adults Under 65 Mental/Dis,Agency Payments,Home Care,568,03/03/2023,2303-00480,0.00,1309.50,R,Aegis Care Solutions Ltd,No
Http://opendatacommunities.org/id/metropolitan-district-council/leeds,Leeds City Council,31/03/2023,Adults and Health,Services For Adults Under 65 Mental/Dis,Agency Payments,Home Care,568,03/03/2023,2303-00481,0.00,1246.65,R,Aegis Care Solutions Ltd,No
Http://opendatacommunities.org/id/metropolitan-district-council/leeds,Leeds City Council,31/03/2023,Adults and Health,Services For Adults Under 65 Mental/Dis,Agency Payments,Home Care,568,03/03/2023,2303-00482,0.00,1750.50,R,Aegis Care Solutions Ltd,No
Http://opendatacommunities.org/id/metropolitan-district-council/leeds,Leeds City Council,31/03/2023,Adults and Health,Services For Adults Under 65 Mental/Dis,Agency Payments,Home Care,568,03/03/2023,2303-00483,0.00,1420.70,R,Aegis Care Solutions Ltd,No
Http://opendatacommunities.org/id/metropolitan-district-council/leeds,Leeds City Council,31/03/2023,Adults and Health,Services For Adults Under 65 Mental/Dis,Agency Payments,Home Care,568,03/03/2023,2303-00484,0.00,1139.60,R,Aegis Care Solutions Ltd,No
Http://opendatacommunities.org/id/metropolitan-district-council/leeds,Leeds City Council,31/03/2023,Adults and Health,Services For Adults Under 65 Mental/Dis,Agency Payments,Home Care,568,03/03/2023,2303-00485,0.00,320.00,R,Aegis Care Solutions Ltd,No
Http://opendatacommunities.org/id/metropolitan-district-council/leeds,Leeds City Council,31/03/2023,Adults and Health,Services For Adults Under 65 Mental/Dis,Agency Payments,Home Care,568,03/03/2023,2303-00486,0.00,106.80,R,Aegis Care Solutions Ltd,No
Http://opendatacommunities.org/id/metropolitan-district-council/leeds,Leeds City Council as Accountable Body,31/03/2023,Social Services Pooled Budgets,Jcs For People With Learning Disabilitie,Agency Payments,Home Care,568,03/03/2023,2303-00487,0.00,1019.00,R,Aegis Care Solutions Ltd,No
Http://opendatacommunities.org/id/metropolitan-district-council/leeds,Leeds City Council,31/03/2023,Adults and Health,Services For Adults Under 65 Mental/Dis,Agency Payments,Home Care,568,31/03/2023,2303-00488,0.00,783.20,R,Aegis Care Solutions Ltd,No
Http://opendatacommunities.org/id/metropolitan-district-council/leeds,Leeds City Council,31/03/2023,Adults and Health,Services For Adults Under 65 Mental/Dis,Agency Payments,Home Care,568,31/03/2023,2303-00489,0.00,712.00,R,Aegis Care Solutions Ltd,No
Http://opendatacommunities.org/id/metropolitan-district-council/leeds,Leeds City Council,31/03/2023,Adults and Health,Services For Adults Under 65 Mental/Dis,Agency Payments,Home Care,568,31/03/2023,2303-00490,0.00,475.20,R,Aegis Care Solutions Ltd,No
Http://opendatacommunities.org/id/metropolitan-district-council/leeds,Leeds City Council,31/03/2023,Adults and Health,Services For Adults Under 65 Mental/Dis,Agency Payments,Home Care,568,31/03/2023,2303-00491,0.00,1122.00,R,Aegis Care Solutions Ltd,No
Http://opendatacommunities.org/id/metropolitan-district-council/leeds,Leeds City Council,31/03/2023,Adults and Health,Services For Adults Under 65 Mental/Dis,Agency Payments,Home Care,568,31/03/2023,2303-00492,0.00,4115.00,R,Aegis Care Solutions Ltd,No
Http://opendatacommunities.org/id/metropolitan-district-council/leeds,Leeds City Council,31/03/2023,Adults and Health,Services For Adults Under 65 Mental/Dis,Agency Payments,Home Care,568,31/03/2023,2303-00493,0.00,1182.00,R,Aegis Care Solutions Ltd,No
Http://opendatacommunities.org/id/metropolitan-district-council/leeds,Leeds City Council,31/03/2023,Adults and Health,Services For Adults Under 65 Mental/Dis,Agency Payments,Home Care,568,31/03/2023,2303-00494,0.00,2101.55,R,Aegis Care Solutions Ltd,No
Http://opendatacommunities.org/id/metropolitan-district-council/leeds,Leeds City Council,31/03/2023,Adults and Health,Services For Adults Under 65 Mental/Dis,Agency Payments,Home Care,568,31/03/2023,2303-00495,0.00,1532.75,R,Aegis Care Solutions Ltd,No
Http://opendatacommunities.org/id/metropolitan-district-council/leeds,Leeds City Council,31/03/2023,Adults and Health,Services For Adults Under 65 Mental/Dis,Agency Payments,Home Care,568,31/03/2023,2303-00496,0.00,1274.00,R,Aegis Care Solutions Ltd,No
Http://opendatacommunities.org/id/metropolitan-district-council/leeds,Leeds City Council,31/03/2023,Adults and Health,Services For Adults Under 65 Mental/Dis,Agency Payments,Home Care,568,31/03/2023,2303-00497,0.00,1028.80,R,Aegis Care Solutions Ltd,No
Http://opendatacommunities.org/id/metropolitan-district-council/leeds,Leeds City Council,31/03/2023,Adults and Health,Services For Adults Under 65 Mental/Dis,Agency Payments,Home Care,568,31/03/2023,2303-00498,0.00,284.80,R,Aegis Care Solutions Ltd,No
Http://opendatacommunities.org/id/metropolitan-district-council/leeds,Leeds City Council as Accountable Body,31/03/2023,Social Services Pooled Budgets,Jcs For People With Learning Disabilitie,Agency Payments,Home Care,568,31/03/2023,2303-00499,0.00,1108.00,R,Aegis Care Solutions Ltd,No
Http://opendatacommunities.org/id/metropolitan-district-council/leeds,Leeds City Council as Accountable Body,31/03/2023,Social Services Pooled Budgets,Jcs For People With Learning Disabilitie,Agency Payments,Day Centre,564,02/03/2023,2303-00500,0.00,26866.88,R,Affinity Trust,No
Http://opendatacommunities.org/id/metropolitan-district-council/leeds,Leeds City Council as Accountable Body,31/03/2023,Social Services Pooled Budgets,Jcs For People With Learning Disabilitie,Agency Payments,Day Centre,564,03/03/2023,2303-00501,0.00,13509.01,R,Affinity Trust,No
Http://opendatacommunities.org/id/metropolitan-district-council/leeds,Leeds City Council,31/03/2023,Adults and Health,Services For Older People - 65 And Over,Agency Payments,Home Care,568,03/03/2023,2303-00502,0.00,425.76,R,Affinity Trust,No
Http://opendatacommunities.org/id/metropolitan-district-council/leeds,Leeds City Council,31/03/2023,Adults and Health,Assessment And Care Management,Agency Payments,Home Care,568,03/03/2023,2303-00503,0.00,709.60,R,Affinity Trust,No
Http://opendatacommunities.org/id/metropolitan-district-council/leeds,Leeds City Council,31/03/2023,Adults and Health,Services For Adults Under 65 Mental/Dis,Agency Payments,Home Care,568,03/03/2023,2303-00504,0.00,141.92,R,Affinity Trust,No
Http://opendatacommunities.org/id/metropolitan-district-council/leeds,Leeds City Council,31/03/2023,Adults and Health,Services For Adults Under 65 Mental/Dis,Agency Payments,Home Care,568,03/03/2023,2303-00505,0.00,141.92,R,Affinity Trust,No
Http://opendatacommunities.org/id/metropolitan-district-council/leeds,Leeds City Council as Accountable Body,31/03/2023,Social Services Pooled Budgets,Jcs For People With Learning Disabilitie,Agency Payments,Day Centre,564,09/03/2023,2303-00506,0.00,9545.95,R,Affinity Trust,No
Http://opendatacommunities.org/id/metropolitan-district-council/leeds,Leeds City Council as Accountable Body,31/03/2023,Social Services Pooled Budgets,Jcs For People With Learning Disabilitie,Agency Payments,Day Centre,564,09/03/2023,2303-00507,0.00,4314.31,R,Affinity Trust,No
Http://opendatacommunities.org/id/metropolitan-district-council/leeds,Leeds City Council,31/03/2023,Adults and Health,Assessment And Care Management,Agency Payments,Home Care,568,15/03/2023,2303-00508,0.00,141.92,R,Affinity Trust,No
Http://opendatacommunities.org/id/metropolitan-district-council/leeds,Leeds City Council,31/03/2023,Adults and Health,Services For Adults Under 65 Mental/Dis,Agency Payments,Home Care,568,15/03/2023,2303-00509,0.00,567.68,R,Affinity Trust,No
Http://opendatacommunities.org/id/metropolitan-district-council/leeds,Leeds City Council,31/03/2023,Adults and Health,Services For Adults Under 65 Mental/Dis,Agency Payments,HCAIT Community Support,575,15/03/2023,2303-00510,0.00,354.80,R,Affinity Trust,No
Http://opendatacommunities.org/id/metropolitan-district-council/leeds,Leeds City Council,31/03/2023,Adults and Health,Services For Older People - 65 And Over,Agency Payments,HCAIT Community Support,575,15/03/2023,2303-00511,0.00,638.64,R,Affinity Trust,No
Http://opendatacommunities.org/id/metropolitan-district-council/leeds,Leeds City Council,31/03/2023,Adults and Health,Services For Older People Under 65 P/Dis,Agency Payments,Home Care,568,15/03/2023,2303-00512,0.00,851.52,R,Affinity Trust,No
Http://opendatacommunities.org/id/metropolitan-district-council/leeds,Leeds City Council,31/03/2023,Adults and Health,Services For Older People Under 65 P/Dis,Agency Payments,HCAIT Community Support,575,15/03/2023,2303-00513,0.00,780.56,R,Affinity Trust,No
Http://opendatacommunities.org/id/metropolitan-district-council/leeds,Leeds City Council as Accountable Body,31/03/2023,Social Services Pooled Budgets,Jcs For People With Learning Disabilitie,Agency Payments,Day Centre,564,23/03/2023,2303-00514,0.00,24451.16,R,Affinity Trust,No
Http://opendatacommunities.org/id/metropolitan-district-council/leeds,Leeds City Council as Accountable Body,31/03/2023,Social Services Pooled Budgets,Jcs For People With Learning Disabilitie,Agency Payments,Day Centre,564,24/03/2023,2303-00515,0.00,29113.46,R,Affinity Trust,No
Http://opendatacommunities.org/id/metropolitan-district-council/leeds,Leeds City Council as Accountable Body,31/03/2023,Social Services Pooled Budgets,Jcs For People With Learning Disabilitie,Agency Payments,Day Centre,564,24/03/2023,2303-00516,0.00,15256.40,R,Affinity Trust,No
Http://opendatacommunities.org/id/metropolitan-district-council/leeds,Leeds City Council,31/03/2023,Adults and Health,Assessment And Care Management,Agency Payments,Home Care,568,31/03/2023,2303-00517,0.00,709.60,R,Affinity Trust,No
Http://opendatacommunities.org/id/metropolitan-district-council/leeds,Leeds City Council,31/03/2023,Adults and Health,Services For Older People - 65 And Over,Agency Payments,Home Care,568,31/03/2023,2303-00518,0.00,567.68,R,Affinity Trust,No
Http://opendatacommunities.org/id/metropolitan-district-council/leeds,Leeds City Council,31/03/2023,Adults and Health,Services For Adults Under 65 Mental/Dis,Agency Payments,Home Care,568,31/03/2023,2303-00519,0.00,141.92,R,Affinity Trust,No
Http://opendatacommunities.org/id/metropolitan-district-council/leeds,Leeds City Council as Accountable Body,31/03/2023,Social Services Pooled Budgets,Jcs For People With Learning Disabilitie,Agency Payments,Sheltered Accommodation,569,01/03/2023,2303-00520,0.00,116933.60,R,Affinity Trust North Divisional Office,No
Http://opendatacommunities.org/id/metropolitan-district-council/leeds,Leeds City Council as Accountable Body,31/03/2023,Social Services Pooled Budgets,Jcs For People With Learning Disabilitie,Agency Payments,Sheltered Accommodation,569,29/03/2023,2303-00521,0.00,138639.09,R,Affinity Trust North Divisional Office,No
Http://opendatacommunities.org/id/metropolitan-district-council/leeds,Leeds City Council,31/03/2023,Insurance,Insurance,Supplies and Services,Insurance Claims,248,29/03/2023,2303-00522,0.00,1178.10,R,Affirm Legal,No
Http://opendatacommunities.org/id/metropolitan-district-council/leeds,Leeds City Council,31/03/2023,Communities Housing and Environment,Parks and Countryside ,Transport,Hire Of Movable Plant & Machinery,315,16/01/2023,2303-00523,0.00,4750.00,R,Afi Uplift,Yes
Http://opendatacommunities.org/id/metropolitan-district-council/leeds,Leeds City Council,31/03/2023,Resources,Shared Services,Supplies and Services,Operational Furniture And Equipment,203,09/03/2023,2303-00524,0.00,627.08,R,AFM Europe Ltd,No
Http://opendatacommunities.org/id/metropolitan-district-council/leeds,Leeds City Council,31/03/2023,Children and Families,Social Care ,Agency Payments,Placement Support,550,20/01/2023,2303-00525,0.00,3.20,R,Afro Grocers,Yes
Http://opendatacommunities.org/id/metropolitan-district-council/leeds,Leeds City Council,31/03/2023,Children and Families,Social Care,Agency Payments,Placement Support,550,21/03/2023,2303-00526,0.00,120.00,R,AFRUCA - Safeguarding Children,No
Http://opendatacommunities.org/id/metropolitan-district-council/leeds,Leeds City Council,31/03/2023,Communities Housing and Environment,Benefits Wlefare and Poverty,Supplies and Services,Grant Related Expenditure,290,27/03/2023,2303-00527,0.00,650.00,R,REDACTED PERSONAL DATA,No
Http://opendatacommunities.org/id/metropolitan-district-council/leeds,Leeds City Council,31/03/2023,Communities Housing and Environment,Communities,Supplies and Services,Other Hired And Contracted Services,265,10/03/2023,2303-00528,0.00,-20.00,R,Age Uk Leeds,No
Http://opendatacommunities.org/id/metropolitan-district-council/leeds,Leeds City Council,31/03/2023,Communities Housing and Environment,Communities,Supplies and Services,Other Hired And Contracted Services,265,10/03/2023,2303-00529,0.00,100.00,R,Age Uk Leeds,No
Http://opendatacommunities.org/id/metropolitan-district-council/leeds,Leeds City Council,31/03/2023,Communities Housing and Environment,Communities,Supplies and Services,Other Hired And Contracted Services,265,10/03/2023,2303-00530,0.00,100.00,R,Age Uk Leeds,No
Http://opendatacommunities.org/id/metropolitan-district-council/leeds,Leeds City Council,31/03/2023,City Development,Employment & Skills,Agency Payments,Contributions To Partnerships,544,21/03/2023,2303-00531,0.00,45.00,R,Age Uk Leeds,No
Http://opendatacommunities.org/id/metropolitan-district-council/leeds,Leeds City Council,31/03/2023,City Development,Highways,Supplies and Services,Operational Materials,205,01/03/2023,2303-00532,0.00,6451.89,R,AGGREGATE INDUSTRIES UK LTD,No
Http://opendatacommunities.org/id/metropolitan-district-council/leeds,Leeds City Council,31/03/2023,City Development,Highways,Supplies and Services,Operational Materials,205,02/03/2023,2303-00533,0.00,12688.14,R,AGGREGATE INDUSTRIES UK LTD,No
Http://opendatacommunities.org/id/metropolitan-district-council/leeds,Leeds City Council,31/03/2023,City Development,Highways,Supplies and Services,Operational Materials,205,02/03/2023,2303-00534,0.00,2751.84,R,AGGREGATE INDUSTRIES UK LTD,No
Http://opendatacommunities.org/id/metropolitan-district-council/leeds,Leeds City Council,31/03/2023,City Development,Highways,Supplies and Services,Operational Materials,205,02/03/2023,2303-00535,0.00,13163.71,R,AGGREGATE INDUSTRIES UK LTD,No
Http://opendatacommunities.org/id/metropolitan-district-council/leeds,Leeds City Council,31/03/2023,City Development,Highways,Supplies and Services,Operational Materials,205,02/03/2023,2303-00536,0.00,51.38,R,AGGREGATE INDUSTRIES UK LTD,No
Http://opendatacommunities.org/id/metropolitan-district-council/leeds,Leeds City Council,31/03/2023,City Development,Highways,Supplies and Services,Operational Materials,205,02/03/2023,2303-00537,0.00,3056.78,R,AGGREGATE INDUSTRIES UK LTD,No
Http://opendatacommunities.org/id/metropolitan-district-council/leeds,Leeds City Council,31/03/2023,City Development,Highways,Supplies and Services,Operational Materials,205,03/03/2023,2303-00538,0.00,99.90,R,AGGREGATE INDUSTRIES UK LTD,No
Http://opendatacommunities.org/id/metropolitan-district-council/leeds,Leeds City Council,31/03/2023,City Development,Highways,Supplies and Services,Operational Materials,205,03/03/2023,2303-00539,0.00,5938.00,R,AGGREGATE INDUSTRIES UK LTD,No
Http://opendatacommunities.org/id/metropolitan-district-council/leeds,Leeds City Council,31/03/2023,City Development,Highways,Supplies and Services,Operational Materials,205,03/03/2023,2303-00540,0.00,2756.96,R,AGGREGATE INDUSTRIES UK LTD,No
Http://opendatacommunities.org/id/metropolitan-district-council/leeds,Leeds City Council,31/03/2023,City Development,Highways,Supplies and Services,Operational Materials,205,03/03/2023,2303-00541,0.00,6069.80,R,AGGREGATE INDUSTRIES UK LTD,No
Http://opendatacommunities.org/id/metropolitan-district-council/leeds,Leeds City Council,31/03/2023,City Development,Highways,Supplies and Services,Operational Materials,205,23/03/2023,2303-00542,0.00,3479.30,R,AGGREGATE INDUSTRIES UK LTD,No
Http://opendatacommunities.org/id/metropolitan-district-council/leeds,Leeds City Council,31/03/2023,City Development,Highways,Supplies and Services,Operational Materials,205,30/03/2023,2303-00543,0.00,1685.41,R,AGGREGATE INDUSTRIES UK LTD,No
Http://opendatacommunities.org/id/metropolitan-district-council/leeds,Leeds City Council,31/03/2023,Children and Families,Social Care,Appropriations,Leaving Care Allowances,634,16/03/2023,2303-00544,0.00,20.00,R,REDACTED PERSONAL DATA,No
Http://opendatacommunities.org/id/metropolitan-district-council/leeds,Leeds City Council,31/03/2023,Communities Housing and Environment,Customer Access,Supplies and Services,Bought In Professional Services,277,01/03/2023,2303-00545,0.00,10.00,R,Agnieszka J Collier,No
Http://opendatacommunities.org/id/metropolitan-district-council/leeds,Leeds City Council,31/03/2023,Communities Housing and Environment,Customer Access,Supplies and Services,Bought In Professional Services,277,01/03/2023,2303-00546,0.00,10.00,R,Agnieszka J Collier,No
Http://opendatacommunities.org/id/metropolitan-district-council/leeds,Leeds City Council,31/03/2023,Communities Housing and Environment,Customer Access,Supplies and Services,Bought In Professional Services,277,01/03/2023,2303-00547,0.00,9.00,R,Agnieszka J Collier,No
Http://opendatacommunities.org/id/metropolitan-district-council/leeds,Leeds City Council,31/03/2023,Communities Housing and Environment,Customer Access,Supplies and Services,Bought In Professional Services,277,01/03/2023,2303-00548,0.00,13.50,R,Agnieszka J Collier,No
Http://opendatacommunities.org/id/metropolitan-district-council/leeds,Leeds City Council,31/03/2023,Communities Housing and Environment,Customer Access,Supplies and Services,Bought In Professional Services,277,15/03/2023,2303-00549,0.00,265.68,R,Agnieszka J Collier,No
Http://opendatacommunities.org/id/metropolitan-district-council/leeds,Leeds City Council,31/03/2023,Communities Housing and Environment,Customer Access,Supplies and Services,Bought In Professional Services,277,15/03/2023,2303-00550,0.00,18.00,R,Agnieszka J Collier,No
Http://opendatacommunities.org/id/metropolitan-district-council/leeds,Leeds City Council,31/03/2023,Communities Housing and Environment,Customer Access,Supplies and Services,Bought In Professional Services,277,15/03/2023,2303-00551,0.00,18.00,R,Agnieszka J Collier,No
Http://opendatacommunities.org/id/metropolitan-district-council/leeds,Leeds City Council,31/03/2023,Communities Housing and Environment,Customer Access,Supplies and Services,Bought In Professional Services,277,22/03/2023,2303-00552,0.00,18.00,R,Agnieszka J Collier,No
Http://opendatacommunities.org/id/metropolitan-district-council/leeds,Leeds City Council,31/03/2023,Communities Housing and Environment,Customer Access,Supplies and Services,Bought In Professional Services,277,29/03/2023,2303-00553,0.00,18.00,R,Agnieszka J Collier,No
Http://opendatacommunities.org/id/metropolitan-district-council/leeds,Leeds City Council,31/03/2023,City Development,Libraries Arts & Heritage,Supplies and Services,Other Hired And Contracted Services,265,15/03/2023,2303-00554,0.00,4492.99,R,Agnis Smallwood,No
Http://opendatacommunities.org/id/metropolitan-district-council/leeds,Leeds City Council,31/03/2023,Communities Housing and Environment,Parks and Countryside,Supplies and Services,Operational Materials,205,10/03/2023,2303-00555,0.00,2086.70,R,Agrovista UK Ltd,No
Http://opendatacommunities.org/id/metropolitan-district-council/leeds,Leeds City Council,31/03/2023,Communities Housing and Environment,Parks and Countryside,Supplies and Services,Operational Materials,205,10/03/2023,2303-00556,0.00,1346.67,R,Agrovista UK Ltd,No
Http://opendatacommunities.org/id/metropolitan-district-council/leeds,Leeds City Council,31/03/2023,Children and Families,Social Care,Appropriations,Leaving Care Allowances,634,17/03/2023,2303-00557,0.00,50.00,R,REDACTED PERSONAL DATA,No
Http://opendatacommunities.org/id/metropolitan-district-council/leeds,Leeds City Council,31/03/2023,Communities Housing and Environment,Customer Access,Supplies and Services,Bought In Professional Services,277,08/03/2023,2303-00558,0.00,18.00,R,Ahmed Moustafa Moustafa Mousa,No
Http://opendatacommunities.org/id/metropolitan-district-council/leeds,Leeds City Council,31/03/2023,Communities Housing and Environment,Customer Access,Supplies and Services,Bought In Professional Services,277,29/03/2023,2303-00559,0.00,18.00,R,Ahmed Moustafa Moustafa Mousa,No
Http://opendatacommunities.org/id/metropolitan-district-council/leeds,Leeds City Council,31/03/2023,Communities Housing and Environment,Customer Access,Supplies and Services,Bought In Professional Services,277,22/03/2023,2303-00560,0.00,70.00,R,Ahmed T. Al-Hamdi,No
Http://opendatacommunities.org/id/metropolitan-district-council/leeds,Leeds City Council as Accountable Body,31/03/2023,Social Services Pooled Budgets,Leeds Community Equip Store Pooled Budgt,Supplies and Services,Other Equipment,203,16/03/2023,2303-00561,0.00,175.00,R,AIDAPT BATHROOMS LTD,No
Http://opendatacommunities.org/id/metropolitan-district-council/leeds,Leeds City Council as Accountable Body,31/03/2023,Social Services Pooled Budgets,Leeds Community Equip Store Pooled Budgt,Supplies and Services,Other Equipment,203,16/03/2023,2303-00562,0.00,77.00,R,AIDAPT BATHROOMS LTD,No
Http://opendatacommunities.org/id/metropolitan-district-council/leeds,Leeds City Council as Accountable Body,31/03/2023,Social Services Pooled Budgets,Leeds Community Equip Store Pooled Budgt,Supplies and Services,Other Equipment,203,16/03/2023,2303-00563,0.00,870.00,R,AIDAPT BATHROOMS LTD,No
Http://opendatacommunities.org/id/metropolitan-district-council/leeds,Leeds City Council as Accountable Body,31/03/2023,Social Services Pooled Budgets,Leeds Community Equip Store Pooled Budgt,Supplies and Services,Other Equipment,203,30/03/2023,2303-00564,0.00,-600.00,R,AIDAPT BATHROOMS LTD,No
Http://opendatacommunities.org/id/metropolitan-district-council/leeds,Leeds City Council as Accountable Body,31/03/2023,Social Services Pooled Budgets,Leeds Community Equip Store Pooled Budgt,Supplies and Services,Other Equipment,203,30/03/2023,2303-00565,0.00,660.00,R,AIDAPT BATHROOMS LTD,No
Http://opendatacommunities.org/id/metropolitan-district-council/leeds,Leeds City Council as Accountable Body,31/03/2023,Social Services Pooled Budgets,Leeds Community Equip Store Pooled Budgt,Supplies and Services,Other Equipment,203,30/03/2023,2303-00566,0.00,630.00,R,AIDAPT BATHROOMS LTD,No
Http://opendatacommunities.org/id/metropolitan-district-council/leeds,Leeds City Council,31/03/2023,Adults and Health,Services For Older People - 65 And Over,Supplies and Services,Operational Furniture And Equipment,203,31/03/2023,2303-00567,0.00,28.41,R,AIDAPT BATHROOMS LTD,No
Http://opendatacommunities.org/id/metropolitan-district-council/leeds,Leeds City Council,31/03/2023,Adults and Health,Services For Older People - 65 And Over,Supplies and Services,Operational Furniture And Equipment,203,31/03/2023,2303-00568,0.00,12.09,R,AIDAPT BATHROOMS LTD,No
Http://opendatacommunities.org/id/metropolitan-district-council/leeds,Leeds City Council,31/03/2023,City Development,Recreation,Employees,Training & Development,70,08/03/2023,2303-00569,0.00,200.00,R,Aime Henderson,No
Http://opendatacommunities.org/id/metropolitan-district-council/leeds,Leeds City Council,31/03/2023,Resources,Technology,Premises,Maint-Of Computers & CCTV,117,31/03/2023,2303-00570,0.00,9072.00,R,Aimsun Ltd,No
Http://opendatacommunities.org/id/metropolitan-district-council/leeds,Leeds City Council,31/03/2023,Resources,Leeds Building Services,Supplies and Services,Operational Materials,205,31/03/2023,2303-00571,0.00,71.08,R,Air Conditioning Accessories,No
Http://opendatacommunities.org/id/metropolitan-district-council/leeds,Leeds City Council,31/03/2023,Resources,Commercial Services ,Supplies and Services,Operational Materials,205,12/01/2023,2303-00572,0.00,278.58,R,Air Force Pneumatics And,Yes
Http://opendatacommunities.org/id/metropolitan-district-council/leeds,Leeds City Council,31/03/2023,Communities Housing and Environment,Environmental Health,Supplies and Services,Other Hired And Contracted Services,265,03/03/2023,2303-00573,0.00,11.75,R,AIR LIQUIDE UK,No
Http://opendatacommunities.org/id/metropolitan-district-council/leeds,Leeds City Council,31/03/2023,Communities Housing and Environment,Environmental Health,Supplies and Services,Other Hired And Contracted Services,265,03/03/2023,2303-00574,0.00,11.75,R,AIR LIQUIDE UK,No
Http://opendatacommunities.org/id/metropolitan-district-council/leeds,Leeds City Council,31/03/2023,Communities Housing and Environment,Environmental Health,Supplies and Services,Other Hired And Contracted Services,265,03/03/2023,2303-00575,0.00,18.16,R,AIR LIQUIDE UK,No
Http://opendatacommunities.org/id/metropolitan-district-council/leeds,Leeds City Council,31/03/2023,Communities Housing and Environment,Environmental Health,Supplies and Services,Other Hired And Contracted Services,265,03/03/2023,2303-00576,0.00,94.00,R,AIR LIQUIDE UK,No
Http://opendatacommunities.org/id/metropolitan-district-council/leeds,Leeds City Council,31/03/2023,Communities Housing and Environment,Environmental Health,Supplies and Services,Other Hired And Contracted Services,265,10/03/2023,2303-00577,0.00,615.97,R,AIR LIQUIDE UK,No
Http://opendatacommunities.org/id/metropolitan-district-council/leeds,Leeds City Council,31/03/2023,Communities Housing and Environment,Environmental Health,Supplies and Services,Office Consumables,210,10/03/2023,2303-00578,0.00,615.97,R,AIR LIQUIDE UK,No
Http://opendatacommunities.org/id/metropolitan-district-council/leeds,Leeds City Council,31/03/2023,Communities Housing and Environment,Environmental Health,Supplies and Services,Other Hired And Contracted Services,265,31/03/2023,2303-00579,0.00,11.75,R,AIR LIQUIDE UK,No
Http://opendatacommunities.org/id/metropolitan-district-council/leeds,Leeds City Council,31/03/2023,Communities Housing and Environment,Environmental Health,Supplies and Services,Other Hired And Contracted Services,265,31/03/2023,2303-00580,0.00,11.75,R,AIR LIQUIDE UK,No
Http://opendatacommunities.org/id/metropolitan-district-council/leeds,Leeds City Council,31/03/2023,Communities Housing and Environment,Environmental Health,Supplies and Services,Other Hired And Contracted Services,265,31/03/2023,2303-00581,0.00,11.75,R,AIR LIQUIDE UK,No
Http://opendatacommunities.org/id/metropolitan-district-council/leeds,Leeds City Council,31/03/2023,Communities Housing and Environment,Environmental Health,Supplies and Services,Other Hired And Contracted Services,265,31/03/2023,2303-00582,0.00,94.00,R,AIR LIQUIDE UK,No
Http://opendatacommunities.org/id/metropolitan-district-council/leeds,Leeds City Council,31/03/2023,Children and Families,Social Care ,Agency Payments,Section 17,551,20/01/2023,2303-00583,0.00,310.00,R,Airbnb * Hmkxh58nxq,Yes
Http://opendatacommunities.org/id/metropolitan-district-council/leeds,Leeds City Council,31/03/2023,Children and Families,Social Care ,Agency Payments,Section 17,551,21/01/2023,2303-00584,0.00,-310.00,R,Airbnb * Hmkxh58nxq,Yes
Http://opendatacommunities.org/id/metropolitan-district-council/leeds,Leeds City Council,31/03/2023,City Development,Libraries Arts & Heritage,Supplies and Services,Non-Recurring Grants,227,08/03/2023,2303-00585,0.00,120.00,R,Aire Place Studios CIC,No
Http://opendatacommunities.org/id/metropolitan-district-council/leeds,Leeds City Council,31/03/2023,Communities Housing and Environment,Parks and Countryside,Supplies and Services,Other Hired And Contracted Services,265,10/03/2023,2303-00586,0.00,518.00,R,Aire Valley Tree Services Ltd,No
Http://opendatacommunities.org/id/metropolitan-district-council/leeds,Leeds City Council,31/03/2023,Communities Housing and Environment,Parks and Countryside,Supplies and Services,Other Hired And Contracted Services,265,24/03/2023,2303-00587,0.00,1850.00,R,Aire Valley Tree Services Ltd,No
Http://opendatacommunities.org/id/metropolitan-district-council/leeds,Leeds City Council,31/03/2023,Adults and Health,Services For Older People - 65 And Over,Agency Payments,Residential Care Dementia,571,01/03/2023,2303-00588,0.00,79408.10,R,Aire View Residential Home,No
Http://opendatacommunities.org/id/metropolitan-district-council/leeds,Leeds City Council,31/03/2023,Adults and Health,Services For Older People - 65 And Over,Agency Payments,Residential,580,01/03/2023,2303-00589,0.00,9797.09,R,Aire View Residential Home,No
Http://opendatacommunities.org/id/metropolitan-district-council/leeds,Leeds City Council,31/03/2023,Adults and Health,Services For Older People - 65 And Over,Agency Payments,Residential Care Dementia,571,29/03/2023,2303-00590,0.00,47665.95,R,Aire View Residential Home,No
Http://opendatacommunities.org/id/metropolitan-district-council/leeds,Leeds City Council,31/03/2023,Adults and Health,Services For Older People - 65 And Over,Agency Payments,Residential,580,29/03/2023,2303-00591,0.00,9027.62,R,Aire View Residential Home,No
Http://opendatacommunities.org/id/metropolitan-district-council/leeds,Leeds City Council,31/03/2023,Adults and Health,Services For Older People Under 65 P/Dis,Agency Payments,Residential Care Dementia,571,29/03/2023,2303-00592,0.00,675.94,R,Aire View Residential Home,No
Http://opendatacommunities.org/id/metropolitan-district-council/leeds,Leeds City Council,31/03/2023,Adults and Health,Services For Older People - 65 And Over,Agency Payments,Residential Care Dementia,571,01/03/2023,2303-00593,0.00,24001.82,R,Airedale Residential Home,No
Http://opendatacommunities.org/id/metropolitan-district-council/leeds,Leeds City Council,31/03/2023,Adults and Health,Services For Older People - 65 And Over,Agency Payments,Residential,580,01/03/2023,2303-00594,0.00,17621.92,R,Airedale Residential Home,No
Http://opendatacommunities.org/id/metropolitan-district-council/leeds,Leeds City Council,31/03/2023,Adults and Health,Services For Older People - 65 And Over,Agency Payments,Residential Care Dementia,571,29/03/2023,2303-00595,0.00,22262.16,R,Airedale Residential Home,No
Http://opendatacommunities.org/id/metropolitan-district-council/leeds,Leeds City Council,31/03/2023,Adults and Health,Services For Older People - 65 And Over,Agency Payments,Residential,580,29/03/2023,2303-00596,0.00,26525.64,R,Airedale Residential Home,No
Http://opendatacommunities.org/id/metropolitan-district-council/leeds,Leeds City Council,31/03/2023,Adults and Health,Services For Older People Under 65 P/Dis,Agency Payments,Residential Care Dementia,571,29/03/2023,2303-00597,0.00,3207.37,R,Airedale Residential Home,No
Http://opendatacommunities.org/id/metropolitan-district-council/leeds,Leeds City Council,31/03/2023,Children and Families,Social Care ,Agency Payments,Placement Support,550,04/01/2023,2303-00598,0.00,13.75,R,Airpay 44961925-Amber Car,Yes
Http://opendatacommunities.org/id/metropolitan-district-council/leeds,Leeds City Council,31/03/2023,Children and Families,Social Care ,Agency Payments,Placement Support,550,04/01/2023,2303-00599,0.00,19.75,R,Airpay 44961967-Amber Car,Yes
Http://opendatacommunities.org/id/metropolitan-district-council/leeds,Leeds City Council,31/03/2023,Children and Families,Social Care ,Agency Payments,Placement Support,550,05/01/2023,2303-00600,0.00,12.45,R,Airpay 44962001-Amber Car,Yes
Http://opendatacommunities.org/id/metropolitan-district-council/leeds,Leeds City Council,31/03/2023,Children and Families,Social Care ,Agency Payments,Placement Support,550,06/01/2023,2303-00601,0.00,11.45,R,Airpay 44962039-Amber Car,Yes
Http://opendatacommunities.org/id/metropolitan-district-council/leeds,Leeds City Council,31/03/2023,Children and Families,Social Care ,Agency Payments,Placement Support,550,06/01/2023,2303-00602,0.00,11.25,R,Airpay 44962042-Amber Car,Yes
Http://opendatacommunities.org/id/metropolitan-district-council/leeds,Leeds City Council,31/03/2023,Children and Families,Social Care ,Agency Payments,Placement Support,550,05/01/2023,2303-00603,0.00,19.75,R,Airpay 44962052-Amber Car,Yes
Http://opendatacommunities.org/id/metropolitan-district-council/leeds,Leeds City Council,31/03/2023,Children and Families,Social Care ,Agency Payments,Placement Support,550,05/01/2023,2303-00604,0.00,19.85,R,Airpay 44962055-Amber Car,Yes
Http://opendatacommunities.org/id/metropolitan-district-council/leeds,Leeds City Council,31/03/2023,Children and Families,Social Care ,Agency Payments,Placement Support,550,06/01/2023,2303-00605,0.00,21.95,R,Airpay 44962058-Amber Car,Yes
Http://opendatacommunities.org/id/metropolitan-district-council/leeds,Leeds City Council,31/03/2023,Children and Families,Social Care ,Agency Payments,Placement Support,550,06/01/2023,2303-00606,0.00,21.95,R,Airpay 44962060-Amber Car,Yes
Http://opendatacommunities.org/id/metropolitan-district-council/leeds,Leeds City Council,31/03/2023,Children and Families,Social Care ,Agency Payments,Placement Support,550,09/01/2023,2303-00607,0.00,11.25,R,Airpay 44991036-Amber Car,Yes
Http://opendatacommunities.org/id/metropolitan-district-council/leeds,Leeds City Council,31/03/2023,Children and Families,Social Care ,Agency Payments,Placement Support,550,10/01/2023,2303-00608,0.00,12.55,R,Airpay 44991065-Amber Car,Yes
Http://opendatacommunities.org/id/metropolitan-district-council/leeds,Leeds City Council,31/03/2023,Children and Families,Social Care ,Agency Payments,Placement Support,550,10/01/2023,2303-00609,0.00,11.25,R,Airpay 44991083-Amber Car,Yes
Http://opendatacommunities.org/id/metropolitan-district-council/leeds,Leeds City Council,31/03/2023,Children and Families,Social Care ,Agency Payments,Placement Support,550,11/01/2023,2303-00610,0.00,12.65,R,Airpay 44991100-Amber Car,Yes
Http://opendatacommunities.org/id/metropolitan-district-council/leeds,Leeds City Council,31/03/2023,Children and Families,Social Care ,Agency Payments,Placement Support,550,11/01/2023,2303-00611,0.00,13.15,R,Airpay 44991117-Amber Car,Yes
Http://opendatacommunities.org/id/metropolitan-district-council/leeds,Leeds City Council,31/03/2023,Children and Families,Social Care ,Transport,Public Transport Expenses,310,11/01/2023,2303-00612,0.00,11.65,R,Airpay 44993407-Amber Car,Yes
Http://opendatacommunities.org/id/metropolitan-district-council/leeds,Leeds City Council,31/03/2023,Children and Families,Social Care ,Agency Payments,Placement Support,550,11/01/2023,2303-00613,0.00,8.55,R,Airpay 45052434-Amber Car,Yes
Http://opendatacommunities.org/id/metropolitan-district-council/leeds,Leeds City Council,31/03/2023,Children and Families,Social Care ,Transport,Public Transport Expenses,310,12/01/2023,2303-00614,0.00,17.54,R,Airpay 45053647-Amber Car,Yes
Http://opendatacommunities.org/id/metropolitan-district-council/leeds,Leeds City Council,31/03/2023,Children and Families,Social Care ,Agency Payments,Placement Support,550,12/01/2023,2303-00615,0.00,12.05,R,Airpay 45062345-Amber Car,Yes
Http://opendatacommunities.org/id/metropolitan-district-council/leeds,Leeds City Council,31/03/2023,Children and Families,Social Care ,Transport,Public Transport Expenses,310,12/01/2023,2303-00616,0.00,10.87,R,Airpay 45064438-Amber Car,Yes
Http://opendatacommunities.org/id/metropolitan-district-council/leeds,Leeds City Council,31/03/2023,Children and Families,Social Care ,Agency Payments,Placement Support,550,13/01/2023,2303-00617,0.00,11.35,R,Airpay 45081041-Amber Car,Yes
Http://opendatacommunities.org/id/metropolitan-district-council/leeds,Leeds City Council,31/03/2023,Children and Families,Social Care ,Agency Payments,Placement Support,550,16/01/2023,2303-00618,0.00,18.25,R,Airpay 45084695-Amber Car,Yes
Http://opendatacommunities.org/id/metropolitan-district-council/leeds,Leeds City Council,31/03/2023,Children and Families,Social Care ,Agency Payments,Placement Support,550,16/01/2023,2303-00619,0.00,18.15,R,Airpay 45084786-Amber Car,Yes
Http://opendatacommunities.org/id/metropolitan-district-council/leeds,Leeds City Council,31/03/2023,Children and Families,Social Care ,Agency Payments,Placement Support,550,17/01/2023,2303-00620,0.00,20.05,R,Airpay 45084819-Amber Car,Yes
Http://opendatacommunities.org/id/metropolitan-district-council/leeds,Leeds City Council,31/03/2023,Children and Families,Social Care ,Agency Payments,Placement Support,550,17/01/2023,2303-00621,0.00,18.35,R,Airpay 45084841-Amber Car,Yes
Http://opendatacommunities.org/id/metropolitan-district-council/leeds,Leeds City Council,31/03/2023,Children and Families,Social Care ,Agency Payments,Placement Support,550,18/01/2023,2303-00622,0.00,19.95,R,Airpay 45084858-Amber Car,Yes
Http://opendatacommunities.org/id/metropolitan-district-council/leeds,Leeds City Council,31/03/2023,Children and Families,Social Care ,Agency Payments,Placement Support,550,18/01/2023,2303-00623,0.00,20.55,R,Airpay 45084878-Amber Car,Yes
Http://opendatacommunities.org/id/metropolitan-district-council/leeds,Leeds City Council,31/03/2023,Children and Families,Social Care ,Appropriations,Leaving Care Allowances,634,16/01/2023,2303-00624,0.00,10.55,R,Airpay 45113818-Amber Car,Yes
Http://opendatacommunities.org/id/metropolitan-district-council/leeds,Leeds City Council,31/03/2023,Children and Families,Social Care ,Agency Payments,Placement Support,550,16/01/2023,2303-00625,0.00,8.85,R,Airpay 45116442-Amber Car,Yes
Http://opendatacommunities.org/id/metropolitan-district-council/leeds,Leeds City Council,31/03/2023,Children and Families,Social Care ,Agency Payments,Placement Support,550,23/01/2023,2303-00626,0.00,13.45,R,Airpay 45165788-Amber Car,Yes
Http://opendatacommunities.org/id/metropolitan-district-council/leeds,Leeds City Council,31/03/2023,Children and Families,Social Care ,Agency Payments,Placement Support,550,23/01/2023,2303-00627,0.00,17.85,R,Airpay 45203481-Amber Car,Yes
Http://opendatacommunities.org/id/metropolitan-district-council/leeds,Leeds City Council,31/03/2023,Children and Families,Social Care ,Agency Payments,Placement Support,550,23/01/2023,2303-00628,0.00,8.65,R,Airpay 45205657-Amber Car,Yes
Http://opendatacommunities.org/id/metropolitan-district-council/leeds,Leeds City Council,31/03/2023,Children and Families,Social Care ,Transport,Public Transport Expenses,310,23/01/2023,2303-00629,0.00,10.45,R,Airpay 45205911-Amber Car,Yes
Http://opendatacommunities.org/id/metropolitan-district-council/leeds,Leeds City Council,31/03/2023,Children and Families,Social Care ,Agency Payments,Placement Support,550,23/01/2023,2303-00630,0.00,12.95,R,Airpay 45206047-Amber Car,Yes
Http://opendatacommunities.org/id/metropolitan-district-council/leeds,Leeds City Council,31/03/2023,Children and Families,Social Care ,Agency Payments,Placement Support,550,25/01/2023,2303-00631,0.00,8.65,R,Airpay 45229527-Amber Car,Yes
Http://opendatacommunities.org/id/metropolitan-district-council/leeds,Leeds City Council,31/03/2023,Children and Families,Social Care ,Appropriations,Young Peoples Activities,652,29/01/2023,2303-00632,0.00,10.95,R,Airpay 45286406-Amber Car,Yes
Http://opendatacommunities.org/id/metropolitan-district-council/leeds,Leeds City Council,31/03/2023,Children and Families,Social Care ,Appropriations,Young Peoples Activities,652,29/01/2023,2303-00633,0.00,16.75,R,Airpay 45286415-Amber Car,Yes
Http://opendatacommunities.org/id/metropolitan-district-council/leeds,Leeds City Council,31/03/2023,Children and Families,Social Care ,Agency Payments,Placement Support,550,30/01/2023,2303-00634,0.00,10.35,R,Airpay 45298485-Amber Car,Yes
Http://opendatacommunities.org/id/metropolitan-district-council/leeds,Leeds City Council,31/03/2023,Adults and Health,Services For Adults Under 65 Mental/Dis,Agency Payments,Fees - Level 4,520,02/03/2023,2303-00635,0.00,175.00,R,AIT Mitra Limited,No
Http://opendatacommunities.org/id/metropolitan-district-council/leeds,Leeds City Council,31/03/2023,Adults and Health,Services For Adults Under 65 Mental/Dis,Agency Payments,Fees - Level 4,520,02/03/2023,2303-00636,0.00,175.00,R,AIT Mitra Limited,No
Http://opendatacommunities.org/id/metropolitan-district-council/leeds,Leeds City Council,31/03/2023,Adults and Health,Services For Adults Under 65 Mental/Dis,Agency Payments,Fees - Level 4,520,02/03/2023,2303-00637,0.00,175.00,R,AIT Mitra Limited,No
Http://opendatacommunities.org/id/metropolitan-district-council/leeds,Leeds City Council,31/03/2023,Adults and Health,Services For Adults Under 65 Mental/Dis,Agency Payments,Fees - Level 4,520,03/03/2023,2303-00638,0.00,175.00,R,AIT Mitra Limited,No
Http://opendatacommunities.org/id/metropolitan-district-council/leeds,Leeds City Council,31/03/2023,Adults and Health,Services For Adults Under 65 Mental/Dis,Agency Payments,Fees - Level 4,520,17/03/2023,2303-00639,0.00,175.00,R,AIT Mitra Limited,No
Http://opendatacommunities.org/id/metropolitan-district-council/leeds,Leeds City Council,31/03/2023,Adults and Health,Services For Adults Under 65 Mental/Dis,Agency Payments,Fees - Level 4,520,24/03/2023,2303-00640,0.00,175.00,R,AIT Mitra Limited,No
Http://opendatacommunities.org/id/metropolitan-district-council/leeds,Leeds City Council,31/03/2023,Adults and Health,Services For Adults Under 65 Mental/Dis,Agency Payments,Fees - Level 4,520,24/03/2023,2303-00641,0.00,175.00,R,AIT Mitra Limited,No
Http://opendatacommunities.org/id/metropolitan-district-council/leeds,Leeds City Council,31/03/2023,Adults and Health,Services For Adults Under 65 Mental/Dis,Agency Payments,Fees - Level 4,520,29/03/2023,2303-00642,0.00,175.00,R,AIT Mitra Limited,No
Http://opendatacommunities.org/id/metropolitan-district-council/leeds,Leeds City Council as Accountable Body,31/03/2023,Social Services Pooled Budgets,Jcs For People With Learning Disabilitie,Agency Payments,Residential,580,01/03/2023,2303-00643,0.00,7082.20,R,AITCH care homes,No
Http://opendatacommunities.org/id/metropolitan-district-council/leeds,Leeds City Council as Accountable Body,31/03/2023,Social Services Pooled Budgets,Jcs For People With Learning Disabilitie,Agency Payments,Residential,580,29/03/2023,2303-00644,0.00,7060.00,R,AITCH care homes,No
Http://opendatacommunities.org/id/metropolitan-district-council/leeds,Leeds City Council,31/03/2023,Resources,Leeds Building Services,Supplies and Services,Operational Furniture And Equipment,203,01/03/2023,2303-00645,0.00,116.00,R,AJM FIXINGS & POWER TOOLS LTD,No
Http://opendatacommunities.org/id/metropolitan-district-council/leeds,Leeds City Council,31/03/2023,Resources,Leeds Building Services,Supplies and Services,Operational Furniture And Equipment,203,01/03/2023,2303-00646,0.00,116.00,R,AJM FIXINGS & POWER TOOLS LTD,No
Http://opendatacommunities.org/id/metropolitan-district-council/leeds,Leeds City Council,31/03/2023,Resources,Leeds Building Services,Supplies and Services,Operational Furniture And Equipment,203,03/03/2023,2303-00647,0.00,200.00,R,AJM FIXINGS & POWER TOOLS LTD,No
Http://opendatacommunities.org/id/metropolitan-district-council/leeds,Leeds City Council,31/03/2023,Resources,Leeds Building Services,Supplies and Services,Operational Furniture And Equipment,203,03/03/2023,2303-00648,0.00,514.92,R,AJM FIXINGS & POWER TOOLS LTD,No
Http://opendatacommunities.org/id/metropolitan-district-council/leeds,Leeds City Council,31/03/2023,Resources,Leeds Building Services,Premises,Cleaning Maintenance & Toiletries,127,03/03/2023,2303-00649,0.00,17.99,R,AJM FIXINGS & POWER TOOLS LTD,No
Http://opendatacommunities.org/id/metropolitan-district-council/leeds,Leeds City Council,31/03/2023,Resources,Leeds Building Services,Supplies and Services,Operational Furniture And Equipment,203,03/03/2023,2303-00650,0.00,43.00,R,AJM FIXINGS & POWER TOOLS LTD,No
Http://opendatacommunities.org/id/metropolitan-district-council/leeds,Leeds City Council,31/03/2023,Resources,Leeds Building Services,Supplies and Services,Operational Furniture And Equipment,203,03/03/2023,2303-00651,0.00,138.00,R,AJM FIXINGS & POWER TOOLS LTD,No
Http://opendatacommunities.org/id/metropolitan-district-council/leeds,Leeds City Council,31/03/2023,Resources,Leeds Building Services,Supplies and Services,Operational Furniture And Equipment,203,03/03/2023,2303-00652,0.00,125.82,R,AJM FIXINGS & POWER TOOLS LTD,No
Http://opendatacommunities.org/id/metropolitan-district-council/leeds,Leeds City Council,31/03/2023,Resources,Leeds Building Services,Premises,Cleaning Maintenance & Toiletries,127,03/03/2023,2303-00653,0.00,485.00,R,AJM FIXINGS & POWER TOOLS LTD,No
Http://opendatacommunities.org/id/metropolitan-district-council/leeds,Leeds City Council,31/03/2023,Resources,Leeds Building Services,Supplies and Services,Operational Furniture And Equipment,203,03/03/2023,2303-00654,0.00,142.00,R,AJM FIXINGS & POWER TOOLS LTD,No
Http://opendatacommunities.org/id/metropolitan-district-council/leeds,Leeds City Council,31/03/2023,Resources,Leeds Building Services,Supplies and Services,Operational Furniture And Equipment,203,03/03/2023,2303-00655,0.00,93.00,R,AJM FIXINGS & POWER TOOLS LTD,No
Http://opendatacommunities.org/id/metropolitan-district-council/leeds,Leeds City Council,31/03/2023,Resources,Leeds Building Services,Supplies and Services,Operational Furniture And Equipment,203,03/03/2023,2303-00656,0.00,232.00,R,AJM FIXINGS & POWER TOOLS LTD,No
Http://opendatacommunities.org/id/metropolitan-district-council/leeds,Leeds City Council,31/03/2023,Resources,Leeds Building Services,Premises,Cleaning Maintenance & Toiletries,127,08/03/2023,2303-00657,0.00,393.00,R,AJM FIXINGS & POWER TOOLS LTD,No
Http://opendatacommunities.org/id/metropolitan-district-council/leeds,Leeds City Council,31/03/2023,Resources,Leeds Building Services,Premises,Cleaning Maintenance & Toiletries,127,10/03/2023,2303-00658,0.00,219.50,R,AJM FIXINGS & POWER TOOLS LTD,No
Http://opendatacommunities.org/id/metropolitan-district-council/leeds,Leeds City Council,31/03/2023,Resources,Leeds Building Services,Premises,Cleaning Maintenance & Toiletries,127,10/03/2023,2303-00659,0.00,47.00,R,AJM FIXINGS & POWER TOOLS LTD,No
Http://opendatacommunities.org/id/metropolitan-district-council/leeds,Leeds City Council,31/03/2023,Resources,Leeds Building Services,Premises,Cleaning Maintenance & Toiletries,127,10/03/2023,2303-00660,0.00,343.96,R,AJM FIXINGS & POWER TOOLS LTD,No
Http://opendatacommunities.org/id/metropolitan-district-council/leeds,Leeds City Council,31/03/2023,Resources,Leeds Building Services,Supplies and Services,Operational Furniture And Equipment,203,10/03/2023,2303-00661,0.00,303.00,R,AJM FIXINGS & POWER TOOLS LTD,No
Http://opendatacommunities.org/id/metropolitan-district-council/leeds,Leeds City Council,31/03/2023,Resources,Leeds Building Services,Premises,Cleaning Maintenance & Toiletries,127,10/03/2023,2303-00662,0.00,232.50,R,AJM FIXINGS & POWER TOOLS LTD,No
Http://opendatacommunities.org/id/metropolitan-district-council/leeds,Leeds City Council,31/03/2023,Resources,Leeds Building Services,Supplies and Services,Operational Furniture And Equipment,203,10/03/2023,2303-00663,0.00,981.88,R,AJM FIXINGS & POWER TOOLS LTD,No
Http://opendatacommunities.org/id/metropolitan-district-council/leeds,Leeds City Council,31/03/2023,Resources,Leeds Building Services,Premises,Cleaning Maintenance & Toiletries,127,10/03/2023,2303-00664,0.00,197.97,R,AJM FIXINGS & POWER TOOLS LTD,No
Http://opendatacommunities.org/id/metropolitan-district-council/leeds,Leeds City Council,31/03/2023,Resources,Leeds Building Services,Supplies and Services,Operational Furniture And Equipment,203,10/03/2023,2303-00665,0.00,75.54,R,AJM FIXINGS & POWER TOOLS LTD,No
Http://opendatacommunities.org/id/metropolitan-district-council/leeds,Leeds City Council,31/03/2023,Resources,Leeds Building Services,Supplies and Services,Operational Furniture And Equipment,203,10/03/2023,2303-00666,0.00,63.50,R,AJM FIXINGS & POWER TOOLS LTD,No
Http://opendatacommunities.org/id/metropolitan-district-council/leeds,Leeds City Council,31/03/2023,Resources,Leeds Building Services,Supplies and Services,Operational Furniture And Equipment,203,10/03/2023,2303-00667,0.00,199.00,R,AJM FIXINGS & POWER TOOLS LTD,No
Http://opendatacommunities.org/id/metropolitan-district-council/leeds,Leeds City Council,31/03/2023,Resources,Leeds Building Services,Premises,Cleaning Maintenance & Toiletries,127,10/03/2023,2303-00668,0.00,22.24,R,AJM FIXINGS & POWER TOOLS LTD,No
Http://opendatacommunities.org/id/metropolitan-district-council/leeds,Leeds City Council,31/03/2023,Resources,Leeds Building Services,Premises,Cleaning Maintenance & Toiletries,127,13/03/2023,2303-00669,0.00,45.48,R,AJM FIXINGS & POWER TOOLS LTD,No
Http://opendatacommunities.org/id/metropolitan-district-council/leeds,Leeds City Council,31/03/2023,Resources,Leeds Building Services,Supplies and Services,Operational Furniture And Equipment,203,16/03/2023,2303-00670,0.00,63.50,R,AJM FIXINGS & POWER TOOLS LTD,No
Http://opendatacommunities.org/id/metropolitan-district-council/leeds,Leeds City Council,31/03/2023,Resources,Leeds Building Services,Supplies and Services,Operational Furniture And Equipment,203,16/03/2023,2303-00671,0.00,1144.16,R,AJM FIXINGS & POWER TOOLS LTD,No
Http://opendatacommunities.org/id/metropolitan-district-council/leeds,Leeds City Council,31/03/2023,Resources,Leeds Building Services,Supplies and Services,Operational Furniture And Equipment,203,16/03/2023,2303-00672,0.00,120.00,R,AJM FIXINGS & POWER TOOLS LTD,No
Http://opendatacommunities.org/id/metropolitan-district-council/leeds,Leeds City Council,31/03/2023,Resources,Leeds Building Services,Premises,Cleaning Maintenance & Toiletries,127,16/03/2023,2303-00673,0.00,330.10,R,AJM FIXINGS & POWER TOOLS LTD,No
Http://opendatacommunities.org/id/metropolitan-district-council/leeds,Leeds City Council,31/03/2023,Resources,Leeds Building Services,Supplies and Services,Operational Furniture And Equipment,203,17/03/2023,2303-00674,0.00,62.99,R,AJM FIXINGS & POWER TOOLS LTD,No
Http://opendatacommunities.org/id/metropolitan-district-council/leeds,Leeds City Council,31/03/2023,Resources,Leeds Building Services,Supplies and Services,Operational Furniture And Equipment,203,17/03/2023,2303-00675,0.00,878.16,R,AJM FIXINGS & POWER TOOLS LTD,No
Http://opendatacommunities.org/id/metropolitan-district-council/leeds,Leeds City Council,31/03/2023,Resources,Leeds Building Services,Supplies and Services,Operational Furniture And Equipment,203,17/03/2023,2303-00676,0.00,868.16,R,AJM FIXINGS & POWER TOOLS LTD,No
Http://opendatacommunities.org/id/metropolitan-district-council/leeds,Leeds City Council,31/03/2023,Resources,Leeds Building Services,Supplies and Services,Operational Furniture And Equipment,203,17/03/2023,2303-00677,0.00,1710.57,R,AJM FIXINGS & POWER TOOLS LTD,No
Http://opendatacommunities.org/id/metropolitan-district-council/leeds,Leeds City Council,31/03/2023,Resources,Leeds Building Services,Premises,Cleaning Maintenance & Toiletries,127,17/03/2023,2303-00678,0.00,49.50,R,AJM FIXINGS & POWER TOOLS LTD,No
Http://opendatacommunities.org/id/metropolitan-district-council/leeds,Leeds City Council,31/03/2023,Resources,Leeds Building Services,Premises,Cleaning Maintenance & Toiletries,127,17/03/2023,2303-00679,0.00,258.20,R,AJM FIXINGS & POWER TOOLS LTD,No
Http://opendatacommunities.org/id/metropolitan-district-council/leeds,Leeds City Council,31/03/2023,Resources,Leeds Building Services,Supplies and Services,Operational Furniture And Equipment,203,17/03/2023,2303-00680,0.00,199.70,R,AJM FIXINGS & POWER TOOLS LTD,No
Http://opendatacommunities.org/id/metropolitan-district-council/leeds,Leeds City Council,31/03/2023,Resources,Leeds Building Services,Supplies and Services,Operational Furniture And Equipment,203,17/03/2023,2303-00681,0.00,369.60,R,AJM FIXINGS & POWER TOOLS LTD,No
Http://opendatacommunities.org/id/metropolitan-district-council/leeds,Leeds City Council,31/03/2023,Resources,Leeds Building Services,Supplies and Services,Operational Furniture And Equipment,203,17/03/2023,2303-00682,0.00,31.01,R,AJM FIXINGS & POWER TOOLS LTD,No
Http://opendatacommunities.org/id/metropolitan-district-council/leeds,Leeds City Council,31/03/2023,Resources,Leeds Building Services,Supplies and Services,Operational Materials,205,17/03/2023,2303-00683,0.00,30.00,R,AJM FIXINGS & POWER TOOLS LTD,No
Http://opendatacommunities.org/id/metropolitan-district-council/leeds,Leeds City Council,31/03/2023,Resources,Leeds Building Services,Supplies and Services,Operational Materials,205,17/03/2023,2303-00684,0.00,167.52,R,AJM FIXINGS & POWER TOOLS LTD,No
Http://opendatacommunities.org/id/metropolitan-district-council/leeds,Leeds City Council,31/03/2023,Resources,Leeds Building Services,Supplies and Services,Operational Furniture And Equipment,203,17/03/2023,2303-00685,0.00,92.00,R,AJM FIXINGS & POWER TOOLS LTD,No
Http://opendatacommunities.org/id/metropolitan-district-council/leeds,Leeds City Council,31/03/2023,Resources,Leeds Building Services,Premises,Cleaning Maintenance & Toiletries,127,17/03/2023,2303-00686,0.00,240.20,R,AJM FIXINGS & POWER TOOLS LTD,No
Http://opendatacommunities.org/id/metropolitan-district-council/leeds,Leeds City Council,31/03/2023,Resources,Leeds Building Services,Supplies and Services,Operational Furniture And Equipment,203,17/03/2023,2303-00687,0.00,313.11,R,AJM FIXINGS & POWER TOOLS LTD,No
Http://opendatacommunities.org/id/metropolitan-district-council/leeds,Leeds City Council,31/03/2023,Resources,Leeds Building Services,Supplies and Services,Operational Furniture And Equipment,203,21/03/2023,2303-00688,0.00,54.72,R,AJM FIXINGS & POWER TOOLS LTD,No
Http://opendatacommunities.org/id/metropolitan-district-council/leeds,Leeds City Council,31/03/2023,Resources,Leeds Building Services,Supplies and Services,Operational Furniture And Equipment,203,21/03/2023,2303-00689,0.00,673.00,R,AJM FIXINGS & POWER TOOLS LTD,No
Http://opendatacommunities.org/id/metropolitan-district-council/leeds,Leeds City Council,31/03/2023,Resources,Leeds Building Services,Premises,Cleaning Maintenance & Toiletries,127,21/03/2023,2303-00690,0.00,336.00,R,AJM FIXINGS & POWER TOOLS LTD,No
Http://opendatacommunities.org/id/metropolitan-district-council/leeds,Leeds City Council,31/03/2023,Resources,Leeds Building Services,Premises,Cleaning Maintenance & Toiletries,127,23/03/2023,2303-00691,0.00,45.00,R,AJM FIXINGS & POWER TOOLS LTD,No
Http://opendatacommunities.org/id/metropolitan-district-council/leeds,Leeds City Council,31/03/2023,Resources,Leeds Building Services,Supplies and Services,Operational Furniture And Equipment,203,23/03/2023,2303-00692,0.00,618.16,R,AJM FIXINGS & POWER TOOLS LTD,No
Http://opendatacommunities.org/id/metropolitan-district-council/leeds,Leeds City Council,31/03/2023,Resources,Leeds Building Services,Supplies and Services,Operational Furniture And Equipment,203,23/03/2023,2303-00693,0.00,259.00,R,AJM FIXINGS & POWER TOOLS LTD,No
Http://opendatacommunities.org/id/metropolitan-district-council/leeds,Leeds City Council,31/03/2023,Resources,Leeds Building Services,Supplies and Services,Operational Furniture And Equipment,203,23/03/2023,2303-00694,0.00,525.00,R,AJM FIXINGS & POWER TOOLS LTD,No
Http://opendatacommunities.org/id/metropolitan-district-council/leeds,Leeds City Council,31/03/2023,Resources,Leeds Building Services,Premises,Cleaning Maintenance & Toiletries,127,23/03/2023,2303-00695,0.00,252.50,R,AJM FIXINGS & POWER TOOLS LTD,No
Http://opendatacommunities.org/id/metropolitan-district-council/leeds,Leeds City Council,31/03/2023,Resources,Leeds Building Services,Premises,Cleaning Maintenance & Toiletries,127,24/03/2023,2303-00696,0.00,106.50,R,AJM FIXINGS & POWER TOOLS LTD,No
Http://opendatacommunities.org/id/metropolitan-district-council/leeds,Leeds City Council,31/03/2023,Resources,Leeds Building Services,Supplies and Services,Operational Furniture And Equipment,203,24/03/2023,2303-00697,0.00,142.00,R,AJM FIXINGS & POWER TOOLS LTD,No
Http://opendatacommunities.org/id/metropolitan-district-council/leeds,Leeds City Council,31/03/2023,Resources,Leeds Building Services,Supplies and Services,Operational Furniture And Equipment,203,24/03/2023,2303-00698,0.00,359.16,R,AJM FIXINGS & POWER TOOLS LTD,No
Http://opendatacommunities.org/id/metropolitan-district-council/leeds,Leeds City Council,31/03/2023,Resources,Leeds Building Services,Premises,Cleaning Maintenance & Toiletries,127,27/03/2023,2303-00699,0.00,217.00,R,AJM FIXINGS & POWER TOOLS LTD,No
Http://opendatacommunities.org/id/metropolitan-district-council/leeds,Leeds City Council,31/03/2023,Resources,Leeds Building Services,Premises,Cleaning Maintenance & Toiletries,127,27/03/2023,2303-00700,0.00,231.00,R,AJM FIXINGS & POWER TOOLS LTD,No
Http://opendatacommunities.org/id/metropolitan-district-council/leeds,Leeds City Council,31/03/2023,Resources,Leeds Building Services,Supplies and Services,Operational Furniture And Equipment,203,27/03/2023,2303-00701,0.00,579.99,R,AJM FIXINGS & POWER TOOLS LTD,No
Http://opendatacommunities.org/id/metropolitan-district-council/leeds,Leeds City Council,31/03/2023,Resources,Leeds Building Services,Supplies and Services,Operational Furniture And Equipment,203,27/03/2023,2303-00702,0.00,1450.57,R,AJM FIXINGS & POWER TOOLS LTD,No
Http://opendatacommunities.org/id/metropolitan-district-council/leeds,Leeds City Council,31/03/2023,Resources,Leeds Building Services,Supplies and Services,Operational Furniture And Equipment,203,27/03/2023,2303-00703,0.00,555.60,R,AJM FIXINGS & POWER TOOLS LTD,No
Http://opendatacommunities.org/id/metropolitan-district-council/leeds,Leeds City Council,31/03/2023,Resources,Leeds Building Services,Supplies and Services,Operational Furniture And Equipment,203,27/03/2023,2303-00704,0.00,97.51,R,AJM FIXINGS & POWER TOOLS LTD,No
Http://opendatacommunities.org/id/metropolitan-district-council/leeds,Leeds City Council,31/03/2023,Resources,Leeds Building Services,Premises,Cleaning Maintenance & Toiletries,127,27/03/2023,2303-00705,0.00,163.60,R,AJM FIXINGS & POWER TOOLS LTD,No
Http://opendatacommunities.org/id/metropolitan-district-council/leeds,Leeds City Council,31/03/2023,Resources,Leeds Building Services,Supplies and Services,Operational Furniture And Equipment,203,27/03/2023,2303-00706,0.00,286.50,R,AJM FIXINGS & POWER TOOLS LTD,No
Http://opendatacommunities.org/id/metropolitan-district-council/leeds,Leeds City Council,31/03/2023,Resources,Leeds Building Services,Premises,Cleaning Maintenance & Toiletries,127,27/03/2023,2303-00707,0.00,1545.00,R,AJM FIXINGS & POWER TOOLS LTD,No
Http://opendatacommunities.org/id/metropolitan-district-council/leeds,Leeds City Council,31/03/2023,Resources,Leeds Building Services,Supplies and Services,Operational Furniture And Equipment,203,27/03/2023,2303-00708,0.00,575.00,R,AJM FIXINGS & POWER TOOLS LTD,No
Http://opendatacommunities.org/id/metropolitan-district-council/leeds,Leeds City Council,31/03/2023,Resources,Leeds Building Services,Supplies and Services,Operational Furniture And Equipment,203,29/03/2023,2303-00709,0.00,235.75,R,AJM FIXINGS & POWER TOOLS LTD,No
Http://opendatacommunities.org/id/metropolitan-district-council/leeds,Leeds City Council,31/03/2023,Resources,Leeds Building Services,Supplies and Services,Operational Furniture And Equipment,203,29/03/2023,2303-00710,0.00,134.75,R,AJM FIXINGS & POWER TOOLS LTD,No
Http://opendatacommunities.org/id/metropolitan-district-council/leeds,Leeds City Council,31/03/2023,Resources,Leeds Building Services,Supplies and Services,Operational Materials,205,29/03/2023,2303-00711,0.00,99.50,R,AJM FIXINGS & POWER TOOLS LTD,No
Http://opendatacommunities.org/id/metropolitan-district-council/leeds,Leeds City Council,31/03/2023,Resources,Leeds Building Services,Premises,Cleaning Maintenance & Toiletries,127,29/03/2023,2303-00712,0.00,406.25,R,AJM FIXINGS & POWER TOOLS LTD,No
Http://opendatacommunities.org/id/metropolitan-district-council/leeds,Leeds City Council,31/03/2023,Resources,Leeds Building Services,Supplies and Services,Operational Furniture And Equipment,203,31/03/2023,2303-00713,0.00,1878.94,R,AJM FIXINGS & POWER TOOLS LTD,No
Http://opendatacommunities.org/id/metropolitan-district-council/leeds,Leeds City Council,31/03/2023,Resources,Leeds Building Services,Supplies and Services,Operational Materials,205,31/03/2023,2303-00714,0.00,199.00,R,AJM FIXINGS & POWER TOOLS LTD,No
Http://opendatacommunities.org/id/metropolitan-district-council/leeds,Leeds City Council,31/03/2023,Resources,Leeds Building Services,Supplies and Services,Operational Furniture And Equipment,203,31/03/2023,2303-00715,0.00,359.90,R,AJM FIXINGS & POWER TOOLS LTD,No
Http://opendatacommunities.org/id/metropolitan-district-council/leeds,Leeds City Council,31/03/2023,Resources,Leeds Building Services,Supplies and Services,Operational Furniture And Equipment,203,31/03/2023,2303-00716,0.00,142.00,R,AJM FIXINGS & POWER TOOLS LTD,No
Http://opendatacommunities.org/id/metropolitan-district-council/leeds,Leeds City Council,31/03/2023,Resources,Leeds Building Services,Supplies and Services,Operational Furniture And Equipment,203,31/03/2023,2303-00717,0.00,67.00,R,AJM FIXINGS & POWER TOOLS LTD,No
Http://opendatacommunities.org/id/metropolitan-district-council/leeds,Leeds City Council,31/03/2023,Resources,Leeds Building Services,Supplies and Services,Operational Furniture And Equipment,203,31/03/2023,2303-00718,0.00,254.10,R,AJM FIXINGS & POWER TOOLS LTD,No
Http://opendatacommunities.org/id/metropolitan-district-council/leeds,Leeds City Council,31/03/2023,Resources,Leeds Building Services,Premises,Cleaning Maintenance & Toiletries,127,31/03/2023,2303-00719,0.00,268.80,R,AJM FIXINGS & POWER TOOLS LTD,No
Http://opendatacommunities.org/id/metropolitan-district-council/leeds,Leeds City Council,31/03/2023,Resources,Leeds Building Services,Premises,Cleaning Maintenance & Toiletries,127,31/03/2023,2303-00720,0.00,343.96,R,AJM FIXINGS & POWER TOOLS LTD,No
Http://opendatacommunities.org/id/metropolitan-district-council/leeds,Leeds City Council,31/03/2023,Children and Families,Social Care,Supplies and Services,General Amenity For Clients/Residents,285,28/03/2023,2303-00721,0.00,63.00,R,REDACTED PERSONAL DATA,No
Http://opendatacommunities.org/id/metropolitan-district-council/leeds,Leeds City Council,31/03/2023,Children and Families,Social Care,Transport,Public Transport Expenses,310,28/03/2023,2303-00722,0.00,13.60,R,REDACTED PERSONAL DATA,No
Http://opendatacommunities.org/id/metropolitan-district-council/leeds,Leeds City Council,31/03/2023,Communities Housing and Environment,Benefits Wlefare and Poverty,Supplies and Services,Grant Related Expenditure,290,24/03/2023,2303-00723,0.00,100.00,R,REDACTED PERSONAL DATA,No
Http://opendatacommunities.org/id/metropolitan-district-council/leeds,Leeds City Council,31/03/2023,Strategic Landlord,HRA Housing Leeds,Capital,CONSTRUCTION,3,16/03/2023,2303-00724,0.00,100.00,C,REDACTED PERSONAL DATA,No
Http://opendatacommunities.org/id/metropolitan-district-council/leeds,Leeds City Council,31/03/2023,Communities Housing and Environment,Strategic Housing Partnership & Support,Capital,CONSTRUCTION,3,09/03/2023,2303-00725,0.00,2000.00,C,AKR Construction Ltd,No
Http://opendatacommunities.org/id/metropolitan-district-council/leeds,Leeds City Council,31/03/2023,Communities Housing and Environment,Strategic Housing Partnership & Support,Capital,CONSTRUCTION,3,09/03/2023,2303-00726,0.00,6500.00,C,AKR Construction Ltd,No
Http://opendatacommunities.org/id/metropolitan-district-council/leeds,Leeds City Council,31/03/2023,Communities Housing and Environment,Strategic Housing Partnership & Support,Capital,CONSTRUCTION,3,17/03/2023,2303-00727,0.00,5000.00,C,AKR Construction Ltd,No
Http://opendatacommunities.org/id/metropolitan-district-council/leeds,Leeds City Council,31/03/2023,Communities Housing and Environment,Strategic Housing Partnership & Support,Capital,CONSTRUCTION,3,17/03/2023,2303-00728,0.00,1900.00,C,AKR Construction Ltd,No
Http://opendatacommunities.org/id/metropolitan-district-council/leeds,Leeds City Council,31/03/2023,Communities Housing and Environment,Strategic Housing Partnership & Support,Capital,CONSTRUCTION,3,17/03/2023,2303-00729,0.00,2000.00,C,AKR Construction Ltd,No
Http://opendatacommunities.org/id/metropolitan-district-council/leeds,Leeds City Council,31/03/2023,Communities Housing and Environment,Strategic Housing Partnership & Support,Capital,CONSTRUCTION,3,23/03/2023,2303-00730,0.00,5000.00,C,AKR Construction Ltd,No
Http://opendatacommunities.org/id/metropolitan-district-council/leeds,Leeds City Council,31/03/2023,Communities Housing and Environment,Strategic Housing Partnership & Support,Capital,CONSTRUCTION,3,23/03/2023,2303-00731,0.00,2500.00,C,AKR Construction Ltd,No
Http://opendatacommunities.org/id/metropolitan-district-council/leeds,Leeds City Council,31/03/2023,Communities Housing and Environment,Strategic Housing Partnership & Support,Capital,CONSTRUCTION,3,23/03/2023,2303-00732,0.00,5000.00,C,AKR Construction Ltd,No
Http://opendatacommunities.org/id/metropolitan-district-council/leeds,Leeds City Council,31/03/2023,Communities Housing and Environment,Strategic Housing Partnership & Support,Capital,CONSTRUCTION,3,23/03/2023,2303-00733,0.00,6000.00,C,AKR Construction Ltd,No
Http://opendatacommunities.org/id/metropolitan-district-council/leeds,Leeds City Council,31/03/2023,Resources,Democratic Services ,Appropriations,Civic Allowances,651,20/01/2023,2303-00734,0.00,80.00,R,Alan Brown Flowers,Yes
Http://opendatacommunities.org/id/metropolitan-district-council/leeds,Leeds City Council,31/03/2023,City Development,Libraries Arts & Heritage,Supplies and Services,Other Hired And Contracted Services,265,08/03/2023,2303-00735,0.00,400.00,R,ALAN HORSEY,No
Http://opendatacommunities.org/id/metropolitan-district-council/leeds,Leeds City Council,31/03/2023,Communities Housing and Environment,Parks and Countryside ,Transport,Plant Spares,346,16/01/2023,2303-00736,0.00,2.50,R,Albion Electric Stores Lt,Yes
Http://opendatacommunities.org/id/metropolitan-district-council/leeds,Leeds City Council,31/03/2023,Communities Housing and Environment,Communities,Supplies and Services,Computer Software & Equipment,214,17/03/2023,2303-00737,0.00,1228.33,R,Alcium Software Ltd,No
Http://opendatacommunities.org/id/metropolitan-district-council/leeds,Leeds City Council,31/03/2023,Communities Housing and Environment,Communities,Supplies and Services,Computer Software & Equipment,214,23/03/2023,2303-00738,0.00,1228.33,R,Alcium Software Ltd,No
Http://opendatacommunities.org/id/metropolitan-district-council/leeds,Leeds City Council,31/03/2023,Communities Housing and Environment,Community Safety,Supplies and Services,Other Hired And Contracted Services,265,02/03/2023,2303-00739,0.00,795.00,R,Alcohol Research UK,No
Http://opendatacommunities.org/id/metropolitan-district-council/leeds,Leeds City Council,31/03/2023,Children and Families,Social Care ,Appropriations,Leaving Care Allowances,634,16/01/2023,2303-00740,0.00,22.49,R,Aldi,Yes
Http://opendatacommunities.org/id/metropolitan-district-council/leeds,Leeds City Council,31/03/2023,Communities Housing and Environment,Elections Licensing and Registration ,Supplies and Services,Office Consumables,210,21/01/2023,2303-00741,0.00,8.97,R,Aldi,Yes
Http://opendatacommunities.org/id/metropolitan-district-council/leeds,Leeds City Council,31/03/2023,Children and Families,Social Care ,Supplies and Services,Food & Drink,231,13/01/2023,2303-00742,0.00,6.47,R,Aldi 103 779,Yes
Http://opendatacommunities.org/id/metropolitan-district-council/leeds,Leeds City Council,31/03/2023,Children and Families,Social Care ,Appropriations,Leaving Care Allowances,634,20/01/2023,2303-00743,0.00,20.99,R,Aldi 46 779,Yes
Http://opendatacommunities.org/id/metropolitan-district-council/leeds,Leeds City Council,31/03/2023,Children and Families,Social Care ,Premises,Cleaning Maintenance & Toiletries,127,11/01/2023,2303-00744,0.00,4.16,R,Aldi 49 779,Yes
Http://opendatacommunities.org/id/metropolitan-district-council/leeds,Leeds City Council,31/03/2023,Children and Families,Social Care ,Supplies and Services,Food & Drink,231,19/01/2023,2303-00745,0.00,16.28,R,Aldi 49 779,Yes
Http://opendatacommunities.org/id/metropolitan-district-council/leeds,Leeds City Council,31/03/2023,Children and Families,Social Care ,Supplies and Services,Food & Drink,231,26/01/2023,2303-00746,0.00,75.00,R,Aldi 49 779,Yes
Http://opendatacommunities.org/id/metropolitan-district-council/leeds,Leeds City Council,31/03/2023,Strategic Landlord,Housing Management ,Supplies and Services,Office Furniture & Equipment,201,26/01/2023,2303-00747,0.00,36.60,R,Aldi 779-126,Yes
Http://opendatacommunities.org/id/metropolitan-district-council/leeds,Leeds City Council,31/03/2023,Children and Families,Social Care ,Appropriations,Leaving Care Allowances,634,11/01/2023,2303-00748,0.00,19.53,R,Aldi 85 779,Yes
Http://opendatacommunities.org/id/metropolitan-district-council/leeds,Leeds City Council,31/03/2023,Children and Families,Social Care ,Supplies and Services,Food & Drink,231,24/01/2023,2303-00749,0.00,19.84,R,Aldi 85 779,Yes
Http://opendatacommunities.org/id/metropolitan-district-council/leeds,Leeds City Council,31/03/2023,Children and Families,Social Care ,Appropriations,Leaving Care Allowances,634,02/10/2022,2303-00750,0.00,11.50,R,Aldi 88 779,Yes
Http://opendatacommunities.org/id/metropolitan-district-council/leeds,Leeds City Council,31/03/2023,Children and Families,Social Care ,Supplies and Services,Food & Drink,231,09/01/2023,2303-00751,0.00,175.96,R,Aldi 89 779,Yes
Http://opendatacommunities.org/id/metropolitan-district-council/leeds,Leeds City Council,31/03/2023,Children and Families,Social Care ,Supplies and Services,Food & Drink,231,18/01/2023,2303-00752,0.00,4.52,R,Aldi 89 779,Yes
Http://opendatacommunities.org/id/metropolitan-district-council/leeds,Leeds City Council,31/03/2023,Children and Families,Social Care ,Appropriations,Leaving Care Allowances,634,27/01/2023,2303-00753,0.00,1.98,R,Aldi 89 779,Yes
Http://opendatacommunities.org/id/metropolitan-district-council/leeds,Leeds City Council,31/03/2023,Communities Housing and Environment,Parks and Countryside ,Supplies and Services,Food & Drink,231,19/01/2023,2303-00754,0.00,149.11,R,Aldi 99 779,Yes
Http://opendatacommunities.org/id/metropolitan-district-council/leeds,Leeds City Council,31/03/2023,Children and Families,Social Care ,Appropriations,Leaving Care Allowances,634,07/11/2022,2303-00755,0.00,28.38,R,Aldi Stores,Yes
Http://opendatacommunities.org/id/metropolitan-district-council/leeds,Leeds City Council,31/03/2023,Children and Families,Social Care ,Supplies and Services,Food & Drink,231,30/12/2022,2303-00756,0.00,56.92,R,Aldi Stores,Yes
Http://opendatacommunities.org/id/metropolitan-district-council/leeds,Leeds City Council,31/03/2023,Children and Families,Social Care ,Supplies and Services,Food & Drink,231,04/01/2023,2303-00757,0.00,12.58,R,Aldi Stores,Yes
Http://opendatacommunities.org/id/metropolitan-district-council/leeds,Leeds City Council,31/03/2023,Communities Housing and Environment,Strategic Housing Partnership & Support ,Supplies and Services,Food & Drink,231,05/01/2023,2303-00758,0.00,6.13,R,Aldi Stores,Yes
Http://opendatacommunities.org/id/metropolitan-district-council/leeds,Leeds City Council,31/03/2023,Children and Families,Social Care ,Appropriations,Leaving Care Allowances,634,05/01/2023,2303-00759,0.00,17.41,R,Aldi Stores,Yes
Http://opendatacommunities.org/id/metropolitan-district-council/leeds,Leeds City Council,31/03/2023,Children and Families,Social Care ,Appropriations,Leaving Care Allowances,634,12/01/2023,2303-00760,0.00,12.82,R,Aldi Stores,Yes
Http://opendatacommunities.org/id/metropolitan-district-council/leeds,Leeds City Council,31/03/2023,Children and Families,Social Care ,Agency Payments,Section 17,551,12/01/2023,2303-00761,0.00,73.99,R,Aldi Stores,Yes
Http://opendatacommunities.org/id/metropolitan-district-council/leeds,Leeds City Council,31/03/2023,Children and Families,Social Care ,Supplies and Services,Food & Drink,231,20/01/2023,2303-00762,0.00,14.83,R,Aldi Stores,Yes
Http://opendatacommunities.org/id/metropolitan-district-council/leeds,Leeds City Council,31/03/2023,Children and Families,Social Care,Internal Recharges,Legal Disbursements,411,22/03/2023,2303-00763,0.00,7416.00,R,Alex Taylor,No
Http://opendatacommunities.org/id/metropolitan-district-council/leeds,Leeds City Council,31/03/2023,Resources,Commercial Services,Supplies and Services,Other Hired And Contracted Services,265,10/03/2023,2303-00764,0.00,100.00,R,ALEX WAGG,No
Http://opendatacommunities.org/id/metropolitan-district-council/leeds,Leeds City Council,31/03/2023,Resources,Commercial Services,Supplies and Services,Other Hired And Contracted Services,265,10/03/2023,2303-00765,0.00,100.00,R,ALEX WAGG,No
Http://opendatacommunities.org/id/metropolitan-district-council/leeds,Leeds City Council,31/03/2023,Resources,Commercial Services,Supplies and Services,Other Hired And Contracted Services,265,10/03/2023,2303-00766,0.00,125.00,R,ALEX WAGG,No
Http://opendatacommunities.org/id/metropolitan-district-council/leeds,Leeds City Council,31/03/2023,Resources,Commercial Services,Supplies and Services,Other Hired And Contracted Services,265,10/03/2023,2303-00767,0.00,431.19,R,ALEX WAGG,No
Http://opendatacommunities.org/id/metropolitan-district-council/leeds,Leeds City Council,31/03/2023,Resources,Commercial Services,Supplies and Services,Other Hired And Contracted Services,265,20/03/2023,2303-00768,0.00,250.00,R,ALEX WAGG,No
Http://opendatacommunities.org/id/metropolitan-district-council/leeds,Leeds City Council,31/03/2023,Resources,Commercial Services,Supplies and Services,Other Hired And Contracted Services,265,20/03/2023,2303-00769,0.00,175.00,R,ALEX WAGG,No
Http://opendatacommunities.org/id/metropolitan-district-council/leeds,Leeds City Council,31/03/2023,Resources,Commercial Services,Supplies and Services,Other Hired And Contracted Services,265,20/03/2023,2303-00770,0.00,125.00,R,ALEX WAGG,No
Http://opendatacommunities.org/id/metropolitan-district-council/leeds,Leeds City Council,31/03/2023,Resources,Commercial Services,Supplies and Services,Other Hired And Contracted Services,265,23/03/2023,2303-00771,0.00,175.00,R,ALEX WAGG,No
Http://opendatacommunities.org/id/metropolitan-district-council/leeds,Leeds City Council,31/03/2023,Resources,Commercial Services,Supplies and Services,Other Hired And Contracted Services,265,23/03/2023,2303-00772,0.00,200.00,R,ALEX WAGG,No
Http://opendatacommunities.org/id/metropolitan-district-council/leeds,Leeds City Council,31/03/2023,Resources,Commercial Services,Supplies and Services,Other Hired And Contracted Services,265,29/03/2023,2303-00773,0.00,75.00,R,ALEX WAGG,No
Http://opendatacommunities.org/id/metropolitan-district-council/leeds,Leeds City Council,31/03/2023,Resources,Commercial Services,Supplies and Services,Other Hired And Contracted Services,265,29/03/2023,2303-00774,0.00,100.00,R,ALEX WAGG,No
Http://opendatacommunities.org/id/metropolitan-district-council/leeds,Leeds City Council,31/03/2023,Resources,Commercial Services,Supplies and Services,Other Hired And Contracted Services,265,29/03/2023,2303-00775,0.00,180.00,R,ALEX WAGG,No
Http://opendatacommunities.org/id/metropolitan-district-council/leeds,Leeds City Council,31/03/2023,Resources,Commercial Services,Supplies and Services,Other Hired And Contracted Services,265,31/03/2023,2303-00776,0.00,240.00,R,ALEX WAGG,No
Http://opendatacommunities.org/id/metropolitan-district-council/leeds,Leeds City Council,31/03/2023,City Development,Libraries Arts & Heritage,Supplies and Services,Other Hired And Contracted Services,265,03/03/2023,2303-00777,0.00,400.00,R,Alex Woodrow,No
Http://opendatacommunities.org/id/metropolitan-district-council/leeds,Leeds City Council,31/03/2023,Adults and Health,Services For Older People - 65 And Over,Agency Payments,Residential Care Dementia,571,01/03/2023,2303-00778,0.00,27751.10,R,ALEXANDER RESIDENTIAL HOME,No
Http://opendatacommunities.org/id/metropolitan-district-council/leeds,Leeds City Council,31/03/2023,Adults and Health,Services For Older People - 65 And Over,Agency Payments,Residential,580,01/03/2023,2303-00779,0.00,20785.44,R,ALEXANDER RESIDENTIAL HOME,No
Http://opendatacommunities.org/id/metropolitan-district-council/leeds,Leeds City Council,31/03/2023,Adults and Health,Services For Older People - 65 And Over,Agency Payments,Residential Care Dementia,571,29/03/2023,2303-00780,0.00,14628.65,R,ALEXANDER RESIDENTIAL HOME,No
Http://opendatacommunities.org/id/metropolitan-district-council/leeds,Leeds City Council,31/03/2023,Adults and Health,Services For Older People - 65 And Over,Agency Payments,Residential,580,29/03/2023,2303-00781,0.00,18519.10,R,ALEXANDER RESIDENTIAL HOME,No
Http://opendatacommunities.org/id/metropolitan-district-council/leeds,Leeds City Council,31/03/2023,Communities Housing and Environment,Customer Access,Supplies and Services,Bought In Professional Services,277,08/03/2023,2303-00782,0.00,18.00,R,Alexandra Costenco,No
Http://opendatacommunities.org/id/metropolitan-district-council/leeds,Leeds City Council,31/03/2023,Communities Housing and Environment,Customer Access,Supplies and Services,Bought In Professional Services,277,08/03/2023,2303-00783,0.00,36.00,R,Alexandra Costenco,No
